Workbook

Sheet Notes

Sheet NEED Table Creator
F1: 2 | G1: 3 | H1: 4 | I1: 5 | J1: 6 | K1: 7 | L1: 8 | M1: 9 | N1: 10 | O1: 11
T3: Number of Observations | W3: =D13 -> Region
T4: =IF(I5=T3, "", I5) -> Median | W4: =F11 -> Number of Bedrooms
D5: Variable 1 (Column) | E5: Number of Bedrooms | H5: Median/Mean: | I5: Median | J5: Fuel: | K5: Gas | L5: Year: | M5: 2011 | W5: =CONCATENATE(F9, " by ", W4, " and ", W3) -> Median Gas Consumption 2011 (kWh) by Number of Bedrooms and Region
T6: =IF(I5=T3, "Number of Properties", "(kWh)") -> (kWh)
D7: Variable 2 (Row) | E7: Region | W7: =IF(D13=AB11,"IMD - 1 is most deprives and IMD - 5 is least deprived",IF(D13=AA11,"FP - 1 is most fuel poor and FP - 5 is least fuel poor"," ")) -> 
W8: =IF(F11=AB11,"IMD - 1 is most deprives and IMD - 5 is least deprived",IF(F11=AA11,"FP-1 is most fuel poor and FP -5 is least fuel poor"," ")) -> 
F9: =CONCATENATE(T4," ",K5," Consumption ",M5, " ", T6) -> Median Gas Consumption 2011 (kWh) | W9: =IF(OR(D13=AB11,D13=AA11,F11=AB11,F11=AA11), "Total all properties is for all properties in England and Wales, total for each quintile is total for all properties in England only.", " ") -> 
T10: Variables | AE10: Selections for drop down menus: | AI10: Vlookup to choose correct column from tables | AO10: Data cell contents | AR10: Electricity | BV10: Gas | DB10: Data Totals | DE10: Electricity | EI10: Gas
F11: =E5 -> Number of Bedrooms | P11: All | T11: Property Age | U11: Property Type | V11: Number of Bedrooms | W11: Floor Area (m2) | X11: Tenure | Y11: Income | Z11: Number of Adults | AA11: Fuel Poverty Quintile | AB11: Index of Multiple Deprivation Quintile | AC11: Region | AE11: Mean/Median | AF11: Fuel | AG11: Year | AR11: 2014 | AU11: 2013 | AX11: 2012 | BA11: 2011 | BD11: 2010 | BG11: 2009 | BJ11: 2008 | BM11: 2007 | BP11: 2006 | BS11: 2005 | BV11: 2014 | BY11: 2013 | CB11: 2012 | CE11: 2011 | CH11: 2010 | CK11: 2009 | CN11: 2008 | CQ11: 2007 | CT11: 2006 | CW11: 2005 | DE11: 2014 | DH11: 2013 | DK11: 2012 | DN11: 2011 | DQ11: 2010 | DT11: 2009 | DW11: 2008 | DZ11: 2007 | EC11: 2006 | EF11: 2005 | EI11: 2014 | EL11: 2013 | EO11: 2012 | ER11: 2011 | EU11: 2010 | EX11: 2009 | FA11: 2008 | FD11: 2007 | FG11: 2006 | FJ11: 2005
F12: =HLOOKUP($F$11,$T$11:$AC$21,F$1,FALSE) -> 1 bedroom | G12: 2 bedrooms | H12: 3 bedrooms | I12: 4 bedrooms | J12: 5 or more bedrooms | K12: 0 | L12: 0 | M12: 0 | N12: 0 | O12: =HLOOKUP($F$11,$T$11:$AC$21,O$1,FALSE) -> 0 | T12: Pre 1919 | U12: Detached | V12: 1 bedroom | W12: 50 or less | X12: Owner-occupied | Y12: Less than £15,000 | Z12: 1 | AA12: FP - 1 | AB12: IMD - 1 | AC12: North East | AE12: Median | AF12: Gas | AG12: 2005 | AI12: MedianElectricity2014 | AJ12: 2 | AO12: Attribute 1 | AP12: Attribute 2 | AQ12: Concat for lookup | AR12: Median | AS12: Mean | AT12: N | AU12: Median | AV12: Mean | AW12: N | AX12: Median | AY12: Mean | AZ12: N | BA12: Median | BB12: Mean | BC12: N | BD12: Median | BE12: Mean | BF12: N | BG12: Median | BH12: Mean | BI12: N | BJ12: Median | BK12: Mean | BL12: N | BM12: Median | BN12: Mean | BO12: N | BP12: Median | BQ12: Mean | BR12: N | BS12: Median | BT12: Mean | BU12: N | BV12: Median | BW12: Mean | BX12: N | BY12: Median | BZ12: Mean | CA12: N | CB12: Median | CC12: Mean | CD12: N | CE12: Median | CF12: Mean | CG12: N | CH12: Median | CI12: Mean | CJ12: N | CK12: Median | CL12: Mean | CM12: N | CN12: Median | CO12: Mean | CP12: N | CQ12: Median | CR12: Mean | CS12: N | CT12: Median | CU12: Mean | CV12: N | CW12: Median | CX12: Mean | CY12: N | DB12: Variable | DD12: Concat for lookup | DE12: Median | DF12: Mean | DG12: N | DH12: Median | DI12: Mean | DJ12: N | DK12: Median | DL12: Mean | DM12: N | DN12: Median | DO12: Mean | DP12: N | DQ12: Median | DR12: Mean | DS12: N | DT12: Median | DU12: Mean | DV12: N | DW12: Median | DX12: Mean | DY12: N | DZ12: Median | EA12: Mean | EB12: N | EC12: Median | ED12: Mean | EE12: N | EF12: Median | EG12: Mean | EH12: N | EI12: Median | EJ12: Mean | EK12: N | EL12: Median | EM12: Mean | EN12: N | EO12: Median | EP12: Mean | EQ12: N | ER12: Median | ES12: Mean | ET12: N | EU12: Median | EV12: Mean | EW12: N | EX12: Median | EY12: Mean | EZ12: N | FA12: Median | FB12: Mean | FC12: N | FD12: Median | FE12: Mean | FF12: N | FG12: Median | FH12: Mean | FI12: N | FJ12: Median | FK12: Mean | FL12: N
D13: =E7 -> Region | E13: =HLOOKUP($D$13,$T$11:$AC$21,$A14,FALSE) -> North East | F13: =VLOOKUP(CONCATENATE($E13,F$12),$AQ$13:$CY$3856,(VLOOKUP(CONCATENATE($I$5,$K$5,$M$5), $AI$12:$AL$71, 2, FALSE)),FALSE) -> 8100 | G13: =VLOOKUP(CONCATENATE($E13,G$12),$AQ$13:$CY$3856,(VLOOKUP(CONCATENATE($I$5,$K$5,$M$5), $AI$12:$AL$71, 2, FALSE)),FALSE) -> 11400 | H13: 14200 | I13: 18500 | J13: 23600 | P13: =VLOOKUP(CONCATENATE($D$13,E13),$DD$13:$FL$75,(VLOOKUP(CONCATENATE($I$5,$K$5,$M$5), $AI$12:$AJ$71, 2, FALSE)),FALSE) -> 13400 | T13: 1919-44 | U13: Semi detached | V13: 2 bedrooms | W13: 51 to 100 | X13: Privately rented | Y13: £15,000 - £19,999 | Z13: 2 | AA13: FP - 2 | AB13: IMD - 2 | AC13: North West | AE13: Mean | AF13: Electricity | AG13: 2006 | AI13: MeanElectricity2014 | AJ13: 3 | AN13: 1 | AO13: Pre 1919 | AP13: Detached | AQ13: =CONCATENATE(AO13,AP13) -> Pre 1919Detached | AR13: 5500 | AS13: 7700 | AT13: 78360 | AU13: 5500 | AV13: 6900 | AW13: 84710 | AX13: 5600 | AY13: 7100 | AZ13: 79770 | BA13: 5800 | BB13: 7200 | BC13: 80970 | BD13: 5900 | BE13: 7300 | BF13: 70590 | BG13: 5900 | BH13: 7300 | BI13: 69770 | BJ13: 5900 | BK13: 7300 | BL13: 69320 | BM13: 6200 | BN13: 7500 | BO13: 69020 | BP13: 6300 | BQ13: 7600 | BR13: 69770 | BS13: 6500 | BT13: 7800 | BU13: 60030 | BV13: 22600 | BW13: 23700 | BX13: 37280 | BY13: 23200 | BZ13: 24100 | CA13: 34490 | CB13: 23900 | CC13: 24800 | CD13: 32050 | CE13: 23700 | CF13: 24600 | CG13: 33800 | CH13: 25400 | CI13: 26100 | CJ13: 30660 | CK13: 25300 | CL13: 26000 | CM13: 33060 | CN13: 27300 | CO13: 27500 | CP13: 28030 | CQ13: 28100 | CR13: 28100 | CS13: 27080 | CT13: 28700 | CU13: 28500 | CV13: 26170 | CW13: 29500 | CX13: 29300 | CY13: 24890 | DB13: Property Age | DC13: Pre 1919 | DD13: =CONCATENATE(DB13,DC13) -> Property AgePre 1919 | DE13: 3300 | DF13: 4400 | DG13: 724930 | DH13: 3300 | DI13: 4200 | DJ13: 787530 | DK13: 3300 | DL13: 4400 | DM13: 709060 | DN13: 3400 | DO13: 4400 | DP13: 718800 | DQ13: 3500 | DR13: 4400 | DS13: 658880 | DT13: 3500 | DU13: 4500 | DV13: 649880 | DW13: 3500 | DX13: 4500 | DY13: 646160 | DZ13: 3600 | EA13: 4700 | EB13: 645480 | EC13: 3700 | ED13: 4700 | EE13: 649530 | EF13: 3800 | EG13: 4900 | EH13: 571990 | EI13: 12600 | EJ13: 14100 | EK13: 656880 | EL13: 13100 | EM13: 14600 | EN13: 607640 | EO13: 13600 | EP13: 15100 | EQ13: 550070 | ER13: 13600 | ES13: 15100 | ET13: 575620 | EU13: 14800 | EV13: 16300 | EW13: 513820 | EX13: 14800 | EY13: 16300 | EZ13: 560800 | FA13: 16400 | FB13: 17800 | FC13: 492220 | FD13: 17000 | FE13: 18300 | FF13: 484230 | FG13: 17500 | FH13: 18800 | FI13: 474370 | FJ13: 18400 | FK13: 19600 | FL13: 461460
A14: 2 | E14: North West | F14: =VLOOKUP(CONCATENATE($E14,F$12),$AQ$13:$CY$3856,(VLOOKUP(CONCATENATE($I$5,$K$5,$M$5), $AI$12:$AL$71, 2, FALSE)),FALSE) -> 6500 | G14: 10700 | H14: 13600 | I14: 18600 | J14: 24200 | P14: 13000 | T14: 1945-64 | U14: End terrace | V14: 3 bedrooms | W14: 101 to 150 | X14: Council/Housing Association | Y14: £20,000 - £29,999 | Z14: 3 | AA14: FP - 3 | AB14: IMD - 3 | AC14: Yorks & Humber | AE14: Number of Observations | AG14: 2007 | AI14: Number of ObservationsElectricity2014 | AJ14: 4 | AN14: 2 | AO14: 1919-44 | AP14: Detached | AQ14: 1919-44Detached | AR14: 4700 | AS14: 5900 | AT14: 68410 | AU14: 4700 | AV14: 5600 | AW14: 69910 | AX14: 4800 | AY14: 5700 | AZ14: 62550 | BA14: 4900 | BB14: 5800 | BC14: 63150 | BD14: 5000 | BE14: 5900 | BF14: 64140 | BG14: 5000 | BH14: 5900 | BI14: 63440 | BJ14: 5000 | BK14: 6000 | BL14: 63290 | BM14: 5300 | BN14: 6200 | BO14: 63150 | BP14: 5300 | BQ14: 6300 | BR14: 63670 | BS14: 5500 | BT14: 6400 | BU14: 57190 | BV14: 22000 | BW14: 23100 | BX14: 61760 | BY14: 22600 | BZ14: 23600 | CA14: 57530 | CB14: 23500 | CC14: 24400 | CD14: 50770 | CE14: 23000 | CF14: 24100 | CG14: 53300 | CH14: 24800 | CI14: 25600 | CJ14: 52230 | CK14: 24800 | CL14: 25600 | CM14: 55490 | CN14: 27000 | CO14: 27500 | CP14: 48900 | CQ14: 27600 | CR14: 28000 | CS14: 47700 | CT14: 28500 | CU14: 28700 | CV14: 46530 | CW14: 29600 | CX14: 29600 | CY14: 44470 | DB14: Property Age | DC14: 1919-44 | DD14: =CONCATENATE(DB14,DC14) -> Property Age1919-44 | DE14: 3500 | DF14: 4200 | DG14: 698450 | DH14: 3500 | DI14: 4100 | DJ14: 708100 | DK14: 3500 | DL14: 4200 | DM14: 618450 | DN14: 3600 | DO14: 4200 | DP14: 624050 | DQ14: 3600 | DR14: 4300 | DS14: 636200 | DT14: 3600 | DU14: 4300 | DV14: 629950 | DW14: 3600 | DX14: 4300 | DY14: 626570 | DZ14: 3800 | EA14: 4500 | EB14: 627590 | EC14: 3800 | ED14: 4600 | EE14: 630150 | EF14: 3900 | EG14: 4700 | EH14: 561410 | EI14: 13600 | EJ14: 14700 | EK14: 677620 | EL14: 14100 | EM14: 15200 | EN14: 636620 | EO14: 14700 | EP14: 15700 | EQ14: 547960 | ER14: 14600 | ES14: 15700 | ET14: 571990 | EU14: 15800 | EV14: 16900 | EW14: 565010 | EX14: 16000 | EY14: 17000 | EZ14: 602810 | FA14: 17600 | FB14: 18600 | FC14: 546120 | FD14: 18300 | FE14: 19200 | FF14: 538310 | FG14: 19000 | FH14: 19800 | FI14: 529660 | FJ14: 19900 | FK14: 20700 | FL14: 516660
A15: 3 | E15: Yorks & Humber | F15: 7300 | G15: 11200 | H15: 14300 | I15: 19100 | J15: 25300 | P15: 13500 | T15: 1965-82 | U15: Mid terrace | V15: 4 bedrooms | W15: 151 to 200 | Y15: £30,000 - £39,999 | Z15: 4 | AA15: FP - 4 | AB15: IMD - 4 | AC15: East Midlands | AG15: 2008 | AI15: MedianElectricity2013 | AJ15: 5 | AN15: 3 | AO15: 1945-64 | AP15: Detached | AQ15: 1945-64Detached | AR15: 4200 | AS15: 5200 | AT15: 66530 | AU15: 4300 | AV15: 5100 | AW15: 68230 | AX15: 4300 | AY15: 5200 | AZ15: 60270 | BA15: 4400 | BB15: 5300 | BC15: 60760 | BD15: 4500 | BE15: 5300 | BF15: 61450 | BG15: 4500 | BH15: 5300 | BI15: 60960 | BJ15: 4500 | BK15: 5300 | BL15: 60600 | BM15: 4700 | BN15: 5600 | BO15: 60630 | BP15: 4800 | BQ15: 5700 | BR15: 61150 | BS15: 4900 | BT15: 5800 | BU15: 54030 | BV15: 19300 | BW15: 20500 | BX15: 61240 | BY15: 19900 | BZ15: 21000 | CA15: 57570 | CB15: 20600 | CC15: 21700 | CD15: 50340 | CE15: 20300 | CF15: 21500 | CG15: 52690 | CH15: 21800 | CI15: 22800 | CJ15: 52040 | CK15: 21900 | CL15: 23000 | CM15: 54930 | CN15: 24000 | CO15: 24900 | CP15: 49480 | CQ15: 24700 | CR15: 25500 | CS15: 48500 | CT15: 25600 | CU15: 26200 | CV15: 47750 | CW15: 26700 | CX15: 27300 | CY15: 46290 | DB15: Property Age | DC15: 1945-64 | DD15: Property Age1945-64 | DE15: 3200 | DF15: 3900 | DG15: 788560 | DH15: 3200 | DI15: 3900 | DJ15: 802710 | DK15: 3200 | DL15: 3900 | DM15: 691730 | DN15: 3300 | DO15: 4000 | DP15: 697960 | DQ15: 3300 | DR15: 4000 | DS15: 699740 | DT15: 3300 | DU15: 4000 | DV15: 693540 | DW15: 3300 | DX15: 4100 | DY15: 689540 | DZ15: 3500 | EA15: 4200 | EB15: 689940 | EC15: 3500 | ED15: 4300 | EE15: 693120 | EF15: 3600 | EG15: 4400 | EH15: 619660 | EI15: 11900 | EJ15: 12700 | EK15: 743640 | EL15: 12300 | EM15: 13100 | EN15: 701450 | EO15: 12800 | EP15: 13600 | EQ15: 594890 | ER15: 12800 | ES15: 13700 | ET15: 620170 | EU15: 13900 | EV15: 14700 | EW15: 602740 | EX15: 14000 | EY15: 14800 | EZ15: 643050 | FA15: 15500 | FB15: 16300 | FC15: 583510 | FD15: 16200 | FE15: 17000 | FF15: 576460 | FG15: 16800 | FH15: 17500 | FI15: 567510 | FJ15: 17700 | FK15: 18400 | FL15: 553100
A16: 4 | E16: East Midlands | F16: 6900 | G16: 11000 | H16: 13900 | I16: 17800 | J16: 23300 | P16: 13400 | T16: 1983-92 | U16: Bungalow | V16: 5 or more bedrooms | W16: Over 200 | Y16: £40,000 - £49,999 | Z16: 5 or more | AA16: FP - 5 | AB16: IMD - 5 | AC16: West Midlands | AG16: 2009 | AI16: MeanElectricity2013 | AJ16: 6 | AN16: 4 | AO16: 1965-82 | AP16: Detached | AQ16: 1965-82Detached | AR16: 3900 | AS16: 4600 | AT16: 157370 | AU16: 4000 | AV16: 4600 | AW16: 160580 | AX16: 4000 | AY16: 4700 | AZ16: 139670 | BA16: 4200 | BB16: 4800 | BC16: 140410 | BD16: 4200 | BE16: 4900 | BF16: 140500 | BG16: 4200 | BH16: 4900 | BI16: 139570 | BJ16: 4200 | BK16: 4900 | BL16: 138640 | BM16: 4500 | BN16: 5200 | BO16: 139060 | BP16: 4600 | BQ16: 5300 | BR16: 139810 | BS16: 4700 | BT16: 5400 | BU16: 122960 | BV16: 16500 | BW16: 17500 | BX16: 145430 | BY16: 17000 | BZ16: 18000 | CA16: 137180 | CB16: 17600 | CC16: 18700 | CD16: 118100 | CE16: 17400 | CF16: 18500 | CG16: 123210 | CH16: 18600 | CI16: 19800 | CJ16: 120620 | CK16: 18900 | CL16: 20000 | CM16: 126860 | CN16: 20900 | CO16: 21900 | CP16: 116310 | CQ16: 21500 | CR16: 22600 | CS16: 114530 | CT16: 22400 | CU16: 23300 | CV16: 112380 | CW16: 23400 | CX16: 24300 | CY16: 109600 | DB16: Property Age | DC16: 1965-82 | DD16: Property Age1965-82 | DE16: 3200 | DF16: 3900 | DG16: 871700 | DH16: 3200 | DI16: 3800 | DJ16: 893000 | DK16: 3200 | DL16: 3900 | DM16: 772500 | DN16: 3300 | DO16: 4000 | DP16: 778520 | DQ16: 3300 | DR16: 4100 | DS16: 780820 | DT16: 3300 | DU16: 4100 | DV16: 775020 | DW16: 3400 | DX16: 4100 | DY16: 770410 | DZ16: 3500 | EA16: 4300 | EB16: 771340 | EC16: 3600 | ED16: 4400 | EE16: 775040 | EF16: 3700 | EG16: 4500 | EH16: 687710 | EI16: 11200 | EJ16: 12100 | EK16: 763770 | EL16: 11600 | EM16: 12500 | EN16: 717960 | EO16: 12100 | EP16: 13000 | EQ16: 610880 | ER16: 12100 | ES16: 13000 | ET16: 637980 | EU16: 13100 | EV16: 13900 | EW16: 618630 | EX16: 13200 | EY16: 14000 | EZ16: 661710 | FA16: 14700 | FB16: 15500 | FC16: 599520 | FD16: 15300 | FE16: 16100 | FF16: 593040 | FG16: 15900 | FH16: 16700 | FI16: 583420 | FJ16: 16700 | FK16: 17500 | FL16: 566610
A17: 5 | E17: West Midlands | F17: 6800 | G17: 10600 | H17: 13800 | I17: 17900 | J17: 24000 | P17: 13200 | T17: 1993-99 | U17: Converted flat | Y17: £50,000 - £59,999 | AC17: East of England | AG17: 2010 | AI17: Number of ObservationsElectricity2013 | AJ17: 7 | AN17: 5 | AO17: 1983-92 | AP17: Detached | AQ17: 1983-92Detached | AR17: 4000 | AS17: 4700 | AT17: 91910 | AU17: 4100 | AV17: 4700 | AW17: 94230 | AX17: 4100 | AY17: 4800 | AZ17: 83110 | BA17: 4300 | BB17: 4900 | BC17: 83430 | BD17: 4400 | BE17: 5000 | BF17: 84480 | BG17: 4300 | BH17: 5000 | BI17: 84030 | BJ17: 4400 | BK17: 5100 | BL17: 83290 | BM17: 4700 | BN17: 5300 | BO17: 83600 | BP17: 4800 | BQ17: 5400 | BR17: 84080 | BS17: 4800 | BT17: 5500 | BU17: 74210 | BV17: 15400 | BW17: 16300 | BX17: 86660 | BY17: 15900 | BZ17: 16800 | CA17: 82680 | CB17: 16500 | CC17: 17400 | CD17: 72710 | CE17: 16300 | CF17: 17300 | CG17: 75620 | CH17: 17500 | CI17: 18400 | CJ17: 75820 | CK17: 17700 | CL17: 18600 | CM17: 78390 | CN17: 19400 | CO17: 20400 | CP17: 73620 | CQ17: 20000 | CR17: 20900 | CS17: 73040 | CT17: 20700 | CU17: 21600 | CV17: 72240 | CW17: 21400 | CX17: 22400 | CY17: 70840 | DB17: Property Age | DC17: 1983-92 | DD17: Property Age1983-92 | DE17: 3300 | DF17: 4100 | DG17: 305580 | DH17: 3300 | DI17: 4000 | DJ17: 316410 | DK17: 3400 | DL17: 4200 | DM17: 279110 | DN17: 3500 | DO17: 4200 | DP17: 280400 | DQ17: 3500 | DR17: 4300 | DS17: 282300 | DT17: 3500 | DU17: 4300 | DV17: 280740 | DW17: 3600 | DX17: 4400 | DY17: 278750 | DZ17: 3700 | EA17: 4600 | EB17: 279630 | EC17: 3800 | ED17: 4600 | EE17: 281040 | EF17: 3900 | EG17: 4700 | EH17: 252730 | EI17: 10800 | EJ17: 11900 | EK17: 244070 | EL17: 11200 | EM17: 12200 | EN17: 232010 | EO17: 11600 | EP17: 12700 | EQ17: 203410 | ER17: 11600 | ES17: 12700 | ET17: 211470 | EU17: 12500 | EV17: 13600 | EW17: 208600 | EX17: 12600 | EY17: 13700 | EZ17: 218310 | FA17: 13900 | FB17: 15000 | FC17: 202730 | FD17: 14500 | FE17: 15600 | FF17: 201510 | FG17: 15000 | FH17: 16000 | FI17: 199960 | FJ17: 15600 | FK17: 16600 | FL17: 195450
A18: 6 | E18: East of England | F18: 6400 | G18: 10300 | H18: 13500 | I18: 17900 | J18: 24400 | P18: 13000 | T18: Post 1999 | U18: Purpose built flat | Y18: £60,000 - £69,999 | AC18: London | AG18: 2011 | AI18: MedianElectricity2012 | AJ18: 8 | AN18: 6 | AO18: 1993-99 | AP18: Detached | AQ18: 1993-99Detached | AR18: 4200 | AS18: 4800 | AT18: 72710 | AU18: 4200 | AV18: 4800 | AW18: 75670 | AX18: 4200 | AY18: 4900 | AZ18: 71210 | BA18: 4400 | BB18: 5000 | BC18: 71410 | BD18: 4500 | BE18: 5100 | BF18: 71550 | BG18: 4500 | BH18: 5100 | BI18: 71220 | BJ18: 4500 | BK18: 5100 | BL18: 70500 | BM18: 4700 | BN18: 5400 | BO18: 70840 | BP18: 4800 | BQ18: 5500 | BR18: 71150 | BS18: 4900 | BT18: 5500 | BU18: 62970 | BV18: 15400 | BW18: 16400 | BX18: 68380 | BY18: 15900 | BZ18: 16800 | CA18: 63550 | CB18: 16400 | CC18: 17400 | CD18: 60690 | CE18: 16300 | CF18: 17300 | CG18: 63280 | CH18: 17300 | CI18: 18300 | CJ18: 60730 | CK18: 17300 | CL18: 18400 | CM18: 62940 | CN18: 18700 | CO18: 19800 | CP18: 61520 | CQ18: 19200 | CR18: 20200 | CS18: 59510 | CT18: 19800 | CU18: 20800 | CV18: 54320 | CW18: 20200 | CX18: 21200 | CY18: 60180 | DB18: Property Age | DC18: 1993-99 | DD18: Property Age1993-99 | DE18: 3500 | DF18: 4200 | DG18: 201170 | DH18: 3500 | DI18: 4200 | DJ18: 210760 | DK18: 3500 | DL18: 4300 | DM18: 196880 | DN18: 3700 | DO18: 4400 | DP18: 197740 | DQ18: 3700 | DR18: 4400 | DS18: 198620 | DT18: 3700 | DU18: 4400 | DV18: 197330 | DW18: 3700 | DX18: 4500 | DY18: 195620 | DZ18: 3900 | EA18: 4700 | EB18: 196170 | EC18: 3900 | ED18: 4700 | EE18: 197110 | EF18: 4000 | EG18: 4800 | EH18: 175960 | EI18: 11100 | EJ18: 12200 | EK18: 171570 | EL18: 11500 | EM18: 12500 | EN18: 160020 | EO18: 11900 | EP18: 13000 | EQ18: 151990 | ER18: 11900 | ES18: 13000 | ET18: 158370 | EU18: 12700 | EV18: 13800 | EW18: 152470 | EX18: 12700 | EY18: 13800 | EZ18: 159350 | FA18: 14000 | FB18: 15100 | FC18: 152610 | FD18: 14400 | FE18: 15500 | FF18: 148380 | FG18: 14700 | FH18: 15800 | FI18: 139690 | FJ18: 15300 | FK18: 16400 | FL18: 148270
A19: 7 | E19: London | F19: 6500 | G19: 10300 | H19: 15300 | I19: 20900 | J19: 27200 | P19: 13000 | Y19: £70,000 - £99,999 | AC19: South East | AG19: 2012 | AI19: MeanElectricity2012 | AJ19: 9 | AN19: 7 | AO19: Post 1999 | AP19: Detached | AQ19: Post 1999Detached | AR19: 4300 | AS19: 5000 | AT19: 59260 | AU19: 4300 | AV19: 4900 | AW19: 63670 | AX19: 4400 | AY19: 5100 | AZ19: 55370 | BA19: 4600 | BB19: 5300 | BC19: 55520 | BD19: 4600 | BE19: 5300 | BF19: 48410 | BG19: 4500 | BH19: 5200 | BI19: 48020 | BJ19: 4500 | BK19: 5200 | BL19: 47300 | BM19: 4600 | BN19: 5300 | BO19: 45890 | BP19: 4700 | BQ19: 5400 | BR19: 42830 | BS19: 4600 | BT19: 5400 | BU19: 35000 | BV19: 15700 | BW19: 16800 | BX19: 48500 | BY19: 16100 | BZ19: 17300 | CA19: 38790 | CB19: 16600 | CC19: 17900 | CD19: 38000 | CE19: 16600 | CF19: 17900 | CG19: 43020 | CH19: 17300 | CI19: 18700 | CJ19: 29750 | CK19: 17200 | CL19: 18600 | CM19: 31370 | CN19: 18400 | CO19: 19600 | CP19: 36000 | CQ19: 19300 | CR19: 20400 | CS19: 29720 | CT19: 20100 | CU19: 21300 | CV19: 20660 | CW19: 21500 | CX19: 22000 | CY19: 30320 | DB19: Property Age | DC19: Post 1999 | DD19: Property AgePost 1999 | DE19: 3400 | DF19: 4200 | DG19: 255790 | DH19: 3400 | DI19: 4100 | DJ19: 279650 | DK19: 3400 | DL19: 4200 | DM19: 230440 | DN19: 3500 | DO19: 4300 | DP19: 231300 | DQ19: 3600 | DR19: 4400 | DS19: 195790 | DT19: 3500 | DU19: 4300 | DV19: 193760 | DW19: 3500 | DX19: 4300 | DY19: 190800 | DZ19: 3600 | EA19: 4400 | EB19: 179840 | EC19: 3600 | ED19: 4400 | EE19: 158100 | EF19: 3600 | EG19: 4500 | EH19: 122110 | EI19: 10800 | EJ19: 11900 | EK19: 158120 | EL19: 10900 | EM19: 12100 | EN19: 128330 | EO19: 11400 | EP19: 12600 | EQ19: 119060 | ER19: 11500 | ES19: 12700 | ET19: 133610 | EU19: 12000 | EV19: 13300 | EW19: 93120 | EX19: 12000 | EY19: 13300 | EZ19: 99180 | FA19: 13000 | FB19: 14300 | FC19: 109370 | FD19: 13600 | FE19: 15100 | FF19: 95030 | FG19: 14200 | FH19: 15600 | FI19: 64910 | FJ19: 15200 | FK19: 16500 | FL19: 87110
A20: 8 | E20: South East | F20: 6200 | G20: 10100 | H20: 13300 | I20: 18300 | J20: 24900 | P20: 12900 | Y20: £100,000 - £149,999 | AC20: South West | AG20: 2013 | AI20: Number of ObservationsElectricity2012 | AJ20: 10 | AN20: 8 | AO20: Pre 1919 | AP20: Semi detached | AQ20: Pre 1919Semi detached | AR20: 4000 | AS20: 5100 | AT20: 110200 | AU20: 4000 | AV20: 4900 | AW20: 115090 | AX20: 4100 | AY20: 5100 | AZ20: 103910 | BA20: 4200 | BB20: 5100 | BC20: 105130 | BD20: 4300 | BE20: 5200 | BF20: 99740 | BG20: 4300 | BH20: 5300 | BI20: 98520 | BJ20: 4300 | BK20: 5300 | BL20: 97900 | BM20: 4500 | BN20: 5500 | BO20: 97920 | BP20: 4600 | BQ20: 5600 | BR20: 98710 | BS20: 4800 | BT20: 5800 | BU20: 87810 | BV20: 17100 | BW20: 18500 | BX20: 92840 | BY20: 17700 | BZ20: 19000 | CA20: 86350 | CB20: 18400 | CC20: 19700 | CD20: 76780 | CE20: 18200 | CF20: 19500 | CG20: 80550 | CH20: 19700 | CI20: 20900 | CJ20: 74850 | CK20: 19800 | CL20: 21000 | CM20: 80230 | CN20: 21600 | CO20: 22600 | CP20: 71130 | CQ20: 22200 | CR20: 23200 | CS20: 69700 | CT20: 22900 | CU20: 23800 | CV20: 67970 | CW20: 23900 | CX20: 24600 | CY20: 65990 | DB20: Property Type | DC20: Detached | DD20: Property TypeDetached | DE20: 4300 | DF20: 5300 | DG20: 594560 | DH20: 4300 | DI20: 5200 | DJ20: 617000 | DK20: 4400 | DL20: 5300 | DM20: 551950 | DN20: 4500 | DO20: 5400 | DP20: 555660 | DQ20: 4600 | DR20: 5400 | DS20: 542880 | DT20: 4600 | DU20: 5500 | DV20: 538740 | DW20: 4600 | DX20: 5500 | DY20: 534660 | DZ20: 4800 | EA20: 5700 | EB20: 533900 | EC20: 4900 | ED20: 5800 | EE20: 534190 | EF20: 5000 | EG20: 5900 | EH20: 467890 | EI20: 17100 | EJ20: 18600 | EK20: 509250 | EL20: 17600 | EM20: 19100 | EN20: 471790 | EO20: 18200 | EP20: 19700 | EQ20: 422650 | ER20: 18000 | ES20: 19600 | ET20: 444920 | EU20: 19300 | EV20: 20800 | EW20: 422900 | EX20: 19500 | EY20: 20900 | EZ20: 444160 | FA20: 21200 | FB20: 22500 | FC20: 414860 | FD20: 21800 | FE20: 23100 | FF20: 401040 | FG20: 22700 | FH20: 23900 | FI20: 380980 | FJ20: 23100 | FK20: 24600 | FL20: 387530
A21: 9 | E21: South West | F21: 5600 | G21: 8900 | H21: 11600 | I21: 15600 | J21: 21100 | P21: 11200 | Y21: £150,000 and over | AC21: Wales | AG21: 2014 | AI21: MedianElectricity2011 | AJ21: 11 | AN21: 9 | AO21: 1919-44 | AP21: Semi detached | AQ21: 1919-44Semi detached | AR21: 3600 | AS21: 4100 | AT21: 350590 | AU21: 3600 | AV21: 4100 | AW21: 353820 | AX21: 3600 | AY21: 4100 | AZ21: 306420 | BA21: 3700 | BB21: 4200 | BC21: 308800 | BD21: 3700 | BE21: 4300 | BF21: 313810 | BG21: 3700 | BH21: 4300 | BI21: 311030 | BJ21: 3700 | BK21: 4300 | BL21: 309110 | BM21: 3900 | BN21: 4500 | BO21: 310180 | BP21: 4000 | BQ21: 4600 | BR21: 311280 | BS21: 4000 | BT21: 4700 | BU21: 269030 | BV21: 14300 | BW21: 15000 | BX21: 345860 | BY21: 14800 | BZ21: 15500 | CA21: 325480 | CB21: 15400 | CC21: 16100 | CD21: 277410 | CE21: 15300 | CF21: 16100 | CG21: 289490 | CH21: 16600 | CI21: 17300 | CJ21: 285880 | CK21: 16800 | CL21: 17500 | CM21: 303310 | CN21: 18600 | CO21: 19200 | CP21: 277080 | CQ21: 19100 | CR21: 19800 | CS21: 273640 | CT21: 20000 | CU21: 20500 | CV21: 269100 | CW21: 20900 | CX21: 21400 | CY21: 263320 | DB21: Property Type | DC21: Semi detached | DD21: Property TypeSemi detached | DE21: 3500 | DF21: 4100 | DG21: 1057810 | DH21: 3500 | DI21: 4100 | DJ21: 1075220 | DK21: 3500 | DL21: 4100 | DM21: 931620 | DN21: 3600 | DO21: 4200 | DP21: 938370 | DQ21: 3700 | DR21: 4300 | DS21: 933410 | DT21: 3600 | DU21: 4300 | DV21: 925690 | DW21: 3700 | DX21: 4300 | DY21: 919250 | DZ21: 3800 | EA21: 4500 | EB21: 920680 | EC21: 3900 | ED21: 4600 | EE21: 922420 | EF21: 4000 | EG21: 4700 | EH21: 805170 | EI21: 13000 | EJ21: 13900 | EK21: 1009620 | EL21: 13400 | EM21: 14400 | EN21: 947540 | EO21: 14000 | EP21: 14900 | EQ21: 810720 | ER21: 13900 | ES21: 14900 | ET21: 847970 | EU21: 15100 | EV21: 16000 | EW21: 818370 | EX21: 15300 | EY21: 16200 | EZ21: 866900 | FA21: 16900 | FB21: 17800 | FC21: 797290 | FD21: 17500 | FE21: 18400 | FF21: 785380 | FG21: 18200 | FH21: 19000 | FI21: 767330 | FJ21: 19100 | FK21: 19900 | FL21: 755380
A22: 10 | E22: Wales | F22: 5900 | G22: 10000 | H22: 13100 | I22: 17100 | J22: 21900 | P22: 12700 | AI22: MeanElectricity2011 | AJ22: 12 | AN22: 10 | AO22: 1945-64 | AP22: Semi detached | AQ22: 1945-64Semi detached | AR22: 3400 | AS22: 4000 | AT22: 305700 | AU22: 3500 | AV22: 4000 | AW22: 308970 | AX22: 3500 | AY22: 4000 | AZ22: 264530 | BA22: 3600 | BB22: 4100 | BC22: 266480 | BD22: 3600 | BE22: 4100 | BF22: 265410 | BG22: 3500 | BH22: 4100 | BI22: 263360 | BJ22: 3600 | BK22: 4200 | BL22: 261710 | BM22: 3700 | BN22: 4400 | BO22: 262390 | BP22: 3800 | BQ22: 4400 | BR22: 263520 | BS22: 3800 | BT22: 4600 | BU22: 232460 | BV22: 12700 | BW22: 13200 | BX22: 295060 | BY22: 13100 | BZ22: 13600 | CA22: 278890 | CB22: 13700 | CC22: 14200 | CD22: 234520 | CE22: 13700 | CF22: 14200 | CG22: 244590 | CH22: 14800 | CI22: 15300 | CJ22: 237230 | CK22: 15000 | CL22: 15500 | CM22: 251090 | CN22: 16600 | CO22: 17100 | CP22: 230560 | CQ22: 17200 | CR22: 17800 | CS22: 227840 | CT22: 17900 | CU22: 18400 | CV22: 224360 | CW22: 18900 | CX22: 19300 | CY22: 219420 | DB22: Property Type | DC22: End terrace | DD22: Property TypeEnd terrace | DE22: 3300 | DF22: 4000 | DG22: 363420 | DH22: 3300 | DI22: 3900 | DJ22: 369520 | DK22: 3300 | DL22: 4000 | DM22: 321740 | DN22: 3400 | DO22: 4100 | DP22: 324530 | DQ22: 3500 | DR22: 4100 | DS22: 321240 | DT22: 3400 | DU22: 4100 | DV22: 317900 | DW22: 3500 | DX22: 4200 | DY22: 315710 | DZ22: 3600 | EA22: 4300 | EB22: 314580 | EC22: 3700 | ED22: 4400 | EE22: 313970 | EF22: 3700 | EG22: 4600 | EH22: 280070 | EI22: 11600 | EJ22: 12500 | EK22: 344190 | EL22: 12000 | EM22: 12900 | EN22: 320380 | EO22: 12500 | EP22: 13500 | EQ22: 276920 | ER22: 12500 | ES22: 13500 | ET22: 290220 | EU22: 13500 | EV22: 14500 | EW22: 275410 | EX22: 13700 | EY22: 14600 | EZ22: 294560 | FA22: 15000 | FB22: 16000 | FC22: 269530 | FD22: 15600 | FE22: 16700 | FF22: 264120 | FG22: 16300 | FH22: 17200 | FI22: 255390 | FJ22: 17000 | FK22: 18000 | FL22: 253510
A23: 11 | D23: All | F23: =VLOOKUP(CONCATENATE($F$11,F12),$DD$13:$FL$75,(VLOOKUP(CONCATENATE($I$5,$K$5,$M$5), $AI$12:$AJ$71, 2, FALSE)),FALSE) -> 6600 | G23: 10400 | H23: 13700 | I23: 18100 | J23: 24300 | P23: =VLOOKUP(DD75,$DD$75:$FL$75,(VLOOKUP(CONCATENATE($I$5,$K$5,$M$5), $AI$12:$AJ$71, 2, FALSE)),FALSE) -> 12900 | AI23: Number of ObservationsElectricity2011 | AJ23: 13 | AN23: 11 | AO23: 1965-82 | AP23: Semi detached | AQ23: 1965-82Semi detached | AR23: 3400 | AS23: 3900 | AT23: 177100 | AU23: 3400 | AV23: 3900 | AW23: 179240 | AX23: 3400 | AY23: 4000 | AZ23: 153610 | BA23: 3600 | BB23: 4100 | BC23: 154460 | BD23: 3600 | BE23: 4100 | BF23: 153940 | BG23: 3600 | BH23: 4200 | BI23: 152950 | BJ23: 3600 | BK23: 4200 | BL23: 151800 | BM23: 3800 | BN23: 4400 | BO23: 152450 | BP23: 3900 | BQ23: 4500 | BR23: 153230 | BS23: 4000 | BT23: 4700 | BU23: 133090 | BV23: 12100 | BW23: 12700 | BX23: 172830 | BY23: 12500 | BZ23: 13100 | CA23: 162700 | CB23: 13100 | CC23: 13600 | CD23: 137340 | CE23: 13000 | CF23: 13600 | CG23: 143570 | CH23: 14100 | CI23: 14600 | CJ23: 138940 | CK23: 14300 | CL23: 14800 | CM23: 147150 | CN23: 15800 | CO23: 16400 | CP23: 135010 | CQ23: 16400 | CR23: 17000 | CS23: 133870 | CT23: 17100 | CU23: 17700 | CV23: 131660 | CW23: 18000 | CX23: 18500 | CY23: 128900 | DB23: Property Type | DC23: Mid terrace | DD23: Property TypeMid terrace | DE23: 3100 | DF23: 3700 | DG23: 797110 | DH23: 3100 | DI23: 3700 | DJ23: 807440 | DK23: 3100 | DL23: 3700 | DM23: 699840 | DN23: 3200 | DO23: 3800 | DP23: 707060 | DQ23: 3200 | DR23: 3800 | DS23: 698460 | DT23: 3200 | DU23: 3900 | DV23: 690300 | DW23: 3200 | DX23: 3900 | DY23: 686050 | DZ23: 3400 | EA23: 4100 | EB23: 685580 | EC23: 3400 | ED23: 4100 | EE23: 686420 | EF23: 3500 | EG23: 4300 | EH23: 610850 | EI23: 10700 | EJ23: 11600 | EK23: 772710 | EL23: 11000 | EM23: 12000 | EN23: 717970 | EO23: 11500 | EP23: 12400 | EQ23: 614630 | ER23: 11600 | ES23: 12500 | ET23: 642300 | EU23: 12400 | EV23: 13400 | EW23: 608310 | EX23: 12600 | EY23: 13500 | EZ23: 656080 | FA23: 13800 | FB23: 14800 | FC23: 593330 | FD23: 14400 | FE23: 15400 | FF23: 583130 | FG23: 15000 | FH23: 15900 | FI23: 568920 | FJ23: 15600 | FK23: 16600 | FL23: 559750
AI24: MedianElectricity2010 | AJ24: 14 | AN24: 12 | AO24: 1983-92 | AP24: Semi detached | AQ24: 1983-92Semi detached | AR24: 3100 | AS24: 3800 | AT24: 44860 | AU24: 3200 | AV24: 3800 | AW24: 45600 | AX24: 3200 | AY24: 3900 | AZ24: 39830 | BA24: 3300 | BB24: 4000 | BC24: 40000 | BD24: 3300 | BE24: 4000 | BF24: 40040 | BG24: 3300 | BH24: 4000 | BI24: 39780 | BJ24: 3300 | BK24: 4100 | BL24: 39440 | BM24: 3500 | BN24: 4300 | BO24: 39570 | BP24: 3500 | BQ24: 4300 | BR24: 39770 | BS24: 3600 | BT24: 4500 | BU24: 35460 | BV24: 9600 | BW24: 10200 | BX24: 42240 | BY24: 9900 | BZ24: 10500 | CA24: 40190 | CB24: 10300 | CC24: 10900 | CD24: 34780 | CE24: 10400 | CF24: 11000 | CG24: 36100 | CH24: 11100 | CI24: 11600 | CJ24: 35470 | CK24: 11200 | CL24: 11800 | CM24: 37080 | CN24: 12400 | CO24: 13000 | CP24: 34520 | CQ24: 12800 | CR24: 13400 | CS24: 34380 | CT24: 13200 | CU24: 13800 | CV24: 34210 | CW24: 13800 | CX24: 14400 | CY24: 33480 | DB24: Property Type | DC24: Bungalow | DD24: Property TypeBungalow | DE24: 3000 | DF24: 3900 | DG24: 406420 | DH24: 3000 | DI24: 3800 | DJ24: 417800 | DK24: 3000 | DL24: 3900 | DM24: 365670 | DN24: 3100 | DO24: 4000 | DP24: 367790 | DQ24: 3100 | DR24: 4000 | DS24: 360930 | DT24: 3000 | DU24: 4000 | DV24: 358800 | DW24: 3000 | DX24: 4100 | DY24: 356860 | DZ24: 3200 | EA24: 4200 | EB24: 356820 | EC24: 3200 | ED24: 4300 | EE24: 358260 | EF24: 3300 | EG24: 4400 | EH24: 321230 | EI24: 12300 | EJ24: 13500 | EK24: 347890 | EL24: 12700 | EM24: 13800 | EN24: 330880 | EO24: 13300 | EP24: 14400 | EQ24: 285590 | ER24: 13200 | ES24: 14400 | ET24: 298160 | EU24: 14200 | EV24: 15300 | EW24: 291230 | EX24: 14300 | EY24: 15500 | EZ24: 303660 | FA24: 15800 | FB24: 17000 | FC24: 282270 | FD24: 16500 | FE24: 17700 | FF24: 278960 | FG24: 17000 | FH24: 18200 | FI24: 273880 | FJ24: 17900 | FK24: 19000 | FL24: 267310
D25: =IF(C57>0,"- = figure suppressed as based on less than 30 observations", IF(C58>0, "n/a = data not available"," ")) ->  | AI25: MeanElectricity2010 | AJ25: 15 | AN25: 13 | AO25: 1993-99 | AP25: Semi detached | AQ25: 1993-99Semi detached | AR25: 3200 | AS25: 3800 | AT25: 39000 | AU25: 3200 | AV25: 3800 | AW25: 40170 | AX25: 3200 | AY25: 3800 | AZ25: 37330 | BA25: 3300 | BB25: 3900 | BC25: 37450 | BD25: 3300 | BE25: 3900 | BF25: 36950 | BG25: 3300 | BH25: 3900 | BI25: 36750 | BJ25: 3300 | BK25: 4000 | BL25: 36330 | BM25: 3400 | BN25: 4200 | BO25: 36460 | BP25: 3500 | BQ25: 4200 | BR25: 36610 | BS25: 3500 | BT25: 4300 | BU25: 32250 | BV25: 9500 | BW25: 10100 | BX25: 36910 | BY25: 9800 | BZ25: 10400 | CA25: 34510 | CB25: 10100 | CC25: 10700 | CD25: 32520 | CE25: 10200 | CF25: 10800 | CG25: 33880 | CH25: 10900 | CI25: 11500 | CJ25: 32080 | CK25: 11000 | CL25: 11600 | CM25: 33360 | CN25: 12000 | CO25: 12600 | CP25: 32110 | CQ25: 12400 | CR25: 13100 | CS25: 31320 | CT25: 12700 | CU25: 13400 | CV25: 30020 | CW25: 13300 | CX25: 14000 | CY25: 31100 | DB25: Property Type | DC25: Converted flat | DD25: Property TypeConverted flat | DE25: 2800 | DF25: 4400 | DG25: 72380 | DH25: 2500 | DI25: 3500 | DJ25: 118710 | DK25: 2600 | DL25: 3900 | DM25: 112410 | DN25: 2700 | DO25: 3900 | DP25: 114040 | DQ25: 2700 | DR25: 3900 | DS25: 84390 | DT25: 2700 | DU25: 3900 | DV25: 83100 | DW25: 2800 | DX25: 4000 | DY25: 82690 | DZ25: 2900 | EA25: 4100 | EB25: 81190 | EC25: 2900 | ED25: 4100 | EE25: 80390 | EF25: 3000 | EG25: 4300 | EH25: 72450 | EI25: 8100 | EJ25: 9600 | EK25: 68400 | EL25: 8400 | EM25: 10000 | EN25: 62480 | EO25: 8900 | EP25: 10700 | EQ25: 75420 | ER25: 8900 | ES25: 10800 | ET25: 79070 | EU25: 9800 | EV25: 11400 | EW25: 53000 | EX25: 9700 | EY25: 11400 | EZ25: 59420 | FA25: 10700 | FB25: 12400 | FC25: 50660 | FD25: 11200 | FE25: 12900 | FF25: 49450 | FG25: 11500 | FH25: 13300 | FI25: 48150 | FJ25: 12300 | FK25: 14100 | FL25: 46950
D26: =W9 ->  | AI26: Number of ObservationsElectricity2010 | AJ26: 16 | AN26: 14 | AO26: Post 1999 | AP26: Semi detached | AQ26: Post 1999Semi detached | AR26: 3200 | AS26: 3800 | AT26: 30380 | AU26: 3200 | AV26: 3700 | AW26: 32330 | AX26: 3200 | AY26: 3700 | AZ26: 25990 | BA26: 3300 | BB26: 3800 | BC26: 26060 | BD26: 3300 | BE26: 3800 | BF26: 22750 | BG26: 3300 | BH26: 3800 | BI26: 22550 | BJ26: 3200 | BK26: 3700 | BL26: 22200 | BM26: 3300 | BN26: 3800 | BO26: 20950 | BP26: 3300 | BQ26: 3900 | BR26: 18540 | BS26: 3300 | BT26: 3800 | BU26: 14380 | BV26: 10200 | BW26: 11000 | BX26: 23880 | BY26: 10400 | BZ26: 11200 | CA26: 19410 | CB26: 10700 | CC26: 11600 | CD26: 17380 | CE26: 10800 | CF26: 11700 | CG26: 19790 | CH26: 11300 | CI26: 12200 | CJ26: 13370 | CK26: 11200 | CL26: 12200 | CM26: 14110 | CN26: 12200 | CO26: 13100 | CP26: 16340 | CQ26: 13400 | CR26: 14100 | CS26: 14100 | CT26: 13900 | CU26: 14500 | CV26: 9500 | CW26: 14500 | CX26: 15100 | CY26: 12670 | DB26: Property Type | DC26: Purpose built flat | DD26: Property TypePurpose built flat | DE26: 2400 | DF26: 3500 | DG26: 554490 | DH26: 2400 | DI26: 3300 | DJ26: 592470 | DK26: 2400 | DL26: 3500 | DM26: 514930 | DN26: 2500 | DO26: 3500 | DP26: 521320 | DQ26: 2500 | DR26: 3600 | DS26: 516550 | DT26: 2500 | DU26: 3600 | DV26: 511130 | DW26: 2500 | DX26: 3700 | DY26: 508030 | DZ26: 2600 | EA26: 3800 | EB26: 502630 | EC26: 2700 | ED26: 3700 | EE26: 493850 | EF26: 2700 | EG26: 3800 | EH26: 438700 | EI26: 6500 | EJ26: 7300 | EK26: 363590 | EL26: 6800 | EM26: 7500 | EN26: 332990 | EO26: 7000 | EP26: 7800 | EQ26: 292330 | ER26: 7100 | ES26: 8000 | ET26: 306570 | EU26: 7800 | EV26: 8600 | EW26: 288630 | EX26: 7800 | EY26: 8700 | EZ26: 324170 | FA26: 8600 | FB26: 9500 | FC26: 281460 | FD26: 9200 | FE26: 10100 | FF26: 278130 | FG26: 9500 | FH26: 10300 | FI26: 268050 | FJ26: 10300 | FK26: 11000 | FL26: 261330
AI27: MedianElectricity2009 | AJ27: 17 | AN27: 15 | AO27: Pre 1919 | AP27: End terrace | AQ27: Pre 1919End terrace | AR27: 3300 | AS27: 4200 | AT27: 87260 | AU27: 3300 | AV27: 4100 | AW27: 89150 | AX27: 3400 | AY27: 4200 | AZ27: 80660 | BA27: 3500 | BB27: 4200 | BC27: 81790 | BD27: 3500 | BE27: 4300 | BF27: 76900 | BG27: 3500 | BH27: 4400 | BI27: 75800 | BJ27: 3500 | BK27: 4400 | BL27: 75250 | BM27: 3700 | BN27: 4600 | BO27: 75390 | BP27: 3700 | BQ27: 4600 | BR27: 75950 | BS27: 3900 | BT27: 4800 | BU27: 66060 | BV27: 14200 | BW27: 15200 | BX27: 81270 | BY27: 14700 | BZ27: 15700 | CA27: 75470 | CB27: 15400 | CC27: 16300 | CD27: 67100 | CE27: 15300 | CF27: 16300 | CG27: 70170 | CH27: 16600 | CI27: 17600 | CJ27: 63900 | CK27: 16600 | CL27: 17600 | CM27: 69430 | CN27: 18300 | CO27: 19200 | CP27: 61120 | CQ27: 18900 | CR27: 19900 | CS27: 60410 | CT27: 19600 | CU27: 20400 | CV27: 58890 | CW27: 20600 | CX27: 21400 | CY27: 57400 | DB27: Number of Bedrooms | DC27: 1 bedroom | DD27: Number of Bedrooms1 bedroom | DE27: 2100 | DF27: 3100 | DG27: 342800 | DH27: 2000 | DI27: 2900 | DJ27: 388110 | DK27: 2100 | DL27: 3100 | DM27: 341160 | DN27: 2100 | DO27: 3100 | DP27: 345500 | DQ27: 2100 | DR27: 3100 | DS27: 325490 | DT27: 2100 | DU27: 3200 | DV27: 322050 | DW27: 2100 | DX27: 3200 | DY27: 320440 | DZ27: 2200 | EA27: 3300 | EB27: 317910 | EC27: 2200 | ED27: 3300 | EE27: 315710 | EF27: 2300 | EG27: 3400 | EH27: 278770 | EI27: 6000 | EJ27: 6800 | EK27: 228130 | EL27: 6200 | EM27: 7000 | EN27: 210790 | EO27: 6500 | EP27: 7300 | EQ27: 191890 | ER27: 6600 | ES27: 7500 | ET27: 200630 | EU27: 7200 | EV27: 8000 | EW27: 177910 | EX27: 7200 | EY27: 8100 | EZ27: 198170 | FA27: 8000 | FB27: 9000 | FC27: 173020 | FD27: 8500 | FE27: 9400 | FF27: 171300 | FG27: 8800 | FH27: 9700 | FI27: 167360 | FJ27: 9400 | FK27: 10300 | FL27: 161490
AI28: MeanElectricity2009 | AJ28: 18 | AN28: 16 | AO28: 1919-44 | AP28: End terrace | AQ28: 1919-44End terrace | AR28: 3400 | AS28: 4000 | AT28: 72080 | AU28: 3400 | AV28: 3900 | AW28: 72480 | AX28: 3400 | AY28: 4000 | AZ28: 62840 | BA28: 3500 | BB28: 4000 | BC28: 63400 | BD28: 3500 | BE28: 4100 | BF28: 65590 | BG28: 3500 | BH28: 4100 | BI28: 64970 | BJ28: 3500 | BK28: 4100 | BL28: 64600 | BM28: 3600 | BN28: 4200 | BO28: 64660 | BP28: 3700 | BQ28: 4300 | BR28: 64890 | BS28: 3800 | BT28: 4400 | BU28: 58720 | BV28: 12500 | BW28: 13200 | BX28: 72080 | BY28: 12900 | BZ28: 13600 | CA28: 67820 | CB28: 13500 | CC28: 14200 | CD28: 57830 | CE28: 13600 | CF28: 14300 | CG28: 60360 | CH28: 14600 | CI28: 15300 | CJ28: 60310 | CK28: 14800 | CL28: 15400 | CM28: 64510 | CN28: 16300 | CO28: 17000 | CP28: 58680 | CQ28: 16900 | CR28: 17600 | CS28: 57720 | CT28: 17600 | CU28: 18200 | CV28: 57020 | CW28: 18600 | CX28: 19100 | CY28: 55640 | DB28: Number of Bedrooms | DC28: 2 bedrooms | DD28: Number of Bedrooms2 bedrooms | DE28: 2800 | DF28: 3600 | DG28: 1067210 | DH28: 2800 | DI28: 3600 | DJ28: 1117960 | DK28: 2800 | DL28: 3700 | DM28: 974170 | DN28: 2900 | DO28: 3700 | DP28: 983530 | DQ28: 2900 | DR28: 3800 | DS28: 960850 | DT28: 2900 | DU28: 3800 | DV28: 951340 | DW28: 2900 | DX28: 3800 | DY28: 945140 | DZ28: 3000 | EA28: 4000 | EB28: 940570 | EC28: 3000 | ED28: 4000 | EE28: 935830 | EF28: 3100 | EG28: 4100 | EH28: 821760 | EI28: 9700 | EJ28: 10500 | EK28: 922270 | EL28: 10000 | EM28: 10900 | EN28: 858140 | EO28: 10400 | EP28: 11300 | EQ28: 748250 | ER28: 10400 | ES28: 11300 | ET28: 782910 | EU28: 11300 | EV28: 12200 | EW28: 741890 | EX28: 11400 | EY28: 12300 | EZ28: 800060 | FA28: 12600 | FB28: 13500 | FC28: 722830 | FD28: 13200 | FE28: 14100 | FF28: 712290 | FG28: 13700 | FH28: 14600 | FI28: 691490 | FJ28: 14300 | FK28: 15300 | FL28: 680410
AI29: Number of ObservationsElectricity2009 | AJ29: 19 | AN29: 17 | AO29: 1945-64 | AP29: End terrace | AQ29: 1945-64End terrace | AR29: 3400 | AS29: 4000 | AT29: 62180 | AU29: 3400 | AV29: 3900 | AW29: 62670 | AX29: 3400 | AY29: 3900 | AZ29: 53530 | BA29: 3500 | BB29: 4000 | BC29: 53910 | BD29: 3500 | BE29: 4100 | BF29: 53880 | BG29: 3400 | BH29: 4100 | BI29: 53330 | BJ29: 3500 | BK29: 4100 | BL29: 53020 | BM29: 3600 | BN29: 4300 | BO29: 53110 | BP29: 3700 | BQ29: 4300 | BR29: 53280 | BS29: 3700 | BT29: 4400 | BU29: 48140 | BV29: 11400 | BW29: 11800 | BX29: 60880 | BY29: 11700 | BZ29: 12200 | CA29: 57400 | CB29: 12300 | CC29: 12800 | CD29: 48300 | CE29: 12400 | CF29: 12900 | CG29: 50430 | CH29: 13400 | CI29: 13900 | CJ29: 48660 | CK29: 13600 | CL29: 14100 | CM29: 51790 | CN29: 15000 | CO29: 15500 | CP29: 47080 | CQ29: 15600 | CR29: 16200 | CS29: 46560 | CT29: 16300 | CU29: 16700 | CV29: 45980 | CW29: 17200 | CX29: 17600 | CY29: 44970 | DB29: Number of Bedrooms | DC29: 3 bedrooms | DD29: Number of Bedrooms3 bedrooms | DE29: 3500 | DF29: 4100 | DG29: 1900310 | DH29: 3500 | DI29: 4100 | DJ29: 1937890 | DK29: 3500 | DL29: 4100 | DM29: 1677650 | DN29: 3600 | DO29: 4200 | DP29: 1690800 | DQ29: 3600 | DR29: 4300 | DS29: 1659470 | DT29: 3600 | DU29: 4300 | DV29: 1644630 | DW29: 3600 | DX29: 4300 | DY29: 1633770 | DZ29: 3800 | EA29: 4500 | EB29: 1634110 | EC29: 3900 | ED29: 4600 | EE29: 1636560 | EF29: 3900 | EG29: 4700 | EH29: 1448730 | EI29: 12800 | EJ29: 13600 | EK29: 1795910 | EL29: 13200 | EM29: 14000 | EN29: 1682060 | EO29: 13700 | EP29: 14600 | EQ29: 1441900 | ER29: 13700 | ES29: 14600 | ET29: 1508410 | EU29: 14800 | EV29: 15600 | EW29: 1437100 | EX29: 14900 | EY29: 15800 | EZ29: 1526590 | FA29: 16400 | FB29: 17300 | FC29: 1402150 | FD29: 17100 | FE29: 18000 | FF29: 1378720 | FG29: 17800 | FH29: 18600 | FI29: 1345520 | FJ29: 18600 | FK29: 19400 | FL29: 1326400
AI30: MedianElectricity2008 | AJ30: 20 | AN30: 18 | AO30: 1965-82 | AP30: End terrace | AQ30: 1965-82End terrace | AR30: 3400 | AS30: 4000 | AT30: 75210 | AU30: 3400 | AV30: 4000 | AW30: 75830 | AX30: 3400 | AY30: 4000 | AZ30: 65090 | BA30: 3500 | BB30: 4100 | BC30: 65560 | BD30: 3500 | BE30: 4200 | BF30: 66730 | BG30: 3500 | BH30: 4200 | BI30: 66140 | BJ30: 3600 | BK30: 4300 | BL30: 65760 | BM30: 3700 | BN30: 4500 | BO30: 65630 | BP30: 3800 | BQ30: 4500 | BR30: 65970 | BS30: 3900 | BT30: 4700 | BU30: 60000 | BV30: 10800 | BW30: 11400 | BX30: 72170 | BY30: 11200 | BZ30: 11700 | CA30: 67790 | CB30: 11700 | CC30: 12200 | CD30: 57240 | CE30: 11700 | CF30: 12300 | CG30: 59810 | CH30: 12700 | CI30: 13200 | CJ30: 58770 | CK30: 12800 | CL30: 13400 | CM30: 62830 | CN30: 14200 | CO30: 14700 | CP30: 56850 | CQ30: 14800 | CR30: 15400 | CS30: 56070 | CT30: 15400 | CU30: 16000 | CV30: 55290 | CW30: 16300 | CX30: 16800 | CY30: 53840 | DB30: Number of Bedrooms | DC30: 4 bedrooms | DD30: Number of Bedrooms4 bedrooms | DE30: 4300 | DF30: 5200 | DG30: 441050 | DH30: 4400 | DI30: 5100 | DJ30: 455950 | DK30: 4400 | DL30: 5200 | DM30: 411190 | DN30: 4600 | DO30: 5300 | DP30: 413990 | DQ30: 4600 | DR30: 5400 | DS30: 402860 | DT30: 4600 | DU30: 5400 | DV30: 399530 | DW30: 4700 | DX30: 5400 | DY30: 396530 | DZ30: 4900 | EA30: 5700 | EB30: 395740 | EC30: 5000 | ED30: 5700 | EE30: 394470 | EF30: 5100 | EG30: 5900 | EH30: 350750 | EI30: 17200 | EJ30: 18500 | EK30: 396560 | EL30: 17700 | EM30: 19000 | EN30: 366740 | EO30: 18300 | EP30: 19600 | EQ30: 332310 | ER30: 18100 | ES30: 19500 | ET30: 349930 | EU30: 19500 | EV30: 20800 | EW30: 327680 | EX30: 19700 | EY30: 20900 | EZ30: 345650 | FA30: 21400 | FB30: 22600 | FC30: 322590 | FD30: 22100 | FE30: 23200 | FF30: 312010 | FG30: 22900 | FH30: 24000 | FI30: 295920 | FJ30: 23300 | FK30: 24700 | FL30: 301030
AI31: MeanElectricity2008 | AJ31: 21 | AN31: 19 | AO31: 1983-92 | AP31: End terrace | AQ31: 1983-92End terrace | AR31: 3000 | AS31: 3900 | AT31: 22870 | AU31: 3000 | AV31: 3800 | AW31: 23280 | AX31: 3000 | AY31: 4000 | AZ31: 20470 | BA31: 3100 | BB31: 4000 | BC31: 20590 | BD31: 3200 | BE31: 4100 | BF31: 20620 | BG31: 3200 | BH31: 4100 | BI31: 20500 | BJ31: 3200 | BK31: 4200 | BL31: 20350 | BM31: 3300 | BN31: 4400 | BO31: 20360 | BP31: 3400 | BQ31: 4400 | BR31: 20460 | BS31: 3400 | BT31: 4500 | BU31: 18850 | BV31: 8900 | BW31: 9500 | BX31: 20280 | BY31: 9100 | BZ31: 9700 | CA31: 19240 | CB31: 9500 | CC31: 10100 | CD31: 16760 | CE31: 9500 | CF31: 10100 | CG31: 17450 | CH31: 10200 | CI31: 10800 | CJ31: 17110 | CK31: 10300 | CL31: 11000 | CM31: 17980 | CN31: 11200 | CO31: 11900 | CP31: 16620 | CQ31: 11700 | CR31: 12400 | CS31: 16490 | CT31: 12100 | CU31: 12800 | CV31: 16370 | CW31: 12600 | CX31: 13300 | CY31: 15970 | DB31: Number of Bedrooms | DC31: 5 or more bedrooms | DD31: Number of Bedrooms5 or more bedrooms | DE31: 5700 | DF31: 7500 | DG31: 94810 | DH31: 5600 | DI31: 6800 | DJ31: 98250 | DK31: 5800 | DL31: 7100 | DM31: 93990 | DN31: 6000 | DO31: 7200 | DP31: 94950 | DQ31: 6000 | DR31: 7200 | DS31: 91730 | DT31: 6000 | DU31: 7200 | DV31: 90820 | DW31: 6100 | DX31: 7200 | DY31: 90150 | DZ31: 6400 | EA31: 7500 | EB31: 89910 | EC31: 6500 | ED31: 7600 | EE31: 89730 | EF31: 6600 | EG31: 7700 | EH31: 80820 | EI31: 23200 | EJ31: 24300 | EK31: 72780 | EL31: 23900 | EM31: 24900 | EN31: 66290 | EO31: 24700 | EP31: 25600 | EQ31: 63920 | ER31: 24300 | ES31: 25400 | ET31: 67330 | EU31: 26000 | EV31: 26800 | EW31: 61920 | EX31: 26000 | EY31: 26700 | EZ31: 66010 | FA31: 27800 | FB31: 28100 | FC31: 58000 | FD31: 28300 | FE31: 28500 | FF31: 55230 | FG31: 29300 | FH31: 29300 | FI31: 51880 | FJ31: 30200 | FK31: 29900 | FL31: 52120
AI32: Number of ObservationsElectricity2008 | AJ32: 22 | AN32: 20 | AO32: 1993-99 | AP32: End terrace | AQ32: 1993-99End terrace | AR32: 3100 | AS32: 3800 | AT32: 18940 | AU32: 3100 | AV32: 3700 | AW32: 19580 | AX32: 3100 | AY32: 3800 | AZ32: 18160 | BA32: 3200 | BB32: 3900 | BC32: 18200 | BD32: 3200 | BE32: 3900 | BF32: 18510 | BG32: 3200 | BH32: 3900 | BI32: 18370 | BJ32: 3200 | BK32: 4000 | BL32: 18260 | BM32: 3300 | BN32: 4100 | BO32: 18220 | BP32: 3400 | BQ32: 4200 | BR32: 18350 | BS32: 3400 | BT32: 4300 | BU32: 16590 | BV32: 9200 | BW32: 9800 | BX32: 17580 | BY32: 9400 | BZ32: 10000 | CA32: 16370 | CB32: 9800 | CC32: 10400 | CD32: 15370 | CE32: 9800 | CF32: 10500 | CG32: 16040 | CH32: 10500 | CI32: 11300 | CJ32: 15600 | CK32: 10500 | CL32: 11300 | CM32: 16320 | CN32: 11500 | CO32: 12300 | CP32: 15630 | CQ32: 11900 | CR32: 12700 | CS32: 15160 | CT32: 12200 | CU32: 13000 | CV32: 14370 | CW32: 12600 | CX32: 13500 | CY32: 15150 | DB32: Floor Area (m2) | DC32: 50 or less | DD32: Floor Area (m2)50 or less | DE32: 2300 | DF32: 3400 | DG32: 458400 | DH32: 2300 | DI32: 3200 | DJ32: 527730 | DK32: 2300 | DL32: 3300 | DM32: 452740 | DN32: 2300 | DO32: 3300 | DP32: 458410 | DQ32: 2300 | DR32: 3400 | DS32: 429880 | DT32: 2300 | DU32: 3400 | DV32: 425230 | DW32: 2400 | DX32: 3500 | DY32: 422810 | DZ32: 2400 | EA32: 3600 | EB32: 417840 | EC32: 2500 | ED32: 3600 | EE32: 411120 | EF32: 2500 | EG32: 3700 | EH32: 365760 | EI32: 6200 | EJ32: 6900 | EK32: 301500 | EL32: 6500 | EM32: 7300 | EN32: 284110 | EO32: 6700 | EP32: 7400 | EQ32: 253120 | ER32: 6800 | ES32: 7600 | ET32: 265190 | EU32: 7400 | EV32: 8100 | EW32: 232950 | EX32: 7400 | EY32: 8200 | EZ32: 261310 | FA32: 8200 | FB32: 9000 | FC32: 227130 | FD32: 8700 | FE32: 9500 | FF32: 224200 | FG32: 9000 | FH32: 9700 | FI32: 216930 | FJ32: 9700 | FK32: 10400 | FL32: 210730
AI33: MedianElectricity2007 | AJ33: 23 | AN33: 21 | AO33: Post 1999 | AP33: End terrace | AQ33: Post 1999End terrace | AR33: 3200 | AS33: 3700 | AT33: 24890 | AU33: 3200 | AV33: 3700 | AW33: 26530 | AX33: 3100 | AY33: 3600 | AZ33: 20990 | BA33: 3200 | BB33: 3700 | BC33: 21070 | BD33: 3200 | BE33: 3700 | BF33: 18690 | BG33: 3200 | BH33: 3700 | BI33: 18480 | BJ33: 3100 | BK33: 3700 | BL33: 18150 | BM33: 3200 | BN33: 3700 | BO33: 16910 | BP33: 3300 | BQ33: 3800 | BR33: 14740 | BS33: 3200 | BT33: 3800 | BU33: 11440 | BV33: 10400 | BW33: 11200 | BX33: 19930 | BY33: 10500 | BZ33: 11300 | CA33: 16280 | CB33: 10900 | CC33: 11700 | CD33: 14340 | CE33: 11000 | CF33: 11900 | CG33: 15970 | CH33: 11500 | CI33: 12400 | CJ33: 10820 | CK33: 11400 | CL33: 12400 | CM33: 11440 | CN33: 12200 | CO33: 13200 | CP33: 13320 | CQ33: 13500 | CR33: 14300 | CS33: 11490 | CT33: 13900 | CU33: 14700 | CV33: 7240 | CW33: 14100 | CX33: 15100 | CY33: 10320 | DB33: Floor Area (m2) | DC33: 51 to 100 | DD33: Floor Area (m2)51 to 100 | DE33: 3000 | DF33: 3700 | DG33: 2009860 | DH33: 3100 | DI33: 3700 | DJ33: 2062940 | DK33: 3000 | DL33: 3700 | DM33: 1780930 | DN33: 3100 | DO33: 3800 | DP33: 1795740 | DQ33: 3200 | DR33: 3800 | DS33: 1781320 | DT33: 3100 | DU33: 3900 | DV33: 1765110 | DW33: 3200 | DX33: 3900 | DY33: 1753660 | DZ33: 3300 | EA33: 4100 | EB33: 1752410 | EC33: 3400 | ED33: 4100 | EE33: 1753600 | EF33: 3400 | EG33: 4200 | EH33: 1546550 | EI33: 10800 | EJ33: 11400 | EK33: 1877850 | EL33: 11200 | EM33: 11800 | EN33: 1756980 | EO33: 11600 | EP33: 12200 | EQ33: 1504330 | ER33: 11600 | ES33: 12300 | ET33: 1572120 | EU33: 12600 | EV33: 13200 | EW33: 1509840 | EX33: 12700 | EY33: 13300 | EZ33: 1612160 | FA33: 14000 | FB33: 14600 | FC33: 1474420 | FD33: 14600 | FE33: 15300 | FF33: 1451890 | FG33: 15200 | FH33: 15800 | FI33: 1417110 | FJ33: 16000 | FK33: 16600 | FL33: 1395970
AI34: MeanElectricity2007 | AJ34: 24 | AN34: 22 | AO34: Pre 1919 | AP34: Mid terrace | AQ34: Pre 1919Mid terrace | AR34: 3000 | AS34: 3700 | AT34: 367180 | AU34: 3000 | AV34: 3600 | AW34: 371650 | AX34: 3000 | AY34: 3700 | AZ34: 325490 | BA34: 3100 | BB34: 3700 | BC34: 329840 | BD34: 3100 | BE34: 3800 | BF34: 317800 | BG34: 3100 | BH34: 3800 | BI34: 313360 | BJ34: 3100 | BK34: 3800 | BL34: 311700 | BM34: 3300 | BN34: 4000 | BO34: 312270 | BP34: 3300 | BQ34: 4100 | BR34: 314410 | BS34: 3500 | BT34: 4300 | BU34: 273980 | BV34: 11600 | BW34: 12700 | BX34: 363160 | BY34: 12100 | BZ34: 13100 | CA34: 336250 | CB34: 12600 | CC34: 13700 | CD34: 288540 | CE34: 12700 | CF34: 13700 | CG34: 301440 | CH34: 13600 | CI34: 14700 | CJ34: 279750 | CK34: 13600 | CL34: 14800 | CM34: 305230 | CN34: 15100 | CO34: 16200 | CP34: 269960 | CQ34: 15700 | CR34: 16800 | CS34: 266350 | CT34: 16300 | CU34: 17200 | CV34: 261840 | CW34: 17100 | CX34: 18100 | CY34: 255200 | DB34: Floor Area (m2) | DC34: 101 to 150 | DD34: Floor Area (m2)101 to 150 | DE34: 3800 | DF34: 4400 | DG34: 1066300 | DH34: 3800 | DI34: 4400 | DJ34: 1091450 | DK34: 3800 | DL34: 4400 | DM34: 960010 | DN34: 3900 | DO34: 4500 | DP34: 967100 | DQ34: 4000 | DR34: 4600 | DS34: 941830 | DT34: 4000 | DU34: 4600 | DV34: 933440 | DW34: 4000 | DX34: 4600 | DY34: 926990 | DZ34: 4200 | EA34: 4900 | EB34: 926460 | EC34: 4300 | ED34: 4900 | EE34: 926110 | EF34: 4300 | EG34: 5100 | EH34: 818770 | EI34: 15000 | EJ34: 15800 | EK34: 995990 | EL34: 15500 | EM34: 16300 | EN34: 929840 | EO34: 16100 | EP34: 16800 | EQ34: 812960 | ER34: 16000 | ES34: 16800 | ET34: 853100 | EU34: 17300 | EV34: 18000 | EW34: 805310 | EX34: 17400 | EY34: 18200 | EZ34: 852430 | FA34: 19200 | FB34: 19900 | FC34: 789060 | FD34: 19800 | FE34: 20600 | FF34: 773120 | FG34: 20700 | FH34: 21300 | FI34: 747670 | FJ34: 21500 | FK34: 22200 | FL34: 744990
AI35: Number of ObservationsElectricity2007 | AJ35: 25 | AN35: 23 | AO35: 1919-44 | AP35: Mid terrace | AQ35: 1919-44Mid terrace | AR35: 3200 | AS35: 3700 | AT35: 113310 | AU35: 3200 | AV35: 3700 | AW35: 113810 | AX35: 3200 | AY35: 3700 | AZ35: 98330 | BA35: 3300 | BB35: 3700 | BC35: 99280 | BD35: 3300 | BE35: 3800 | BF35: 102710 | BG35: 3300 | BH35: 3800 | BI35: 101580 | BJ35: 3300 | BK35: 3800 | BL35: 101000 | BM35: 3400 | BN35: 4000 | BO35: 101240 | BP35: 3500 | BQ35: 4100 | BR35: 101690 | BS35: 3500 | BT35: 4200 | BU35: 92810 | BV35: 11100 | BW35: 11700 | BX35: 113480 | BY35: 11500 | BZ35: 12100 | CA35: 106780 | CB35: 11900 | CC35: 12500 | CD35: 90750 | CE35: 12000 | CF35: 12600 | CG35: 94410 | CH35: 13000 | CI35: 13500 | CJ35: 94400 | CK35: 13100 | CL35: 13700 | CM35: 101040 | CN35: 14400 | CO35: 15000 | CP35: 91750 | CQ35: 15000 | CR35: 15600 | CS35: 90690 | CT35: 15600 | CU35: 16100 | CV35: 89440 | CW35: 16400 | CX35: 16900 | CY35: 87410 | DB35: Floor Area (m2) | DC35: 151 to 200 | DD35: Floor Area (m2)151 to 200 | DE35: 4700 | DF35: 5700 | DG35: 206090 | DH35: 4800 | DI35: 5600 | DJ35: 215290 | DK35: 4800 | DL35: 5700 | DM35: 196470 | DN35: 5000 | DO35: 5800 | DP35: 198240 | DQ35: 5000 | DR35: 5900 | DS35: 189960 | DT35: 5000 | DU35: 5900 | DV35: 188200 | DW35: 5100 | DX35: 5900 | DY35: 186820 | DZ35: 5300 | EA35: 6200 | EB35: 186350 | EC35: 5400 | ED35: 6200 | EE35: 186200 | EF35: 5500 | EG35: 6400 | EH35: 165120 | EI35: 21100 | EJ35: 22000 | EK35: 172770 | EL35: 21800 | EM35: 22700 | EN35: 159520 | EO35: 22500 | EP35: 23300 | EQ35: 147370 | ER35: 22100 | ES35: 23100 | ET35: 155220 | EU35: 23900 | EV35: 24700 | EW35: 144720 | EX35: 24000 | EY35: 24800 | EZ35: 152950 | FA35: 26000 | FB35: 26600 | FC35: 139640 | FD35: 26700 | FE35: 27200 | FF35: 134610 | FG35: 27800 | FH35: 28100 | FI35: 127860 | FJ35: 28500 | FK35: 28800 | FL35: 128220
AI36: MedianElectricity2006 | AJ36: 26 | AN36: 24 | AO36: 1945-64 | AP36: Mid terrace | AQ36: 1945-64Mid terrace | AR36: 3300 | AS36: 3900 | AT36: 93440 | AU36: 3300 | AV36: 3800 | AW36: 94120 | AX36: 3300 | AY36: 3900 | AZ36: 80090 | BA36: 3400 | BB36: 4000 | BC36: 80780 | BD36: 3400 | BE36: 4000 | BF36: 80280 | BG36: 3400 | BH36: 3900 | BI36: 79520 | BJ36: 3400 | BK36: 4000 | BL36: 79030 | BM36: 3500 | BN36: 4200 | BO36: 79160 | BP36: 3600 | BQ36: 4200 | BR36: 79440 | BS36: 3600 | BT36: 4300 | BU36: 72410 | BV36: 10700 | BW36: 11100 | BX36: 91720 | BY36: 11100 | BZ36: 11500 | CA36: 86740 | CB36: 11600 | CC36: 11900 | CD36: 72790 | CE36: 11600 | CF36: 12000 | CG36: 75520 | CH36: 12600 | CI36: 13000 | CJ36: 72850 | CK36: 12700 | CL36: 13200 | CM36: 77630 | CN36: 14100 | CO36: 14500 | CP36: 70930 | CQ36: 14700 | CR36: 15200 | CS36: 70070 | CT36: 15200 | CU36: 15600 | CV36: 69120 | CW36: 16000 | CX36: 16400 | CY36: 67280 | DB36: Floor Area (m2) | DC36: Over 200 | DD36: Floor Area (m2)Over 200 | DE36: 6400 | DF36: 8400 | DG36: 95370 | DH36: 6300 | DI36: 7500 | DJ36: 100750 | DK36: 6500 | DL36: 7800 | DM36: 97540 | DN36: 6600 | DO36: 7900 | DP36: 98630 | DQ36: 6700 | DR36: 7900 | DS36: 98250 | DT36: n/a | DU36: n/a | DV36: n/a | DW36: n/a | DX36: n/a | DY36: n/a | DZ36: n/a | EA36: n/a | EB36: n/a | EC36: n/a | ED36: n/a | EE36: n/a | EF36: n/a | EG36: n/a | EH36: n/a | EI36: 27700 | EJ36: 27900 | EK36: 59230 | EL36: 28500 | EM36: 28600 | EN36: 53580 | EO36: 29000 | EP36: 29000 | EQ36: 53110 | ER36: 28600 | ES36: 28700 | ET36: 55920 | EU36: 30100 | EV36: 30000 | EW36: 51630 | EX36: n/a | EY36: n/a | EZ36: n/a | FA36: n/a | FB36: n/a | FC36: n/a | FD36: n/a | FE36: n/a | FF36: n/a | FG36: n/a | FH36: n/a | FI36: n/a | FJ36: n/a | FK36: n/a | FL36: n/a
AI37: MeanElectricity2006 | AJ37: 27 | AN37: 25 | AO37: 1965-82 | AP37: Mid terrace | AQ37: 1965-82Mid terrace | AR37: 3200 | AS37: 3800 | AT37: 130120 | AU37: 3300 | AV37: 3800 | AW37: 131200 | AX37: 3300 | AY37: 3800 | AZ37: 112510 | BA37: 3400 | BB37: 3900 | BC37: 113370 | BD37: 3400 | BE37: 4000 | BF37: 115000 | BG37: 3400 | BH37: 4000 | BI37: 113930 | BJ37: 3400 | BK37: 4100 | BL37: 113190 | BM37: 3600 | BN37: 4300 | BO37: 113270 | BP37: 3700 | BQ37: 4400 | BR37: 113690 | BS37: 3700 | BT37: 4500 | BU37: 103580 | BV37: 9700 | BW37: 10200 | BX37: 124690 | BY37: 9900 | BZ37: 10400 | CA37: 116860 | CB37: 10400 | CC37: 10800 | CD37: 98650 | CE37: 10500 | CF37: 11000 | CG37: 102880 | CH37: 11300 | CI37: 11800 | CJ37: 100510 | CK37: 11500 | CL37: 12000 | CM37: 107790 | CN37: 12600 | CO37: 13200 | CP37: 97460 | CQ37: 13200 | CR37: 13800 | CS37: 96150 | CT37: 13700 | CU37: 14300 | CV37: 94910 | CW37: 14500 | CX37: 15000 | CY37: 91970 | DB37: Tenure | DC37: Owner-occupied | DD37: TenureOwner-occupied | DE37: 3500 | DF37: 4300 | DG37: 2556340 | DH37: 3500 | DI37: 4200 | DJ37: 2614160 | DK37: 3500 | DL37: 4300 | DM37: 2320540 | DN37: 3700 | DO37: 4400 | DP37: 2337880 | DQ37: 3700 | DR37: 4500 | DS37: 2074800 | DT37: 3700 | DU37: 4500 | DV37: 2058340 | DW37: 3800 | DX37: 4500 | DY37: 2046360 | DZ37: 3900 | EA37: 4700 | EB37: 2044580 | EC37: 4000 | ED37: 4800 | EE37: 2044160 | EF37: 4100 | EG37: 4900 | EH37: 1801160 | EI37: 13400 | EJ37: 14400 | EK37: 2308740 | EL37: 13800 | EM37: 14900 | EN37: 2156630 | EO37: 14300 | EP37: 15400 | EQ37: 1888010 | ER37: 14200 | ES37: 15400 | ET37: 1980140 | EU37: 15400 | EV37: 16400 | EW37: 1730260 | EX37: 15500 | EY37: 16600 | EZ37: 1832850 | FA37: 17100 | FB37: 18100 | FC37: 1692420 | FD37: 17700 | FE37: 18700 | FF37: 1656920 | FG37: 18400 | FH37: 19300 | FI37: 1604490 | FJ37: 19100 | FK37: 20100 | FL37: 1595170
AI38: Number of ObservationsElectricity2006 | AJ38: 28 | AN38: 26 | AO38: 1983-92 | AP38: Mid terrace | AQ38: 1983-92Mid terrace | AR38: 2800 | AS38: 3700 | AT38: 35390 | AU38: 2900 | AV38: 3600 | AW38: 35940 | AX38: 2900 | AY38: 3800 | AZ38: 31710 | BA38: 3000 | BB38: 3800 | BC38: 31880 | BD38: 3000 | BE38: 3900 | BF38: 32410 | BG38: 3000 | BH38: 4000 | BI38: 32140 | BJ38: 3100 | BK38: 4000 | BL38: 31920 | BM38: 3200 | BN38: 4200 | BO38: 31960 | BP38: 3300 | BQ38: 4200 | BR38: 32150 | BS38: 3400 | BT38: 4400 | BU38: 29770 | BV38: 7800 | BW38: 8400 | BX38: 30380 | BY38: 8000 | BZ38: 8700 | CA38: 28710 | CB38: 8300 | CC38: 8900 | CD38: 25070 | CE38: 8300 | CF38: 9000 | CG38: 26030 | CH38: 9100 | CI38: 9700 | CJ38: 25500 | CK38: 9100 | CL38: 9800 | CM38: 27090 | CN38: 10000 | CO38: 10700 | CP38: 24780 | CQ38: 10500 | CR38: 11200 | CS38: 24510 | CT38: 10700 | CU38: 11500 | CV38: 24480 | CW38: 11300 | CX38: 12100 | CY38: 23860 | DB38: Tenure | DC38: Privately rented | DD38: TenurePrivately rented | DE38: 3100 | DF38: 4000 | DG38: 548010 | DH38: 3000 | DI38: 3800 | DJ38: 574270 | DK38: 3000 | DL38: 3900 | DM38: 495780 | DN38: 3100 | DO38: 3900 | DP38: 501500 | DQ38: 3100 | DR38: 4000 | DS38: 203170 | DT38: 3100 | DU38: 4000 | DV38: 200680 | DW38: 3200 | DX38: 4100 | DY38: 199240 | DZ38: 3300 | EA38: 4200 | EB38: 196740 | EC38: 3300 | ED38: 4200 | EE38: 194910 | EF38: 3400 | EG38: 4400 | EH38: 168510 | EI38: 11300 | EJ38: 11500 | EK38: 437660 | EL38: 10600 | EM38: 11900 | EN38: 401720 | EO38: 10500 | EP38: 11700 | EQ38: 345810 | ER38: 10500 | ES38: 11800 | ET38: 361890 | EU38: 11500 | EV38: 12600 | EW38: 143720 | EX38: 11500 | EY38: 12600 | EZ38: 157420 | FA38: 12700 | FB38: 13800 | FC38: 139740 | FD38: 13300 | FE38: 14400 | FF38: 136960 | FG38: 13900 | FH38: 14900 | FI38: 131910 | FJ38: 14800 | FK38: 15900 | FL38: 129570
AI39: MedianElectricity2005 | AJ39: 29 | AN39: 27 | AO39: 1993-99 | AP39: Mid terrace | AQ39: 1993-99Mid terrace | AR39: 2900 | AS39: 3600 | AT39: 25030 | AU39: 2900 | AV39: 3600 | AW39: 25980 | AX39: 2800 | AY39: 3600 | AZ39: 23920 | BA39: 3000 | BB39: 3600 | BC39: 24030 | BD39: 3000 | BE39: 3700 | BF39: 24690 | BG39: 3000 | BH39: 3700 | BI39: 24470 | BJ39: 3000 | BK39: 3800 | BL39: 24300 | BM39: 3100 | BN39: 3900 | BO39: 24330 | BP39: 3200 | BQ39: 3900 | BR39: 24430 | BS39: 3200 | BT39: 4100 | BU39: 22200 | BV39: 8200 | BW39: 8900 | BX39: 22910 | BY39: 8400 | BZ39: 9100 | CA39: 21390 | CB39: 8700 | CC39: 9500 | CD39: 19960 | CE39: 8900 | CF39: 9600 | CG39: 20880 | CH39: 9400 | CI39: 10200 | CJ39: 20440 | CK39: 9400 | CL39: 10300 | CM39: 21440 | CN39: 10300 | CO39: 11100 | CP39: 20330 | CQ39: 10700 | CR39: 11600 | CS39: 19730 | CT39: 10900 | CU39: 11900 | CV39: 18890 | CW39: 11400 | CX39: 12300 | CY39: 19800 | DB39: Tenure | DC39: Council/Housing Association | DD39: TenureCouncil/Housing Association | DE39: 2900 | DF39: 3600 | DG39: 731070 | DH39: 2900 | DI39: 3500 | DJ39: 749720 | DK39: 2800 | DL39: 3500 | DM39: 624360 | DN39: 2900 | DO39: 3500 | DP39: 630580 | DQ39: 3000 | DR39: 3600 | DS39: 547840 | DT39: 2900 | DU39: 3700 | DV39: 542990 | DW39: 3000 | DX39: 3700 | DY39: 539950 | DZ39: 3100 | EA39: 3900 | EB39: 537600 | EC39: 3100 | ED39: 3900 | EE39: 536120 | EF39: 3200 | EG39: 4000 | EH39: 466130 | EI39: 9000 | EJ39: 9500 | EK39: 637840 | EL39: 9300 | EM39: 9800 | EN39: 597320 | EO39: 10100 | EP39: 10700 | EQ39: 507050 | ER39: 10200 | ES39: 10900 | ET39: 527830 | EU39: 10900 | EV39: 11500 | EW39: 431550 | EX39: 11100 | EY39: 11600 | EZ39: 465540 | FA39: 12300 | FB39: 12800 | FC39: 418950 | FD39: 12900 | FE39: 13500 | FF39: 413460 | FG39: 13400 | FH39: 14000 | FI39: 403300 | FJ39: 14200 | FK39: 14800 | FL39: 390570
AI40: MeanElectricity2005 | AJ40: 30 | AN40: 28 | AO40: Post 1999 | AP40: Mid terrace | AQ40: Post 1999Mid terrace | AR40: 3100 | AS40: 3600 | AT40: 32630 | AU40: 3100 | AV40: 3500 | AW40: 34750 | AX40: 3000 | AY40: 3500 | AZ40: 27800 | BA40: 3100 | BB40: 3600 | BC40: 27890 | BD40: 3100 | BE40: 3600 | BF40: 25000 | BG40: 3100 | BH40: 3600 | BI40: 24740 | BJ40: 3000 | BK40: 3500 | BL40: 24360 | BM40: 3100 | BN40: 3600 | BO40: 22810 | BP40: 3100 | BQ40: 3600 | BR40: 20050 | BS40: 3100 | BT40: 3600 | BU40: 15590 | BV40: 9800 | BW40: 10700 | BX40: 26370 | BY40: 10100 | BZ40: 10900 | CA40: 21240 | CB40: 10300 | CC40: 11100 | CD40: 18870 | CE40: 10400 | CF40: 11300 | CG40: 21140 | CH40: 11000 | CI40: 11900 | CJ40: 14400 | CK40: 10900 | CL40: 11800 | CM40: 15370 | CN40: 11600 | CO40: 12500 | CP40: 17680 | CQ40: 12700 | CR40: 13600 | CS40: 15200 | CT40: 13100 | CU40: 14000 | CV40: 9830 | CW40: 13200 | CX40: 14200 | CY40: 13830 | DB40: Income | DC40: Less than £15,000 | DD40: IncomeLess than £15,000 | DE40: 2600 | DF40: 3400 | DG40: 720040 | DH40: 2600 | DI40: 3300 | DJ40: 740940 | DK40: 2600 | DL40: 3400 | DM40: 718190 | DN40: 2700 | DO40: 3400 | DP40: 725820 | DQ40: 2700 | DR40: 3500 | DS40: 725380 | DT40: 2700 | DU40: 3500 | DV40: 718740 | DW40: 2700 | DX40: 3500 | DY40: 711640 | DZ40: 2800 | EA40: 3700 | EB40: 707680 | EC40: 2900 | ED40: 3800 | EE40: 708680 | EF40: 3000 | EG40: 3900 | EH40: 620380 | EI40: 10000 | EJ40: 10800 | EK40: 629260 | EL40: 10400 | EM40: 11200 | EN40: 590980 | EO40: 10900 | EP40: 11700 | EQ40: 566870 | ER40: 10900 | ES40: 11800 | ET40: 591440 | EU40: 11800 | EV40: 12700 | EW40: 566670 | EX40: 12000 | EY40: 12800 | EZ40: 607220 | FA40: 13300 | FB40: 14200 | FC40: 551470 | FD40: 13900 | FE40: 14800 | FF40: 544330 | FG40: 14500 | FH40: 15300 | FI40: 530250 | FJ40: 15300 | FK40: 16200 | FL40: 518040
AI41: Number of ObservationsElectricity2005 | AJ41: 31 | AN41: 29 | AO41: Pre 1919 | AP41: Bungalow | AQ41: Pre 1919Bungalow | AR41: 3600 | AS41: 5100 | AT41: 8210 | AU41: 3700 | AV41: 4900 | AW41: 9140 | AX41: 3800 | AY41: 5200 | AZ41: 8460 | BA41: 3800 | BB41: 5100 | BC41: 8610 | BD41: 3800 | BE41: 5200 | BF41: 7240 | BG41: 3800 | BH41: 5200 | BI41: 7170 | BJ41: 3900 | BK41: 5200 | BL41: 7160 | BM41: 4000 | BN41: 5400 | BO41: 7110 | BP41: 4100 | BQ41: 5500 | BR41: 7160 | BS41: 4000 | BT41: 5500 | BU41: 6490 | BV41: 14400 | BW41: 15600 | BX41: 5000 | BY41: 15000 | BZ41: 16200 | CA41: 4650 | CB41: 15600 | CC41: 16800 | CD41: 4400 | CE41: 15400 | CF41: 16700 | CG41: 4610 | CH41: 16800 | CI41: 17700 | CJ41: 4170 | CK41: 16800 | CL41: 17900 | CM41: 4490 | CN41: 18500 | CO41: 19600 | CP41: 3970 | CQ41: 19200 | CR41: 20200 | CS41: 3860 | CT41: 19400 | CU41: 20500 | CV41: 3840 | CW41: 20600 | CX41: 21500 | CY41: 3680 | DB41: Income | DC41: £15,000 - £19,999 | DD41: Income£15,000 - £19,999 | DE41: 2800 | DF41: 3600 | DG41: 320800 | DH41: 2800 | DI41: 3500 | DJ41: 329670 | DK41: 2900 | DL41: 3600 | DM41: 281560 | DN41: 2900 | DO41: 3700 | DP41: 283950 | DQ41: 2900 | DR41: 3700 | DS41: 283840 | DT41: 2900 | DU41: 3700 | DV41: 281310 | DW41: 3000 | DX41: 3800 | DY41: 278690 | DZ41: 3100 | EA41: 4000 | EB41: 277200 | EC41: 3200 | ED41: 4000 | EE41: 277710 | EF41: 3300 | EG41: 4200 | EH41: 246430 | EI41: 10500 | EJ41: 11300 | EK41: 277390 | EL41: 10900 | EM41: 11700 | EN41: 260510 | EO41: 11800 | EP41: 12700 | EQ41: 221050 | ER41: 11800 | ES41: 12700 | ET41: 230920 | EU41: 12800 | EV41: 13700 | EW41: 221420 | EX41: 12900 | EY41: 13800 | EZ41: 236590 | FA41: 14300 | FB41: 15200 | FC41: 216370 | FD41: 14900 | FE41: 15800 | FF41: 212810 | FG41: 15500 | FH41: 16300 | FI41: 207200 | FJ41: 16400 | FK41: 17200 | FL41: 203640
AI42: MedianGas2014 | AJ42: 32 | AN42: 30 | AO42: 1919-44 | AP42: Bungalow | AQ42: 1919-44Bungalow | AR42: 3400 | AS42: 4300 | AT42: 52800 | AU42: 3400 | AV42: 4200 | AW42: 54110 | AX42: 3400 | AY42: 4300 | AZ42: 48140 | BA42: 3500 | BB42: 4400 | BC42: 48550 | BD42: 3500 | BE42: 4400 | BF42: 48890 | BG42: 3500 | BH42: 4400 | BI42: 48510 | BJ42: 3500 | BK42: 4500 | BL42: 48320 | BM42: 3700 | BN42: 4700 | BO42: 48300 | BP42: 3700 | BQ42: 4700 | BR42: 48580 | BS42: 3800 | BT42: 4800 | BU42: 45340 | BV42: 14600 | BW42: 15600 | BX42: 47670 | BY42: 15100 | BZ42: 16000 | CA42: 45250 | CB42: 15700 | CC42: 16600 | CD42: 39460 | CE42: 15500 | CF42: 16500 | CG42: 41340 | CH42: 16800 | CI42: 17700 | CJ42: 41150 | CK42: 16900 | CL42: 17800 | CM42: 43240 | CN42: 18600 | CO42: 19500 | CP42: 39780 | CQ42: 19300 | CR42: 20200 | CS42: 39130 | CT42: 19900 | CU42: 20800 | CV42: 38640 | CW42: 20800 | CX42: 21700 | CY42: 37790 | DB42: Income | DC42: £20,000 - £29,999 | DD42: Income£20,000 - £29,999 | DE42: 3000 | DF42: 3700 | DG42: 813380 | DH42: 3000 | DI42: 3700 | DJ42: 833640 | DK42: 3100 | DL42: 3800 | DM42: 680260 | DN42: 3100 | DO42: 3800 | DP42: 685520 | DQ42: 3200 | DR42: 3900 | DS42: 684510 | DT42: 3100 | DU42: 3900 | DV42: 677610 | DW42: 3200 | DX42: 4000 | DY42: 669630 | DZ42: 3300 | EA42: 4200 | EB42: 665330 | EC42: 3400 | ED42: 4200 | EE42: 665420 | EF42: 3500 | EG42: 4400 | EH42: 579700 | EI42: 10900 | EJ42: 11800 | EK42: 718110 | EL42: 11300 | EM42: 12200 | EN42: 671420 | EO42: 12000 | EP42: 13000 | EQ42: 542220 | ER42: 12000 | ES42: 13000 | ET42: 566480 | EU42: 13000 | EV42: 13900 | EW42: 541130 | EX42: 13100 | EY42: 14100 | EZ42: 579230 | FA42: 14600 | FB42: 15500 | FC42: 528250 | FD42: 15200 | FE42: 16200 | FF42: 519600 | FG42: 15900 | FH42: 16800 | FI42: 505260 | FJ42: 16800 | FK42: 17600 | FL42: 496470
AI43: MeanGas2014 | AJ43: 33 | AN43: 31 | AO43: 1945-64 | AP43: Bungalow | AQ43: 1945-64Bungalow | AR43: 2900 | AS43: 3800 | AT43: 135480 | AU43: 2900 | AV43: 3700 | AW43: 138560 | AX43: 2900 | AY43: 3800 | AZ43: 120400 | BA43: 3000 | BB43: 3900 | BC43: 121220 | BD43: 3000 | BE43: 3900 | BF43: 122260 | BG43: 3000 | BH43: 3900 | BI43: 121480 | BJ43: 3000 | BK43: 3900 | BL43: 120820 | BM43: 3100 | BN43: 4100 | BO43: 120790 | BP43: 3200 | BQ43: 4200 | BR43: 121610 | BS43: 3200 | BT43: 4300 | BU43: 108630 | BV43: 12800 | BW43: 13800 | BX43: 123080 | BY43: 13200 | BZ43: 14200 | CA43: 117300 | CB43: 13700 | CC43: 14700 | CD43: 100010 | CE43: 13600 | CF43: 14700 | CG43: 104270 | CH43: 14600 | CI43: 15600 | CJ43: 103660 | CK43: 14800 | CL43: 15800 | CM43: 108170 | CN43: 16300 | CO43: 17400 | CP43: 100190 | CQ43: 17000 | CR43: 18000 | CS43: 99040 | CT43: 17600 | CU43: 18600 | CV43: 97510 | CW43: 18400 | CX43: 19400 | CY43: 95210 | DB43: Income | DC43: £30,000 - £39,999 | DD43: Income£30,000 - £39,999 | DE43: 3300 | DF43: 4100 | DG43: 650610 | DH43: 3300 | DI43: 4000 | DJ43: 666000 | DK43: 3400 | DL43: 4100 | DM43: 558050 | DN43: 3500 | DO43: 4200 | DP43: 562000 | DQ43: 3500 | DR43: 4300 | DS43: 561080 | DT43: 3500 | DU43: 4300 | DV43: 555590 | DW43: 3600 | DX43: 4300 | DY43: 549580 | DZ43: 3700 | EA43: 4500 | EB43: 545710 | EC43: 3800 | ED43: 4600 | EE43: 544740 | EF43: 3900 | EG43: 4700 | EH43: 485060 | EI43: 12000 | EJ43: 12900 | EK43: 580390 | EL43: 12400 | EM43: 13300 | EN43: 540950 | EO43: 13000 | EP43: 14000 | EQ43: 449080 | ER43: 12900 | ES43: 13900 | ET43: 470120 | EU43: 14000 | EV43: 15000 | EW43: 447760 | EX43: 14200 | EY43: 15100 | EZ43: 478910 | FA43: 15700 | FB43: 16600 | FC43: 437720 | FD43: 16300 | FE43: 17200 | FF43: 429050 | FG43: 17000 | FH43: 17900 | FI43: 416670 | FJ43: 17800 | FK43: 18700 | FL43: 411900
AI44: Number of ObservationsGas2014 | AJ44: 34 | AN44: 32 | AO44: 1965-82 | AP44: Bungalow | AQ44: 1965-82Bungalow | AR44: 2900 | AS44: 3800 | AT44: 146440 | AU44: 2900 | AV44: 3700 | AW44: 149680 | AX44: 2900 | AY44: 3800 | AZ44: 129660 | BA44: 3000 | BB44: 3800 | BC44: 130200 | BD44: 3000 | BE44: 3900 | BF44: 126340 | BG44: 2900 | BH44: 3900 | BI44: 125710 | BJ44: 2900 | BK44: 4000 | BL44: 125080 | BM44: 3100 | BN44: 4200 | BO44: 125210 | BP44: 3200 | BQ44: 4200 | BR44: 125870 | BS44: 3200 | BT44: 4300 | BU44: 111600 | BV44: 11700 | BW44: 12800 | BX44: 122270 | BY44: 12100 | BZ44: 13100 | CA44: 116470 | CB44: 12700 | CC44: 13700 | CD44: 98920 | CE44: 12600 | CF44: 13700 | CG44: 103020 | CH44: 13500 | CI44: 14500 | CJ44: 99370 | CK44: 13600 | CL44: 14700 | CM44: 103590 | CN44: 15100 | CO44: 16200 | CP44: 96140 | CQ44: 15800 | CR44: 16900 | CS44: 95260 | CT44: 16300 | CU44: 17400 | CV44: 93740 | CW44: 17200 | CX44: 18200 | CY44: 90980 | DB44: Income | DC44: £40,000 - £49,999 | DD44: Income£40,000 - £49,999 | DE44: 3700 | DF44: 4400 | DG44: 488300 | DH44: 3700 | DI44: 4300 | DJ44: 500110 | DK44: 3700 | DL44: 4400 | DM44: 427710 | DN44: 3900 | DO44: 4500 | DP44: 430980 | DQ44: 3900 | DR44: 4500 | DS44: 430400 | DT44: 3900 | DU44: 4500 | DV44: 425940 | DW44: 3900 | DX44: 4600 | DY44: 420500 | DZ44: 4100 | EA44: 4800 | EB44: 418420 | EC44: 4100 | ED44: 4800 | EE44: 417540 | EF44: 4100 | EG44: 4900 | EH44: 373160 | EI44: 13100 | EJ44: 14100 | EK44: 439980 | EL44: 13600 | EM44: 14500 | EN44: 409570 | EO44: 14000 | EP44: 14900 | EQ44: 349690 | ER44: 13900 | ES44: 14900 | ET44: 366660 | EU44: 15000 | EV44: 16000 | EW44: 348600 | EX44: 15100 | EY44: 16100 | EZ44: 372370 | FA44: 16700 | FB44: 17600 | FC44: 340880 | FD44: 17300 | FE44: 18200 | FF44: 332830 | FG44: 18100 | FH44: 18900 | FI44: 323090 | FJ44: 18800 | FK44: 19600 | FL44: 320320
AI45: MedianGas2013 | AJ45: 35 | AN45: 33 | AO45: 1983-92 | AP45: Bungalow | AQ45: 1983-92Bungalow | AR45: 2800 | AS45: 3800 | AT45: 40840 | AU45: 2800 | AV45: 3800 | AW45: 42080 | AX45: 2800 | AY45: 3900 | AZ45: 36830 | BA45: 2900 | BB45: 3900 | BC45: 36930 | BD45: 2900 | BE45: 3900 | BF45: 35580 | BG45: 2900 | BH45: 3900 | BI45: 35450 | BJ45: 2900 | BK45: 4000 | BL45: 35190 | BM45: 3000 | BN45: 4200 | BO45: 35340 | BP45: 3100 | BQ45: 4200 | BR45: 35480 | BS45: 3100 | BT45: 4300 | BU45: 31960 | BV45: 11000 | BW45: 12100 | BX45: 33700 | BY45: 11400 | BZ45: 12400 | CA45: 32410 | CB45: 11800 | CC45: 12900 | CD45: 28230 | CE45: 11800 | CF45: 12900 | CG45: 29300 | CH45: 12600 | CI45: 13800 | CJ45: 28570 | CK45: 12800 | CL45: 14000 | CM45: 29380 | CN45: 14100 | CO45: 15300 | CP45: 27730 | CQ45: 14700 | CR45: 16000 | CS45: 27740 | CT45: 15200 | CU45: 16400 | CV45: 27320 | CW45: 15900 | CX45: 17100 | CY45: 26690 | DB45: Income | DC45: £50,000 - £59,999 | DD45: Income£50,000 - £59,999 | DE45: 3800 | DF45: 4600 | DG45: 282610 | DH45: 3900 | DI45: 4500 | DJ45: 290310 | DK45: 3900 | DL45: 4600 | DM45: 252680 | DN45: 4000 | DO45: 4700 | DP45: 254770 | DQ45: 4000 | DR45: 4700 | DS45: 254180 | DT45: 4000 | DU45: 4700 | DV45: 251530 | DW45: 4000 | DX45: 4700 | DY45: 248190 | DZ45: 4200 | EA45: 4900 | EB45: 246530 | EC45: 4200 | ED45: 5000 | EE45: 245210 | EF45: 4300 | EG45: 5100 | EH45: 221260 | EI45: 13800 | EJ45: 14900 | EK45: 251780 | EL45: 14300 | EM45: 15400 | EN45: 233160 | EO45: 14700 | EP45: 15700 | EQ45: 203880 | ER45: 14600 | ES45: 15700 | ET45: 214250 | EU45: 15700 | EV45: 16700 | EW45: 202690 | EX45: 15800 | EY45: 16800 | EZ45: 216340 | FA45: 17300 | FB45: 18300 | FC45: 198570 | FD45: 18000 | FE45: 18900 | FF45: 193380 | FG45: 18700 | FH45: 19600 | FI45: 186350 | FJ45: 19500 | FK45: 20300 | FL45: 185870
AI46: MeanGas2013 | AJ46: 36 | AN46: 34 | AO46: 1993-99 | AP46: Bungalow | AQ46: 1993-99Bungalow | AR46: 3000 | AS46: 4000 | AT46: 13030 | AU46: 3000 | AV46: 3900 | AW46: 13710 | AX46: 3000 | AY46: 4100 | AZ46: 12850 | BA46: 3100 | BB46: 4100 | BC46: 12920 | BD46: 3100 | BE46: 4100 | BF46: 12450 | BG46: 3100 | BH46: 4100 | BI46: 12370 | BJ46: 3100 | BK46: 4100 | BL46: 12280 | BM46: 3200 | BN46: 4300 | BO46: 12350 | BP46: 3300 | BQ46: 4400 | BR46: 12400 | BS46: 3300 | BT46: 4500 | BU46: 11300 | BV46: 11000 | BW46: 12200 | BX46: 10170 | BY46: 11300 | BZ46: 12500 | CA46: 9730 | CB46: 11700 | CC46: 13000 | CD46: 9340 | CE46: 11700 | CF46: 13000 | CG46: 9690 | CH46: 12400 | CI46: 13800 | CJ46: 9500 | CK46: 12600 | CL46: 13900 | CM46: 9800 | CN46: 13700 | CO46: 15100 | CP46: 9350 | CQ46: 14200 | CR46: 15600 | CS46: 9260 | CT46: 14500 | CU46: 15900 | CV46: 9000 | CW46: 15200 | CX46: 16500 | CY46: 8940 | DB46: Income | DC46: £60,000 - £69,999 | DD46: Income£60,000 - £69,999 | DE46: 4000 | DF46: 4700 | DG46: 174040 | DH46: 4000 | DI46: 4600 | DJ46: 179220 | DK46: 4000 | DL46: 4800 | DM46: 158850 | DN46: 4200 | DO46: 4900 | DP46: 160020 | DQ46: 4200 | DR46: 4900 | DS46: 159730 | DT46: 4200 | DU46: 4900 | DV46: 157960 | DW46: 4200 | DX46: 4900 | DY46: 155900 | DZ46: 4400 | EA46: 5100 | EB46: 154730 | EC46: 4400 | ED46: 5200 | EE46: 153800 | EF46: 4400 | EG46: 5200 | EH46: 139400 | EI46: 14600 | EJ46: 15700 | EK46: 153680 | EL46: 15100 | EM46: 16200 | EN46: 142220 | EO46: 15400 | EP46: 16500 | EQ46: 126730 | ER46: 15300 | ES46: 16400 | ET46: 133360 | EU46: 16400 | EV46: 17500 | EW46: 125840 | EX46: 16500 | EY46: 17600 | EZ46: 134150 | FA46: 18100 | FB46: 19100 | FC46: 123640 | FD46: 18700 | FE46: 19700 | FF46: 119580 | FG46: 19400 | FH46: 20400 | FI46: 114700 | FJ46: 20100 | FK46: 21000 | FL46: 115240
AI47: Number of ObservationsGas2013 | AJ47: 37 | AN47: 35 | AO47: Post 1999 | AP47: Bungalow | AQ47: Post 1999Bungalow | AR47: 3000 | AS47: 4000 | AT47: 9630 | AU47: 3100 | AV47: 3900 | AW47: 10520 | AX47: 3100 | AY47: 4100 | AZ47: 9330 | BA47: 3200 | BB47: 4200 | BC47: 9370 | BD47: 3200 | BE47: 4100 | BF47: 7520 | BG47: 3100 | BH47: 4000 | BI47: 7450 | BJ47: 3100 | BK47: 4000 | BL47: 7360 | BM47: 3200 | BN47: 4100 | BO47: 7080 | BP47: 3300 | BQ47: 4200 | BR47: 6530 | BS47: 3300 | BT47: 4200 | BU47: 5330 | BV47: 10500 | BW47: 11900 | BX47: 6000 | BY47: 10800 | BZ47: 12300 | CA47: 5080 | CB47: 11600 | CC47: 13000 | CD47: 5230 | CE47: 11400 | CF47: 12900 | CG47: 5940 | CH47: 12300 | CI47: 13700 | CJ47: 4410 | CK47: 12200 | CL47: 13700 | CM47: 4580 | CN47: 13000 | CO47: 14500 | CP47: 4730 | CQ47: 13900 | CR47: 15200 | CS47: 4300 | CT47: 14400 | CU47: 15800 | CV47: 3470 | CW47: 15200 | CX47: 16500 | CY47: 3660 | DB47: Income | DC47: £70,000 - £99,999 | DD47: Income£70,000 - £99,999 | DE47: 4300 | DF47: 5100 | DG47: 239620 | DH47: 4300 | DI47: 5000 | DJ47: 247140 | DK47: 4300 | DL47: 5000 | DM47: 220500 | DN47: 4400 | DO47: 5200 | DP47: 222520 | DQ47: 4400 | DR47: 5200 | DS47: 221930 | DT47: 4400 | DU47: 5200 | DV47: 219270 | DW47: 4400 | DX47: 5200 | DY47: 216860 | DZ47: 4600 | EA47: 5400 | EB47: 215220 | EC47: 4700 | ED47: 5400 | EE47: 214270 | EF47: 4600 | EG47: 5500 | EH47: 196080 | EI47: 16100 | EJ47: 17200 | EK47: 210960 | EL47: 16600 | EM47: 17800 | EN47: 194810 | EO47: 16500 | EP47: 17700 | EQ47: 173760 | ER47: 16400 | ES47: 17600 | ET47: 182990 | EU47: 17600 | EV47: 18700 | EW47: 172140 | EX47: 17600 | EY47: 18700 | EZ47: 184230 | FA47: 19300 | FB47: 20300 | FC47: 168410 | FD47: 19800 | FE47: 20800 | FF47: 162500 | FG47: 20600 | FH47: 21400 | FI47: 155990 | FJ47: 21200 | FK47: 22100 | FL47: 157160
AI48: MedianGas2012 | AJ48: 38 | AN48: 36 | AO48: Pre 1919 | AP48: Converted flat | AQ48: Pre 1919Converted flat | AR48: 2700 | AS48: 4400 | AT48: 52530 | AU48: 2400 | AV48: 3400 | AW48: 94410 | AX48: 2600 | AY48: 3800 | AZ48: 89450 | BA48: 2600 | BB48: 3800 | BC48: 90760 | BD48: 2700 | BE48: 3800 | BF48: 64790 | BG48: 2700 | BH48: 3800 | BI48: 63880 | BJ48: 2700 | BK48: 3900 | BL48: 63520 | BM48: 2800 | BN48: 4000 | BO48: 62490 | BP48: 2800 | BQ48: 4000 | BR48: 62210 | BS48: 2900 | BT48: 4200 | BU48: 56720 | BV48: 8300 | BW48: 9800 | BX48: 56820 | BY48: 8600 | BZ48: 10200 | CA48: 51920 | CB48: 9000 | CC48: 10800 | CD48: 63510 | CE48: 9100 | CF48: 10900 | CG48: 66530 | CH48: 10000 | CI48: 11700 | CJ48: 43080 | CK48: 10000 | CL48: 11700 | CM48: 48400 | CN48: 10900 | CO48: 12700 | CP48: 41210 | CQ48: 11400 | CR48: 13200 | CS48: 40290 | CT48: 11800 | CU48: 13600 | CV48: 39300 | CW48: 12500 | CX48: 14400 | CY48: 38400 | DB48: Income | DC48: £100,000 - £149,999 | DD48: Income£100,000 - £149,999 | DE48: 4900 | DF48: 6100 | DG48: 108840 | DH48: 5000 | DI48: 5800 | DJ48: 112790 | DK48: 4900 | DL48: 5800 | DM48: 106380 | DN48: 5100 | DO48: 5900 | DP48: 107480 | DQ48: 5100 | DR48: 6000 | DS48: 107270 | DT48: 5000 | DU48: 5900 | DV48: 105920 | DW48: 5000 | DX48: 5900 | DY48: 104920 | DZ48: 5200 | EA48: 6100 | EB48: 104260 | EC48: 5300 | ED48: 6100 | EE48: 104020 | EF48: 5300 | EG48: 6200 | EH48: 95940 | EI48: 18900 | EJ48: 20200 | EK48: 92610 | EL48: 19500 | EM48: 20800 | EN48: 84730 | EO48: 19100 | EP48: 20400 | EQ48: 80760 | ER48: 18900 | ES48: 20200 | ET48: 85330 | EU48: 20200 | EV48: 21400 | EW48: 80350 | EX48: 20100 | EY48: 21300 | EZ48: 86090 | FA48: 21800 | FB48: 22800 | FC48: 77790 | FD48: 22300 | FE48: 23300 | FF48: 74760 | FG48: 23100 | FH48: 23900 | FI48: 71470 | FJ48: 23500 | FK48: 24500 | FL48: 72040
AI49: MeanGas2012 | AJ49: 39 | AN49: 37 | AO49: 1919-44 | AP49: Converted flat | AQ49: 1919-44Converted flat | AR49: 2400 | AS49: 3600 | AT49: 6000 | AU49: 2400 | AV49: 3300 | AW49: 7530 | AX49: 2500 | AY49: 3800 | AZ49: 7400 | BA49: 2600 | BB49: 3800 | BC49: 7530 | BD49: 2500 | BE49: 3600 | BF49: 6180 | BG49: 2500 | BH49: 3600 | BI49: 6050 | BJ49: 2600 | BK49: 3700 | BL49: 6040 | BM49: 2700 | BN49: 3900 | BO49: 5930 | BP49: 2700 | BQ49: 3900 | BR49: 5890 | BS49: 2800 | BT49: 4000 | BU49: 5390 | BV49: 7800 | BW49: 9200 | BX49: 5470 | BY49: 8100 | BZ49: 9500 | CA49: 5050 | CB49: 8700 | CC49: 10500 | CD49: 5740 | CE49: 8600 | CF49: 10500 | CG49: 5960 | CH49: 9400 | CI49: 10800 | CJ49: 4710 | CK49: 9300 | CL49: 10700 | CM49: 5230 | CN49: 10400 | CO49: 11900 | CP49: 4510 | CQ49: 10800 | CR49: 12500 | CS49: 4410 | CT49: 11200 | CU49: 12800 | CV49: 4310 | CW49: 12100 | CX49: 13700 | CY49: 4100 | DB49: Income | DC49: £150,000 and over | DD49: Income£150,000 and over | DE49: 5800 | DF49: 7400 | DG49: 37180 | DH49: 5800 | DI49: 6900 | DJ49: 38320 | DK49: 5300 | DL49: 6500 | DM49: 36490 | DN49: 5500 | DO49: 6700 | DP49: 36910 | DQ49: 5500 | DR49: 6700 | DS49: 36860 | DT49: 5500 | DU49: 6600 | DV49: 36380 | DW49: 5500 | DX49: 6600 | DY49: 36090 | DZ49: 5700 | EA49: 6700 | EB49: 35850 | EC49: 5700 | ED49: 6800 | EE49: 35780 | EF49: 5600 | EG49: 6700 | EH49: 33510 | EI49: 21600 | EJ49: 22900 | EK49: 30100 | EL49: 22100 | EM49: 23500 | EN49: 27320 | EO49: 20200 | EP49: 22000 | EQ49: 26830 | ER49: 20000 | ES49: 21700 | ET49: 28320 | EU49: 21200 | EV49: 22800 | EW49: 26450 | EX49: 21100 | EY49: 22700 | EZ49: 28650 | FA49: 22700 | FB49: 24000 | FC49: 25340 | FD49: 23100 | FE49: 24300 | FF49: 24280 | FG49: 23800 | FH49: 24800 | FI49: 23200 | FJ49: 24300 | FK49: 25300 | FL49: 23250
G50: =W7 ->  | AI50: Number of ObservationsGas2012 | AJ50: 40 | AN50: 38 | AO50: 1945-64 | AP50: Converted flat | AQ50: 1945-64Converted flat | AR50: 2700 | AS50: 4000 | AT50: 2220 | AU50: 2700 | AV50: 3800 | AW50: 2610 | AX50: 2900 | AY50: 4400 | AZ50: 2620 | BA50: 3000 | BB50: 4300 | BC50: 2630 | BD50: 2900 | BE50: 4100 | BF50: 1900 | BG50: 2800 | BH50: 4100 | BI50: 1870 | BJ50: 2900 | BK50: 4100 | BL50: 1850 | BM50: 3100 | BN50: 4300 | BO50: 1820 | BP50: 3100 | BQ50: 4400 | BR50: 1800 | BS50: 3100 | BT50: 4500 | BU50: 1660 | BV50: 7500 | BW50: 8800 | BX50: 1640 | BY50: 7900 | BZ50: 9100 | CA50: 1510 | CB50: 8500 | CC50: 10300 | CD50: 1680 | CE50: 8700 | CF50: 10400 | CG50: 1770 | CH50: 9100 | CI50: 10600 | CJ50: 1200 | CK50: 9200 | CL50: 10900 | CM50: 1330 | CN50: 9900 | CO50: 11600 | CP50: 1130 | CQ50: 10500 | CR50: 12300 | CS50: 1070 | CT50: 10900 | CU50: 12500 | CV50: 1050 | CW50: 11800 | CX50: 13400 | CY50: 1020 | DB50: Region | DC50: North East | DD50: RegionNorth East | DE50: 3000 | DF50: 3500 | DG50: 197790 | DH50: 3000 | DI50: 3500 | DJ50: 204010 | DK50: 3000 | DL50: 3500 | DM50: 178090 | DN50: 3100 | DO50: 3600 | DP50: 179790 | DQ50: 3100 | DR50: 3600 | DS50: 188300 | DT50: 3100 | DU50: 3600 | DV50: 186440 | DW50: 3100 | DX50: 3600 | DY50: 185240 | DZ50: 3200 | EA50: 3800 | EB50: 185150 | EC50: 3300 | ED50: 3900 | EE50: 184860 | EF50: 3300 | EG50: 3900 | EH50: 183100 | EI50: 12500 | EJ50: 13300 | EK50: 186980 | EL50: 13000 | EM50: 13800 | EN50: 174300 | EO50: 13500 | EP50: 14400 | EQ50: 151640 | ER50: 13400 | ES50: 14300 | ET50: 157510 | EU50: 14400 | EV50: 15200 | EW50: 158850 | EX50: 14600 | EY50: 15500 | EZ50: 169620 | FA50: 16400 | FB50: 17200 | FC50: 155790 | FD50: 17100 | FE50: 17900 | FF50: 153390 | FG50: 17900 | FH50: 18600 | FI50: 147830 | FJ50: 18900 | FK50: 19600 | FL50: 146970
G51: =W8 ->  | AI51: MedianGas2011 | AJ51: 41 | AN51: 39 | AO51: 1965-82 | AP51: Converted flat | AQ51: 1965-82Converted flat | AR51: 2600 | AS51: 4000 | AT51: 1880 | AU51: 2500 | AV51: 3700 | AW51: 2240 | AX51: 2600 | AY51: 4100 | AZ51: 2070 | BA51: 2800 | BB51: 4100 | BC51: 2110 | BD51: 2800 | BE51: 4200 | BF51: 1640 | BG51: 2700 | BH51: 4200 | BI51: 1590 | BJ51: 2800 | BK51: 4300 | BL51: 1610 | BM51: 2900 | BN51: 4400 | BO51: 1550 | BP51: 3000 | BQ51: 4400 | BR51: 1530 | BS51: 3000 | BT51: 4500 | BU51: 1360 | BV51: 6700 | BW51: 7500 | BX51: 990 | BY51: 7100 | BZ51: 7900 | CA51: 920 | CB51: 7700 | CC51: 9600 | CD51: 950 | CE51: 7800 | CF51: 9700 | CG51: 1010 | CH51: 8800 | CI51: 10200 | CJ51: 680 | CK51: 8600 | CL51: 10200 | CM51: 780 | CN51: 9300 | CO51: 11300 | CP51: 660 | CQ51: 9800 | CR51: 11600 | CS51: 630 | CT51: 10300 | CU51: 11800 | CV51: 620 | CW51: 10800 | CX51: 12500 | CY51: 590 | DB51: Region | DC51: North West | DD51: RegionNorth West | DE51: 3300 | DF51: 3900 | DG51: 518210 | DH51: 3300 | DI51: 3800 | DJ51: 533990 | DK51: 3300 | DL51: 3900 | DM51: 464220 | DN51: 3400 | DO51: 4000 | DP51: 468120 | DQ51: 3400 | DR51: 4000 | DS51: 488210 | DT51: 3400 | DU51: 4100 | DV51: 482290 | DW51: 3400 | DX51: 4100 | DY51: 474620 | DZ51: 3600 | EA51: 4300 | EB51: 480740 | EC51: 3600 | ED51: 4300 | EE51: 478990 | EF51: 3700 | EG51: 4500 | EH51: 303900 | EI51: 11800 | EJ51: 12800 | EK51: 488520 | EL51: 12400 | EM51: 13400 | EN51: 454290 | EO51: 13000 | EP51: 14000 | EQ51: 392700 | ER51: 13000 | ES51: 14100 | ET51: 409150 | EU51: 14100 | EV51: 15100 | EW51: 411070 | EX51: 14300 | EY51: 15400 | EZ51: 436520 | FA51: 16000 | FB51: 17000 | FC51: 404260 | FD51: 16600 | FE51: 17600 | FF51: 398840 | FG51: 17300 | FH51: 18200 | FI51: 384370 | FJ51: 18200 | FK51: 19000 | FL51: 384080
AI52: MeanGas2011 | AJ52: 42 | AN52: 40 | AO52: 1983-92 | AP52: Converted flat | AQ52: 1983-92Converted flat | AR52: 2900 | AS52: 4400 | AT52: 1890 | AU52: 2800 | AV52: 4200 | AW52: 2230 | AX52: 2900 | AY52: 4400 | AZ52: 2030 | BA52: 3000 | BB52: 4300 | BC52: 2060 | BD52: 3500 | BE52: 4800 | BF52: 2000 | BG52: 3400 | BH52: 4700 | BI52: 1950 | BJ52: 3400 | BK52: 4800 | BL52: 1980 | BM52: 3600 | BN52: 5000 | BO52: 1970 | BP52: 3500 | BQ52: 4900 | BR52: 1960 | BS52: 3500 | BT52: 4900 | BU52: 1710 | BV52: 6900 | BW52: 7900 | BX52: 830 | BY52: 7100 | BZ52: 8200 | CA52: 750 | CB52: 7000 | CC52: 8600 | CD52: 770 | CE52: 7200 | CF52: 8500 | CG52: 810 | CH52: 7500 | CI52: 8700 | CJ52: 730 | CK52: 7800 | CL52: 8900 | CM52: 790 | CN52: 8400 | CO52: 9600 | CP52: 700 | CQ52: 8900 | CR52: 10100 | CS52: 690 | CT52: 9100 | CU52: 10300 | CV52: 680 | CW52: 9800 | CX52: 10900 | CY52: 670 | DB52: Region | DC52: Yorks & Humber | DD52: RegionYorks & Humber | DE52: 3100 | DF52: 3800 | DG52: 381540 | DH52: 3100 | DI52: 3700 | DJ52: 391620 | DK52: 3100 | DL52: 3800 | DM52: 344270 | DN52: 3200 | DO52: 3900 | DP52: 347090 | DQ52: 3200 | DR52: 3900 | DS52: 362450 | DT52: 3200 | DU52: 3900 | DV52: 359720 | DW52: 3200 | DX52: 3900 | DY52: 357150 | DZ52: 3400 | EA52: 4100 | EB52: 355280 | EC52: 3500 | ED52: 4200 | EE52: 354240 | EF52: 3500 | EG52: 4300 | EH52: 351260 | EI52: 12400 | EJ52: 13400 | EK52: 350590 | EL52: 12700 | EM52: 13700 | EN52: 326430 | EO52: 13400 | EP52: 14400 | EQ52: 284120 | ER52: 13500 | ES52: 14600 | ET52: 297070 | EU52: 14400 | EV52: 15400 | EW52: 303130 | EX52: 14500 | EY52: 15500 | EZ52: 321920 | FA52: 16000 | FB52: 16900 | FC52: 293960 | FD52: 16700 | FE52: 17600 | FF52: 289690 | FG52: 17300 | FH52: 18200 | FI52: 279760 | FJ52: 18200 | FK52: 19000 | FL52: 269630
AI53: Number of ObservationsGas2011 | AJ53: 43 | AN53: 41 | AO53: 1993-99 | AP53: Converted flat | AQ53: 1993-99Converted flat | AR53: 3300 | AS53: 4800 | AT53: 2260 | AU53: 3100 | AV53: 4500 | AW53: 2800 | AX53: 3300 | AY53: 4700 | AZ53: 2840 | BA53: 3400 | BB53: 4700 | BC53: 2860 | BD53: 3500 | BE53: 4800 | BF53: 2690 | BG53: 3400 | BH53: 4800 | BI53: 2650 | BJ53: 3600 | BK53: 5000 | BL53: 2630 | BM53: 3800 | BN53: 5100 | BO53: 2620 | BP53: 3700 | BQ53: 5000 | BR53: 2630 | BS53: 3800 | BT53: 5400 | BU53: 2240 | BV53: 6500 | BW53: 7600 | BX53: 1060 | BY53: 6300 | BZ53: 7800 | CA53: 960 | CB53: 6900 | CC53: 8200 | CD53: 1100 | CE53: 6900 | CF53: 8400 | CG53: 1140 | CH53: 7400 | CI53: 9100 | CJ53: 1030 | CK53: 7200 | CL53: 8900 | CM53: 1140 | CN53: 8200 | CO53: 9900 | CP53: 970 | CQ53: 8700 | CR53: 10400 | CS53: 950 | CT53: 8700 | CU53: 10600 | CV53: 940 | CW53: 9400 | CX53: 11300 | CY53: 930 | DB53: Region | DC53: East Midlands | DD53: RegionEast Midlands | DE53: 3200 | DF53: 4000 | DG53: 322940 | DH53: 3200 | DI53: 3900 | DJ53: 331150 | DK53: 3300 | DL53: 4000 | DM53: 286740 | DN53: 3400 | DO53: 4100 | DP53: 288530 | DQ53: 3400 | DR53: 4100 | DS53: 301380 | DT53: 3400 | DU53: 4100 | DV53: 299250 | DW53: 3400 | DX53: 4200 | DY53: 298130 | DZ53: 3600 | EA53: 4400 | EB53: 298450 | EC53: 3600 | ED53: 4400 | EE53: 296590 | EF53: 3700 | EG53: 4500 | EH53: 290760 | EI53: 12400 | EJ53: 13300 | EK53: 293010 | EL53: 12800 | EM53: 13700 | EN53: 273740 | EO53: 13300 | EP53: 14300 | EQ53: 234760 | ER53: 13400 | ES53: 14300 | ET53: 245340 | EU53: 14400 | EV53: 15300 | EW53: 247530 | EX53: 14400 | EY53: 15300 | EZ53: 263200 | FA53: 15900 | FB53: 16700 | FC53: 240530 | FD53: 16500 | FE53: 17400 | FF53: 240410 | FG53: 17200 | FH53: 17900 | FI53: 227080 | FJ53: 18200 | FK53: 18900 | FL53: 226840
AI54: MedianGas2010 | AJ54: 44 | AN54: 42 | AO54: Post 1999 | AP54: Converted flat | AQ54: Post 1999Converted flat | AR54: 3800 | AS54: 5100 | AT54: 5600 | AU54: 3600 | AV54: 4700 | AW54: 6890 | AX54: 3900 | AY54: 5100 | AZ54: 5990 | BA54: 3800 | BB54: 4900 | BC54: 6080 | BD54: 3900 | BE54: 5200 | BF54: 4790 | BG54: 3800 | BH54: 5200 | BI54: 4710 | BJ54: 3700 | BK54: 5100 | BL54: 4670 | BM54: 3800 | BN54: 5200 | BO54: 4430 | BP54: 3700 | BQ54: 5100 | BR54: 3970 | BS54: 3700 | BT54: 5200 | BU54: 3020 | BV54: 6700 | BW54: 8000 | BX54: 1600 | BY54: 6900 | BZ54: 8300 | CA54: 1380 | CB54: 7100 | CC54: 8500 | CD54: 1670 | CE54: 7000 | CF54: 8700 | CG54: 1840 | CH54: 7700 | CI54: 9500 | CJ54: 1350 | CK54: 7800 | CL54: 9600 | CM54: 1500 | CN54: 8200 | CO54: 10000 | CP54: 1260 | CQ54: 8900 | CR54: 10700 | CS54: 1210 | CT54: 9300 | CU54: 11000 | CV54: 1040 | CW54: 10500 | CX54: 11600 | CY54: 1060 | DB54: Region | DC54: West Midlands | DD54: RegionWest Midlands | DE54: 3400 | DF54: 4100 | DG54: 379150 | DH54: 3400 | DI54: 4000 | DJ54: 399690 | DK54: 3400 | DL54: 4100 | DM54: 343860 | DN54: 3500 | DO54: 4200 | DP54: 346830 | DQ54: 3500 | DR54: 4200 | DS54: 362330 | DT54: 3500 | DU54: 4200 | DV54: 359660 | DW54: 3500 | DX54: 4300 | DY54: 357020 | DZ54: 3700 | EA54: 4500 | EB54: 358520 | EC54: 3800 | ED54: 4500 | EE54: 359200 | EF54: 4000 | EG54: 4900 | EH54: 194760 | EI54: 12200 | EJ54: 13200 | EK54: 352440 | EL54: 12500 | EM54: 13500 | EN54: 329150 | EO54: 13100 | EP54: 14000 | EQ54: 285130 | ER54: 13200 | ES54: 14200 | ET54: 298180 | EU54: 14100 | EV54: 15000 | EW54: 303690 | EX54: 14200 | EY54: 15200 | EZ54: 322000 | FA54: 15700 | FB54: 16700 | FC54: 294300 | FD54: 16300 | FE54: 17200 | FF54: 293460 | FG54: 16900 | FH54: 17800 | FI54: 282440 | FJ54: 17800 | FK54: 18600 | FL54: 278190
AI55: MeanGas2010 | AJ55: 45 | AN55: 43 | AO55: Pre 1919 | AP55: Purpose built flat | AQ55: Pre 1919Purpose built flat | AR55: 2300 | AS55: 3200 | AT55: 21190 | AU55: 2300 | AV55: 3000 | AW55: 23380 | AX55: 2400 | AY55: 3300 | AZ55: 21330 | BA55: 2500 | BB55: 3300 | BC55: 21690 | BD55: 2500 | BE55: 3200 | BF55: 21820 | BG55: 2500 | BH55: 3200 | BI55: 21370 | BJ55: 2500 | BK55: 3300 | BL55: 21300 | BM55: 2600 | BN55: 3400 | BO55: 21290 | BP55: 2600 | BQ55: 3400 | BR55: 21320 | BS55: 2700 | BT55: 3500 | BU55: 20900 | BV55: 8900 | BW55: 9900 | BX55: 20510 | BY55: 9400 | BZ55: 10200 | CA55: 18520 | CB55: 9800 | CC55: 10800 | CD55: 17700 | CE55: 9700 | CF55: 10800 | CG55: 18530 | CH55: 10500 | CI55: 11400 | CJ55: 17400 | CK55: 10600 | CL55: 11500 | CM55: 19960 | CN55: 11700 | CO55: 12700 | CP55: 16790 | CQ55: 12200 | CR55: 13100 | CS55: 16540 | CT55: 12600 | CU55: 13500 | CV55: 16350 | CW55: 13400 | CX55: 14300 | CY55: 15900 | DB55: Region | DC55: East of England | DD55: RegionEast of England | DE55: 3500 | DF55: 4400 | DG55: 414750 | DH55: 3500 | DI55: 4300 | DJ55: 420540 | DK55: 3500 | DL55: 4400 | DM55: 369210 | DN55: 3600 | DO55: 4400 | DP55: 371770 | DQ55: 3600 | DR55: 4500 | DS55: 385920 | DT55: 3600 | DU55: 4500 | DV55: 382430 | DW55: 3600 | DX55: 4500 | DY55: 380050 | DZ55: 3800 | EA55: 4800 | EB55: 379210 | EC55: 3900 | ED55: 4800 | EE55: 376710 | EF55: 3900 | EG55: 4900 | EH55: 373010 | EI55: 12100 | EJ55: 13200 | EK55: 340050 | EL55: 12400 | EM55: 13600 | EN55: 318680 | EO55: 13000 | EP55: 14100 | EQ55: 276810 | ER55: 13000 | ES55: 14100 | ET55: 289500 | EU55: 14000 | EV55: 15100 | EW55: 288100 | EX55: 14100 | EY55: 15100 | EZ55: 305840 | FA55: 15300 | FB55: 16400 | FC55: 286490 | FD55: 15900 | FE55: 17000 | FF55: 280000 | FG55: 16400 | FH55: 17400 | FI55: 268960 | FJ55: 17300 | FK55: 18300 | FL55: 270310
AI56: Number of ObservationsGas2010 | AJ56: 46 | AN56: 44 | AO56: 1919-44 | AP56: Purpose built flat | AQ56: 1919-44Purpose built flat | AR56: 2300 | AS56: 2900 | AT56: 35270 | AU56: 2300 | AV56: 2800 | AW56: 36450 | AX56: 2300 | AY56: 3000 | AZ56: 32760 | BA56: 2300 | BB56: 3000 | BC56: 33350 | BD56: 2300 | BE56: 3000 | BF56: 34890 | BG56: 2300 | BH56: 3000 | BI56: 34370 | BJ56: 2300 | BK56: 3000 | BL56: 34220 | BM56: 2400 | BN56: 3100 | BO56: 34130 | BP56: 2500 | BQ56: 3200 | BR56: 34150 | BS56: 2500 | BT56: 3300 | BU56: 32940 | BV56: 8000 | BW56: 8700 | BX56: 31300 | BY56: 8300 | BZ56: 9000 | CA56: 28710 | CB56: 8500 | CC56: 9200 | CD56: 26010 | CE56: 8600 | CF56: 9400 | CG56: 27130 | CH56: 9400 | CI56: 10000 | CJ56: 26310 | CK56: 9400 | CL56: 10100 | CM56: 29990 | CN56: 10300 | CO56: 11000 | CP56: 25430 | CQ56: 10800 | CR56: 11600 | CS56: 25010 | CT56: 11200 | CU56: 11900 | CV56: 24620 | CW56: 11900 | CX56: 12600 | CY56: 23920 | DB56: Region | DC56: London | DD56: RegionLondon | DE56: 3300 | DF56: 4200 | DG56: 468300 | DH56: 3500 | DI56: 4300 | DJ56: 615510 | DK56: 3200 | DL56: 4100 | DM56: 446700 | DN56: 3300 | DO56: 4100 | DP56: 452420 | DQ56: 3400 | DR56: 4200 | DS56: 464440 | DT56: 3300 | DU56: 4200 | DV56: 459320 | DW56: 3400 | DX56: 4200 | DY56: 458810 | DZ56: 3500 | EA56: 4300 | EB56: 457240 | EC56: 3500 | ED56: 4400 | EE56: 454370 | EF56: 3600 | EG56: 4500 | EH56: 450070 | EI56: 12300 | EJ56: 13700 | EK56: 425200 | EL56: 12800 | EM56: 14200 | EN56: 393060 | EO56: 12900 | EP56: 14400 | EQ56: 359700 | ER56: 13000 | ES56: 14400 | ET56: 378180 | EU56: 14300 | EV56: 15600 | EW56: 366620 | EX56: 14100 | EY56: 15500 | EZ56: 404570 | FA56: 15500 | FB56: 16800 | FC56: 356740 | FD56: 16000 | FE56: 17300 | FF56: 349640 | FG56: 16600 | FH56: 17700 | FI56: 345190 | FJ56: 17400 | FK56: 18400 | FL56: 338940
B57: - | C57: =COUNTIF($F$13:$O$22,B57) -> 0 | AI57: MedianGas2009 | AJ57: 47 | AN57: 45 | AO57: 1945-64 | AP57: Purpose built flat | AQ57: 1945-64Purpose built flat | AR57: 2300 | AS57: 3200 | AT57: 123020 | AU57: 2300 | AV57: 3000 | AW57: 127550 | AX57: 2300 | AY57: 3100 | AZ57: 110280 | BA57: 2400 | BB57: 3100 | BC57: 112180 | BD57: 2400 | BE57: 3200 | BF57: 114560 | BG57: 2400 | BH57: 3200 | BI57: 113020 | BJ57: 2400 | BK57: 3300 | BL57: 112510 | BM57: 2500 | BN57: 3400 | BO57: 112050 | BP57: 2500 | BQ57: 3400 | BR57: 112320 | BS57: 2600 | BT57: 3500 | BU57: 102330 | BV57: 7000 | BW57: 7600 | BX57: 110010 | BY57: 7300 | BZ57: 7900 | CA57: 102050 | CB57: 7600 | CC57: 8200 | CD57: 87240 | CE57: 7800 | CF57: 8400 | CG57: 90910 | CH57: 8600 | CI57: 9100 | CJ57: 87090 | CK57: 8600 | CL57: 9200 | CM57: 98120 | CN57: 9500 | CO57: 10200 | CP57: 84130 | CQ57: 10100 | CR57: 10700 | CS57: 83380 | CT57: 10400 | CU57: 11000 | CV57: 81740 | CW57: 11100 | CX57: 11700 | CY57: 78910 | DB57: Region | DC57: South East | DD57: RegionSouth East | DE57: 3500 | DF57: 4400 | DG57: 588390 | DH57: 3500 | DI57: 4300 | DJ57: 380860 | DK57: 3500 | DL57: 4400 | DM57: 536540 | DN57: 3700 | DO57: 4500 | DP57: 540700 | DQ57: 3700 | DR57: 4500 | DS57: 558720 | DT57: 3700 | DU57: 4500 | DV57: 552710 | DW57: 3700 | DX57: 4600 | DY57: 550480 | DZ57: 3900 | EA57: 4800 | EB57: 543710 | EC57: 3900 | ED57: 4800 | EE57: 545350 | EF57: 4000 | EG57: 4900 | EH57: 538120 | EI57: 12100 | EJ57: 13400 | EK57: 516780 | EL57: 12500 | EM57: 13800 | EN57: 481770 | EO57: 13000 | EP57: 14300 | EQ57: 416740 | ER57: 12900 | ES57: 14200 | ET57: 438530 | EU57: 14000 | EV57: 15200 | EW57: 435680 | EX57: 14000 | EY57: 15300 | EZ57: 467950 | FA57: 15400 | FB57: 16700 | FC57: 422830 | FD57: 16100 | FE57: 17400 | FF57: 405580 | FG57: 16700 | FH57: 17800 | FI57: 403090 | FJ57: 17300 | FK57: 18400 | FL57: 399500
B58: n/a | C58: =COUNTIF($F$13:$O$22,B58) -> 0 | AI58: MeanGas2009 | AJ58: 48 | AN58: 46 | AO58: 1965-82 | AP58: Purpose built flat | AQ58: 1965-82Purpose built flat | AR58: 2300 | AS58: 3300 | AT58: 183590 | AU58: 2200 | AV58: 3100 | AW58: 194230 | AX58: 2200 | AY58: 3300 | AZ58: 169890 | BA58: 2300 | BB58: 3300 | BC58: 172410 | BD58: 2300 | BE58: 3400 | BF58: 176680 | BG58: 2300 | BH58: 3400 | BI58: 175120 | BJ58: 2400 | BK58: 3500 | BL58: 174330 | BM58: 2500 | BN58: 3600 | BO58: 174190 | BP58: 2500 | BQ58: 3600 | BR58: 174940 | BS58: 2500 | BT58: 3700 | BU58: 155120 | BV58: 6100 | BW58: 6700 | BX58: 125380 | BY58: 6300 | BZ58: 7000 | CA58: 116030 | CB58: 6600 | CC58: 7200 | CD58: 99690 | CE58: 6700 | CF58: 7300 | CG58: 104470 | CH58: 7300 | CI58: 7900 | CJ58: 99750 | CK58: 7300 | CL58: 8000 | CM58: 112730 | CN58: 8100 | CO58: 8800 | CP58: 97090 | CQ58: 8500 | CR58: 9300 | CS58: 96540 | CT58: 8800 | CU58: 9500 | CV58: 94820 | CW58: 9500 | CX58: 10200 | CY58: 90720 | DB58: Region | DC58: South West | DD58: RegionSouth West | DE58: 3500 | DF58: 4400 | DG58: 362570 | DH58: 3200 | DI58: 3800 | DJ58: 220230 | DK58: 3500 | DL58: 4400 | DM58: 337640 | DN58: 3600 | DO58: 4500 | DP58: 340590 | DQ58: 3600 | DR58: 4500 | DS58: 346290 | DT58: 3600 | DU58: 4600 | DV58: 343990 | DW58: 3700 | DX58: 4600 | DY58: 341900 | DZ58: 3800 | EA58: 4800 | EB58: 337220 | EC58: 3900 | ED58: 4900 | EE58: 339350 | EF58: 4000 | EG58: 5000 | EH58: 311500 | EI58: 10600 | EJ58: 11700 | EK58: 283080 | EL58: 10900 | EM58: 12000 | EN58: 264370 | EO58: 11300 | EP58: 12400 | EQ58: 231940 | ER58: 11200 | ES58: 12300 | ET58: 243610 | EU58: 12400 | EV58: 13400 | EW58: 243270 | EX58: 12500 | EY58: 13500 | EZ58: 257400 | FA58: 13900 | FB58: 14900 | FC58: 234550 | FD58: 14500 | FE58: 15600 | FF58: 229260 | FG58: 15100 | FH58: 16100 | FI58: 224040 | FJ58: 16000 | FK58: 17000 | FL58: 217370
AI59: Number of ObservationsGas2009 | AJ59: 49 | AN59: 47 | AO59: 1983-92 | AP59: Purpose built flat | AQ59: 1983-92Purpose built flat | AR59: 2800 | AS59: 3800 | AT59: 67820 | AU59: 2700 | AV59: 3600 | AW59: 73060 | AX59: 2800 | AY59: 3900 | AZ59: 65140 | BA59: 2800 | BB59: 3800 | BC59: 65510 | BD59: 3000 | BE59: 4000 | BF59: 67170 | BG59: 2900 | BH59: 4000 | BI59: 66900 | BJ59: 3000 | BK59: 4100 | BL59: 66580 | BM59: 3100 | BN59: 4200 | BO59: 66840 | BP59: 3100 | BQ59: 4100 | BR59: 67130 | BS59: 3300 | BT59: 4400 | BU59: 60760 | BV59: 5700 | BW59: 6300 | BX59: 29990 | BY59: 5800 | BZ59: 6500 | CA59: 28030 | CB59: 6000 | CC59: 6800 | CD59: 25100 | CE59: 6100 | CF59: 6900 | CG59: 26160 | CH59: 6600 | CI59: 7400 | CJ59: 25410 | CK59: 6700 | CL59: 7500 | CM59: 27600 | CN59: 7400 | CO59: 8200 | CP59: 24760 | CQ59: 7800 | CR59: 8600 | CS59: 24660 | CT59: 8000 | CU59: 8800 | CV59: 24670 | CW59: 8500 | CX59: 9300 | CY59: 23940 | DB59: Region | DC59: Wales | DD59: RegionWales | DE59: 3200 | DF59: 3900 | DG59: 212550 | DH59: 3400 | DI59: 4000 | DJ59: 399690 | DK59: 3200 | DL59: 3900 | DM59: 190750 | DN59: 3300 | DO59: 4000 | DP59: 192210 | DQ59: n/a | DR59: n/a | DS59: n/a | DT59: n/a | DU59: n/a | DV59: n/a | DW59: n/a | DX59: n/a | DY59: n/a | DZ59: n/a | EA59: n/a | EB59: n/a | EC59: n/a | ED59: n/a | EE59: n/a | EF59: n/a | EG59: n/a | EH59: n/a | EI59: 11600 | EJ59: 12500 | EK59: 179000 | EL59: 12100 | EM59: 13000 | EN59: 168240 | EO59: 12700 | EP59: 13500 | EQ59: 144630 | ER59: 12700 | ES59: 13600 | ET59: 151910 | EU59: n/a | EV59: n/a | EW59: n/a | EX59: n/a | EY59: n/a | EZ59: n/a | FA59: n/a | FB59: n/a | FC59: n/a | FD59: n/a | FE59: n/a | FF59: n/a | FG59: n/a | FH59: n/a | FI59: n/a | FJ59: n/a | FK59: n/a | FL59: n/a
AI60: MedianGas2008 | AJ60: 50 | AN60: 48 | AO60: 1993-99 | AP60: Purpose built flat | AQ60: 1993-99Purpose built flat | AR60: 3100 | AS60: 4300 | AT60: 30220 | AU60: 3000 | AV60: 4000 | AW60: 32840 | AX60: 3200 | AY60: 4300 | AZ60: 30570 | BA60: 3200 | BB60: 4200 | BC60: 30870 | BD60: 3300 | BE60: 4400 | BF60: 31790 | BG60: 3300 | BH60: 4400 | BI60: 31500 | BJ60: 3400 | BK60: 4500 | BL60: 31320 | BM60: 3500 | BN60: 4600 | BO60: 31350 | BP60: 3500 | BQ60: 4500 | BR60: 31540 | BS60: 3600 | BT60: 4700 | BU60: 28420 | BV60: 5800 | BW60: 6500 | BX60: 14560 | BY60: 5900 | BZ60: 6700 | CA60: 13510 | CB60: 6100 | CC60: 6900 | CD60: 13010 | CE60: 6200 | CF60: 7000 | CG60: 13470 | CH60: 6700 | CI60: 7600 | CJ60: 13100 | CK60: 6800 | CL60: 7700 | CM60: 14360 | CN60: 7400 | CO60: 8300 | CP60: 12690 | CQ60: 7700 | CR60: 8700 | CS60: 12460 | CT60: 7900 | CU60: 8900 | CV60: 12170 | CW60: 8600 | CX60: 9400 | CY60: 12180 | DB60: Number of Adults | DC60: 1 | DD60: Number of Adults1 | DE60: 2500 | DF60: 3300 | DG60: 1336660 | DH60: 2500 | DI60: 3200 | DJ60: 1380170 | DK60: 2500 | DL60: 3400 | DM60: 1224390 | DN60: 2600 | DO60: 3300 | DP60: 1237130 | DQ60: 2500 | DR60: 3400 | DS60: 1235370 | DT60: 2600 | DU60: 3400 | DV60: 1222390 | DW60: 2600 | DX60: 3500 | DY60: 1207810 | DZ60: 2700 | EA60: 3700 | EB60: 1197390 | EC60: 2800 | ED60: 3700 | EE60: 1195530 | EF60: 2900 | EG60: 3900 | EH60: 1051410 | EI60: 10000 | EJ60: 11000 | EK60: 1131310 | EL60: 10300 | EM60: 11400 | EN60: 1051520 | EO60: 10800 | EP60: 11900 | EQ60: 930560 | ER60: 10800 | ES60: 11900 | ET60: 974960 | EU60: 11700 | EV60: 12700 | EW60: 926340 | EX60: 11800 | EY60: 12900 | EZ60: 1000950 | FA60: 13100 | FB60: 14200 | FC60: 906830 | FD60: 13800 | FE60: 14900 | FF60: 891310 | FG60: 14400 | FH60: 15400 | FI60: 864710 | FJ60: 15200 | FK60: 16200 | FL60: 853070
C61: =COUNT(F13:O13) -> 5 | AI61: MeanGas2008 | AJ61: 51 | AN61: 49 | AO61: Post 1999 | AP61: Purpose built flat | AQ61: Post 1999Purpose built flat | AR61: 2900 | AS61: 4100 | AT61: 93390 | AU61: 2900 | AV61: 3900 | AW61: 104960 | AX61: 3000 | AY61: 4200 | AZ61: 84960 | BA61: 3000 | BB61: 4100 | BC61: 85320 | BD61: 3100 | BE61: 4300 | BF61: 68630 | BG61: 3100 | BH61: 4300 | BI61: 67830 | BJ61: 3000 | BK61: 4300 | BL61: 66760 | BM61: 3100 | BN61: 4300 | BO61: 61780 | BP61: 3100 | BQ61: 4300 | BR61: 51450 | BS61: 3100 | BT61: 4500 | BU61: 37340 | BV61: 5900 | BW61: 6700 | BX61: 31840 | BY61: 6000 | BZ61: 6800 | CA61: 26140 | CB61: 6100 | CC61: 6900 | CD61: 23570 | CE61: 6200 | CF61: 7100 | CG61: 25900 | CH61: 6600 | CI61: 7500 | CJ61: 19030 | CK61: 6600 | CL61: 7700 | CM61: 20820 | CN61: 7200 | CO61: 8100 | CP61: 20050 | CQ61: 8800 | CR61: 9200 | CS61: 19020 | CT61: 9200 | CU61: 9600 | CV61: 13160 | CW61: 11100 | CX61: 10400 | CY61: 15260 | DB61: Number of Adults | DC61: 2 | DD61: Number of Adults2 | DE61: 3500 | DF61: 4200 | DG61: 1639670 | DH61: 3500 | DI61: 4100 | DJ61: 1679650 | DK61: 3500 | DL61: 4200 | DM61: 1441630 | DN61: 3600 | DO61: 4300 | DP61: 1451520 | DQ61: 3600 | DR61: 4300 | DS61: 1450330 | DT61: 3600 | DU61: 4300 | DV61: 1436250 | DW61: 3600 | DX61: 4300 | DY61: 1420530 | DZ61: 3700 | EA61: 4500 | EB61: 1412830 | EC61: 3800 | ED61: 4600 | EE61: 1410740 | EF61: 3800 | EG61: 4700 | EH61: 1254130 | EI61: 12500 | EJ61: 13500 | EK61: 1464170 | EL61: 12900 | EM61: 13900 | EN61: 1366320 | EO61: 13500 | EP61: 14500 | EQ61: 1165830 | ER61: 13400 | ES61: 14500 | ET61: 1220540 | EU61: 14500 | EV61: 15500 | EW61: 1162820 | EX61: 14600 | EY61: 15600 | EZ61: 1238860 | FA61: 16000 | FB61: 17000 | FC61: 1136960 | FD61: 16600 | FE61: 17600 | FF61: 1111670 | FG61: 17300 | FH61: 18200 | FI61: 1076970 | FJ61: 18200 | FK61: 19000 | FL61: 1065830
AI62: Number of ObservationsGas2008 | AJ62: 52 | AN62: 50 | AO62: Pre 1919 | AP62: 1 bedroom | AQ62: Pre 19191 bedroom | AR62: 2300 | AS62: 3700 | AT62: 44940 | AU62: 2200 | AV62: 3100 | AW62: 70960 | AX62: 2200 | AY62: 3300 | AZ62: 65320 | BA62: 2300 | BB62: 3300 | BC62: 66340 | BD62: 2300 | BE62: 3400 | BF62: 50400 | BG62: 2300 | BH62: 3400 | BI62: 49600 | BJ62: 2400 | BK62: 3500 | BL62: 49380 | BM62: 2500 | BN62: 3600 | BO62: 48700 | BP62: 2500 | BQ62: 3600 | BR62: 48650 | BS62: 2600 | BT62: 3800 | BU62: 44250 | BV62: 7100 | BW62: 8300 | BX62: 43790 | BY62: 7300 | BZ62: 8600 | CA62: 39880 | CB62: 7600 | CC62: 9000 | CD62: 44060 | CE62: 7700 | CF62: 9100 | CG62: 46090 | CH62: 8600 | CI62: 9900 | CJ62: 32550 | CK62: 8500 | CL62: 9900 | CM62: 36810 | CN62: 9400 | CO62: 10800 | CP62: 31270 | CQ62: 9900 | CR62: 11400 | CS62: 30730 | CT62: 10200 | CU62: 11600 | CV62: 30070 | CW62: 10900 | CX62: 12400 | CY62: 29130 | DB62: Number of Adults | DC62: 3 | DD62: Number of Adults3 | DE62: 4000 | DF62: 4800 | DG62: 538740 | DH62: 4100 | DI62: 4800 | DJ62: 551150 | DK62: 4000 | DL62: 4800 | DM62: 486770 | DN62: 4200 | DO62: 4900 | DP62: 490950 | DQ62: 4300 | DR62: 5000 | DS62: 489870 | DT62: 4300 | DU62: 5000 | DV62: 484900 | DW62: 4300 | DX62: 5100 | DY62: 479870 | DZ62: 4500 | EA62: 5300 | EB62: 477830 | EC62: 4600 | ED62: 5300 | EE62: 477910 | EF62: 4600 | EG62: 5400 | EH62: 429440 | EI62: 13600 | EJ62: 14800 | EK62: 493360 | EL62: 14100 | EM62: 15300 | EN62: 461650 | EO62: 14600 | EP62: 15800 | EQ62: 404410 | ER62: 14700 | ES62: 15900 | ET62: 423090 | EU62: 15800 | EV62: 17000 | EW62: 404050 | EX62: 16000 | EY62: 17100 | EZ62: 429130 | FA62: 17600 | FB62: 18700 | FC62: 392990 | FD62: 18300 | FE62: 19300 | FF62: 384140 | FG62: 19000 | FH62: 19900 | FI62: 372960 | FJ62: 19800 | FK62: 20700 | FL62: 368550
AI63: MedianGas2007 | AJ63: 53 | AN63: 51 | AO63: 1919-44 | AP63: 1 bedroom | AQ63: 1919-441 bedroom | AR63: 1900 | AS63: 2700 | AT63: 19040 | AU63: 1900 | AV63: 2600 | AW63: 20540 | AX63: 1900 | AY63: 2700 | AZ63: 18420 | BA63: 2000 | BB63: 2700 | BC63: 18740 | BD63: 1900 | BE63: 2700 | BF63: 18440 | BG63: 1900 | BH63: 2700 | BI63: 18200 | BJ63: 1900 | BK63: 2800 | BL63: 18100 | BM63: 2000 | BN63: 2900 | BO63: 18010 | BP63: 2000 | BQ63: 2900 | BR63: 18000 | BS63: 2000 | BT63: 3000 | BU63: 16760 | BV63: 6900 | BW63: 7900 | BX63: 15850 | BY63: 7300 | BZ63: 8200 | CA63: 14700 | CB63: 7500 | CC63: 8500 | CD63: 13610 | CE63: 7600 | CF63: 8700 | CG63: 14130 | CH63: 8400 | CI63: 9400 | CJ63: 13130 | CK63: 8400 | CL63: 9500 | CM63: 14750 | CN63: 9500 | CO63: 10500 | CP63: 12770 | CQ63: 10100 | CR63: 11100 | CS63: 12630 | CT63: 10300 | CU63: 11300 | CV63: 12410 | CW63: 11100 | CX63: 12100 | CY63: 11900 | DB63: Number of Adults | DC63: 4 | DD63: Number of Adults4 | DE63: 4500 | DF63: 5300 | DG63: 223210 | DH63: 4700 | DI63: 5300 | DJ63: 227920 | DK63: 4500 | DL63: 5200 | DM63: 199100 | DN63: 4800 | DO63: 5500 | DP63: 200780 | DQ63: 4900 | DR63: 5600 | DS63: 200270 | DT63: 4900 | DU63: 5600 | DV63: 198260 | DW63: 5000 | DX63: 5700 | DY63: 196270 | DZ63: 5200 | EA63: 5900 | EB63: 195730 | EC63: 5300 | ED63: 6000 | EE63: 195750 | EF63: 5300 | EG63: 6000 | EH63: 176680 | EI63: 14800 | EJ63: 16100 | EK63: 206220 | EL63: 15400 | EM63: 16700 | EN63: 192910 | EO63: 15800 | EP63: 17100 | EQ63: 166560 | ER63: 16000 | ES63: 17300 | ET63: 174490 | EU63: 17200 | EV63: 18400 | EW63: 166810 | EX63: 17400 | EY63: 18600 | EZ63: 176870 | FA63: 19100 | FB63: 20200 | FC63: 161470 | FD63: 19800 | FE63: 20800 | FF63: 157490 | FG63: 20500 | FH63: 21400 | FI63: 153160 | FJ63: 21200 | FK63: 22100 | FL63: 151100
AI64: MeanGas2007 | AJ64: 54 | AN64: 52 | AO64: 1945-64 | AP64: 1 bedroom | AQ64: 1945-641 bedroom | AR64: 1900 | AS64: 2600 | AT64: 58990 | AU64: 1900 | AV64: 2500 | AW64: 61080 | AX64: 1800 | AY64: 2600 | AZ64: 52570 | BA64: 1900 | BB64: 2600 | BC64: 53420 | BD64: 1900 | BE64: 2600 | BF64: 53910 | BG64: 1900 | BH64: 2700 | BI64: 53150 | BJ64: 1900 | BK64: 2700 | BL64: 52880 | BM64: 1900 | BN64: 2800 | BO64: 52760 | BP64: 2000 | BQ64: 2800 | BR64: 52940 | BS64: 2000 | BT64: 2900 | BU64: 47200 | BV64: 6300 | BW64: 6900 | BX64: 51180 | BY64: 6600 | BZ64: 7200 | CA64: 47660 | CB64: 6900 | CC64: 7400 | CD64: 40350 | CE64: 7000 | CF64: 7600 | CG64: 42010 | CH64: 7800 | CI64: 8300 | CJ64: 39990 | CK64: 7800 | CL64: 8400 | CM64: 44700 | CN64: 8800 | CO64: 9400 | CP64: 38820 | CQ64: 9300 | CR64: 9900 | CS64: 38760 | CT64: 9600 | CU64: 10200 | CV64: 37940 | CW64: 10400 | CX64: 10900 | CY64: 36560 | DB64: Number of Adults | DC64: 5 or more | DD64: Number of Adults5 or more | DE64: 4900 | DF64: 6000 | DG64: 96120 | DH64: 5100 | DI64: 5900 | DJ64: 98100 | DK64: 4900 | DL64: 5700 | DM64: 87300 | DN64: 5200 | DO64: 6000 | DP64: 88080 | DQ64: 5300 | DR64: 6100 | DS64: 87860 | DT64: 5300 | DU64: 6100 | DV64: 86960 | DW64: 5300 | DX64: 6100 | DY64: 86040 | DZ64: 5600 | EA64: 6400 | EB64: 85670 | EC64: 5600 | ED64: 6400 | EE64: 85740 | EF64: 5600 | EG64: 6500 | EH64: 78030 | EI64: 16100 | EJ64: 17600 | EK64: 88840 | EL64: 16700 | EM64: 18200 | EN64: 82940 | EO64: 17000 | EP64: 18500 | EQ64: 73000 | ER64: 17400 | ES64: 18900 | ET64: 76250 | EU64: 18600 | EV64: 20000 | EW64: 72490 | EX64: 18700 | EY64: 20000 | EZ64: 77360 | FA64: 20400 | FB64: 21600 | FC64: 69660 | FD64: 21100 | FE64: 22200 | FF64: 67990 | FG64: 21700 | FH64: 22700 | FI64: 65870 | FJ64: 22400 | FK64: 23300 | FL64: 64870
AI65: Number of ObservationsGas2007 | AJ65: 55 | AN65: 53 | AO65: 1965-82 | AP65: 1 bedroom | AQ65: 1965-821 bedroom | AR65: 1900 | AS65: 2800 | AT65: 111610 | AU65: 1900 | AV65: 2600 | AW65: 117250 | AX65: 1800 | AY65: 2700 | AZ65: 102010 | BA65: 1900 | BB65: 2800 | BC65: 103500 | BD65: 1900 | BE65: 2800 | BF65: 105300 | BG65: 1900 | BH65: 2900 | BI65: 104420 | BJ65: 1900 | BK65: 2900 | BL65: 104020 | BM65: 2000 | BN65: 3100 | BO65: 103930 | BP65: 2000 | BQ65: 3000 | BR65: 104430 | BS65: 2000 | BT65: 3100 | BU65: 91130 | BV65: 5600 | BW65: 6100 | BX65: 72780 | BY65: 5800 | BZ65: 6300 | CA65: 67660 | CB65: 6000 | CC65: 6500 | CD65: 57130 | CE65: 6100 | CF65: 6700 | CG65: 59800 | CH65: 6600 | CI65: 7100 | CJ65: 57030 | CK65: 6700 | CL65: 7300 | CM65: 63810 | CN65: 7500 | CO65: 8000 | CP65: 55550 | CQ65: 7900 | CR65: 8500 | CS65: 55200 | CT65: 8100 | CU65: 8700 | CV65: 54320 | CW65: 8800 | CX65: 9300 | CY65: 51790 | DB65: Fuel Poverty Quintile | DC65: FP - 1 | DD65: Fuel Poverty QuintileFP - 1 | DE65: 3200 | DF65: 4000 | DG65: 706990 | DH65: 3200 | DI65: 3900 | DJ65: 745510 | DK65: 3200 | DL65: 3900 | DM65: 692700 | DN65: 3300 | DO65: 4000 | DP65: 698620 | DQ65: n/a | DR65: n/a | DS65: n/a | DT65: n/a | DU65: n/a | DV65: n/a | DW65: n/a | DX65: n/a | DY65: n/a | DZ65: n/a | EA65: n/a | EB65: n/a | EC65: n/a | ED65: n/a | EE65: n/a | EF65: n/a | EG65: n/a | EH65: n/a | EI65: 11300 | EJ65: 12300 | EK65: 631810 | EL65: 11800 | EM65: 12900 | EN65: 596600 | EO65: 11300 | EP65: 12200 | EQ65: 539630 | ER65: 11300 | ES65: 12200 | ET65: 565570 | EU65: n/a | EV65: n/a | EW65: n/a | EX65: n/a | EY65: n/a | EZ65: n/a | FA65: n/a | FB65: n/a | FC65: n/a | FD65: n/a | FE65: n/a | FF65: n/a | FG65: n/a | FH65: n/a | FI65: n/a | FJ65: n/a | FK65: n/a | FL65: n/a
AI66: MedianGas2006 | AJ66: 56 | AN66: 54 | AO66: 1983-92 | AP66: 1 bedroom | AQ66: 1983-921 bedroom | AR66: 2400 | AS66: 3400 | AT66: 57770 | AU66: 2300 | AV66: 3300 | AW66: 61550 | AX66: 2500 | AY66: 3600 | AZ66: 54530 | BA66: 2500 | BB66: 3500 | BC66: 54870 | BD66: 2600 | BE66: 3600 | BF66: 55240 | BG66: 2600 | BH66: 3600 | BI66: 54960 | BJ66: 2600 | BK66: 3700 | BL66: 54650 | BM66: 2700 | BN66: 3800 | BO66: 54860 | BP66: 2800 | BQ66: 3800 | BR66: 55120 | BS66: 3000 | BT66: 4000 | BU66: 49780 | BV66: 5400 | BW66: 5900 | BX66: 26410 | BY66: 5600 | BZ66: 6100 | CA66: 24860 | CB66: 5800 | CC66: 6300 | CD66: 21700 | CE66: 5800 | CF66: 6400 | CG66: 22650 | CH66: 6300 | CI66: 6800 | CJ66: 21690 | CK66: 6400 | CL66: 7000 | CM66: 23350 | CN66: 7100 | CO66: 7600 | CP66: 21160 | CQ66: 7400 | CR66: 8100 | CS66: 21040 | CT66: 7700 | CU66: 8200 | CV66: 21030 | CW66: 8200 | CX66: 8700 | CY66: 20400 | DB66: Fuel Poverty Quintile | DC66: FP - 2 | DD66: Fuel Poverty QuintileFP - 2 | DE66: 3300 | DF66: 4100 | DG66: 731420 | DH66: 3300 | DI66: 4000 | DJ66: 748260 | DK66: 3400 | DL66: 4100 | DM66: 679110 | DN66: 3500 | DO66: 4200 | DP66: 684550 | DQ66: n/a | DR66: n/a | DS66: n/a | DT66: n/a | DU66: n/a | DV66: n/a | DW66: n/a | DX66: n/a | DY66: n/a | DZ66: n/a | EA66: n/a | EB66: n/a | EC66: n/a | ED66: n/a | EE66: n/a | EF66: n/a | EG66: n/a | EH66: n/a | EI66: 11600 | EJ66: 12700 | EK66: 645370 | EL66: 12300 | EM66: 13400 | EN66: 590610 | EO66: 12700 | EP66: 13800 | EQ66: 541410 | ER66: 12700 | ES66: 13800 | ET66: 567200 | EU66: n/a | EV66: n/a | EW66: n/a | EX66: n/a | EY66: n/a | EZ66: n/a | FA66: n/a | FB66: n/a | FC66: n/a | FD66: n/a | FE66: n/a | FF66: n/a | FG66: n/a | FH66: n/a | FI66: n/a | FJ66: n/a | FK66: n/a | FL66: n/a
AI67: MeanGas2006 | AJ67: 57 | AN67: 55 | AO67: 1993-99 | AP67: 1 bedroom | AQ67: 1993-991 bedroom | AR67: 2700 | AS67: 3800 | AT67: 19040 | AU67: 2700 | AV67: 3600 | AW67: 20790 | AX67: 2800 | AY67: 3800 | AZ67: 19340 | BA67: 2800 | BB67: 3800 | BC67: 19480 | BD67: 3000 | BE67: 3900 | BF67: 19530 | BG67: 3000 | BH67: 4000 | BI67: 19320 | BJ67: 3100 | BK67: 4100 | BL67: 19230 | BM67: 3200 | BN67: 4200 | BO67: 19240 | BP67: 3200 | BQ67: 4100 | BR67: 19380 | BS67: 3300 | BT67: 4300 | BU67: 16970 | BV67: 5200 | BW67: 5800 | BX67: 8890 | BY67: 5400 | BZ67: 6000 | CA67: 8310 | CB67: 5500 | CC67: 6200 | CD67: 7910 | CE67: 5600 | CF67: 6300 | CG67: 8140 | CH67: 6200 | CI67: 6900 | CJ67: 7700 | CK67: 6200 | CL67: 7000 | CM67: 8330 | CN67: 6900 | CO67: 7700 | CP67: 7480 | CQ67: 7300 | CR67: 8100 | CS67: 7380 | CT67: 7500 | CU67: 8300 | CV67: 7270 | CW67: 8000 | CX67: 8700 | CY67: 7170 | DB67: Fuel Poverty Quintile | DC67: FP - 3 | DD67: Fuel Poverty QuintileFP - 3 | DE67: 3300 | DF67: 4100 | DG67: 721020 | DH67: 3300 | DI67: 4000 | DJ67: 754660 | DK67: 3400 | DL67: 4200 | DM67: 676410 | DN67: 3500 | DO67: 4300 | DP67: 682180 | DQ67: n/a | DR67: n/a | DS67: n/a | DT67: n/a | DU67: n/a | DV67: n/a | DW67: n/a | DX67: n/a | DY67: n/a | DZ67: n/a | EA67: n/a | EB67: n/a | EC67: n/a | ED67: n/a | EE67: n/a | EF67: n/a | EG67: n/a | EH67: n/a | EI67: 12100 | EJ67: 13200 | EK67: 642350 | EL67: 12800 | EM67: 14000 | EN67: 614500 | EO67: 13300 | EP67: 14400 | EQ67: 534080 | ER67: 13300 | ES67: 14400 | ET67: 559520 | EU67: n/a | EV67: n/a | EW67: n/a | EX67: n/a | EY67: n/a | EZ67: n/a | FA67: n/a | FB67: n/a | FC67: n/a | FD67: n/a | FE67: n/a | FF67: n/a | FG67: n/a | FH67: n/a | FI67: n/a | FJ67: n/a | FK67: n/a | FL67: n/a
AI68: Number of ObservationsGas2006 | AJ68: 58 | AN68: 56 | AO68: Post 1999 | AP68: 1 bedroom | AQ68: Post 19991 bedroom | AR68: 2500 | AS68: 3500 | AT68: 31410 | AU68: 2500 | AV68: 3300 | AW68: 35940 | AX68: 2600 | AY68: 3600 | AZ68: 28970 | BA68: 2700 | BB68: 3500 | BC68: 29170 | BD68: 2800 | BE68: 3700 | BF68: 22320 | BG68: 2700 | BH68: 3700 | BI68: 22050 | BJ68: 2700 | BK68: 3700 | BL68: 21840 | BM68: 2700 | BN68: 3700 | BO68: 20060 | BP68: 2700 | BQ68: 3700 | BR68: 16840 | BS68: 2800 | BT68: 3900 | BU68: 12370 | BV68: 4800 | BW68: 5600 | BX68: 9230 | BY68: 4900 | BZ68: 5700 | CA68: 7730 | CB68: 5000 | CC68: 5900 | CD68: 7130 | CE68: 5200 | CF68: 6100 | CG68: 7810 | CH68: 5600 | CI68: 6400 | CJ68: 5620 | CK68: 5600 | CL68: 6800 | CM68: 6210 | CN68: 6100 | CO68: 7200 | CP68: 5790 | CQ68: 7300 | CR68: 8100 | CS68: 5390 | CT68: 7500 | CU68: 8400 | CV68: 4130 | CW68: 9200 | CX68: 9200 | CY68: 4380 | DB68: Fuel Poverty Quintile | DC68: FP - 4 | DD68: Fuel Poverty QuintileFP - 4 | DE68: 3400 | DF68: 4200 | DG68: 737160 | DH68: 3400 | DI68: 4100 | DJ68: 742350 | DK68: 3400 | DL68: 4200 | DM68: 635120 | DN68: 3500 | DO68: 4300 | DP68: 640560 | DQ68: n/a | DR68: n/a | DS68: n/a | DT68: n/a | DU68: n/a | DV68: n/a | DW68: n/a | DX68: n/a | DY68: n/a | DZ68: n/a | EA68: n/a | EB68: n/a | EC68: n/a | ED68: n/a | EE68: n/a | EF68: n/a | EG68: n/a | EH68: n/a | EI68: 12700 | EJ68: 13800 | EK68: 663780 | EL68: 13000 | EM68: 14100 | EN68: 608070 | EO68: 13900 | EP68: 15000 | EQ68: 510810 | ER68: 13900 | ES68: 15000 | ET68: 534500 | EU68: n/a | EV68: n/a | EW68: n/a | EX68: n/a | EY68: n/a | EZ68: n/a | FA68: n/a | FB68: n/a | FC68: n/a | FD68: n/a | FE68: n/a | FF68: n/a | FG68: n/a | FH68: n/a | FI68: n/a | FJ68: n/a | FK68: n/a | FL68: n/a
AI69: MedianGas2005 | AJ69: 59 | AN69: 57 | AO69: Pre 1919 | AP69: 2 bedrooms | AQ69: Pre 19192 bedrooms | AR69: 2800 | AS69: 3600 | AT69: 259280 | AU69: 2800 | AV69: 3500 | AW69: 279520 | AX69: 2800 | AY69: 3600 | AZ69: 248470 | BA69: 2900 | BB69: 3700 | BC69: 252120 | BD69: 2900 | BE69: 3700 | BF69: 238290 | BG69: 2900 | BH69: 3700 | BI69: 234710 | BJ69: 2900 | BK69: 3700 | BL69: 233390 | BM69: 3000 | BN69: 3900 | BO69: 233250 | BP69: 3100 | BQ69: 3900 | BR69: 234900 | BS69: 3200 | BT69: 4100 | BU69: 200550 | BV69: 10600 | BW69: 11400 | BX69: 245240 | BY69: 11000 | BZ69: 11800 | CA69: 226130 | CB69: 11500 | CC69: 12300 | CD69: 202240 | CE69: 11500 | CF69: 12400 | CG69: 211590 | CH69: 12400 | CI69: 13200 | CJ69: 194050 | CK69: 12500 | CL69: 13300 | CM69: 213630 | CN69: 13800 | CO69: 14700 | CP69: 187010 | CQ69: 14400 | CR69: 15300 | CS69: 184610 | CT69: 14900 | CU69: 15700 | CV69: 180800 | CW69: 15700 | CX69: 16500 | CY69: 176400 | DB69: Fuel Poverty Quintile | DC69: FP - 5 | DD69: Fuel Poverty QuintileFP - 5 | DE69: 3400 | DF69: 4200 | DG69: 737040 | DH69: 3400 | DI69: 4000 | DJ69: 787140 | DK69: 3300 | DL69: 4100 | DM69: 623410 | DN69: 3400 | DO69: 4100 | DP69: 629920 | DQ69: n/a | DR69: n/a | DS69: n/a | DT69: n/a | DU69: n/a | DV69: n/a | DW69: n/a | DX69: n/a | DY69: n/a | DZ69: n/a | EA69: n/a | EB69: n/a | EC69: n/a | ED69: n/a | EE69: n/a | EF69: n/a | EG69: n/a | EH69: n/a | EI69: 12500 | EJ69: 13600 | EK69: 653340 | EL69: 12300 | EM69: 13300 | EN69: 606010 | EO69: 13900 | EP69: 15000 | EQ69: 507500 | ER69: 13900 | ES69: 15100 | ET69: 530270 | EU69: n/a | EV69: n/a | EW69: n/a | EX69: n/a | EY69: n/a | EZ69: n/a | FA69: n/a | FB69: n/a | FC69: n/a | FD69: n/a | FE69: n/a | FF69: n/a | FG69: n/a | FH69: n/a | FI69: n/a | FJ69: n/a | FK69: n/a | FL69: n/a
AI70: MeanGas2005 | AJ70: 60 | AN70: 58 | AO70: 1919-44 | AP70: 2 bedrooms | AQ70: 1919-442 bedrooms | AR70: 2900 | AS70: 3600 | AT70: 132960 | AU70: 2900 | AV70: 3500 | AW70: 135450 | AX70: 2900 | AY70: 3600 | AZ70: 118310 | BA70: 3000 | BB70: 3600 | BC70: 119530 | BD70: 3000 | BE70: 3700 | BF70: 122440 | BG70: 3000 | BH70: 3700 | BI70: 121200 | BJ70: 3000 | BK70: 3700 | BL70: 120510 | BM70: 3100 | BN70: 3900 | BO70: 120510 | BP70: 3200 | BQ70: 3900 | BR70: 121130 | BS70: 3200 | BT70: 4000 | BU70: 109150 | BV70: 11200 | BW70: 12100 | BX70: 128700 | BY70: 11600 | BZ70: 12500 | CA70: 120890 | CB70: 12100 | CC70: 12900 | CD70: 104430 | CE70: 12100 | CF70: 12900 | CG70: 108680 | CH70: 13100 | CI70: 13900 | CJ70: 107900 | CK70: 13200 | CL70: 14000 | CM70: 115900 | CN70: 14700 | CO70: 15500 | CP70: 104400 | CQ70: 15300 | CR70: 16100 | CS70: 103100 | CT70: 15900 | CU70: 16600 | CV70: 101410 | CW70: 16800 | CX70: 17500 | CY70: 99010 | DB70: Index of Multiple Deprivation Quintile | DC70: IMD - 1 | DD70: Index of Multiple Deprivation QuintileIMD - 1 | DE70: 3000 | DF70: 3600 | DG70: 726730 | DH70: 2900 | DI70: 3500 | DJ70: 755320 | DK70: 2900 | DL70: 3600 | DM70: 668510 | DN70: 3000 | DO70: 3600 | DP70: 676910 | DQ70: n/a | DR70: n/a | DS70: n/a | DT70: n/a | DU70: n/a | DV70: n/a | DW70: n/a | DX70: n/a | DY70: n/a | DZ70: n/a | EA70: n/a | EB70: n/a | EC70: n/a | ED70: n/a | EE70: n/a | EF70: n/a | EG70: n/a | EH70: n/a | EI70: 9800 | EJ70: 10600 | EK70: 647390 | EL70: 10300 | EM70: 11100 | EN70: 607290 | EO70: 10800 | EP70: 11600 | EQ70: 549010 | ER70: 10900 | ES70: 11800 | ET70: 572150 | EU70: n/a | EV70: n/a | EW70: n/a | EX70: n/a | EY70: n/a | EZ70: n/a | FA70: n/a | FB70: n/a | FC70: n/a | FD70: n/a | FE70: n/a | FF70: n/a | FG70: n/a | FH70: n/a | FI70: n/a | FJ70: n/a | FK70: n/a | FL70: n/a
AI71: Number of ObservationsGas2005 | AJ71: 61 | AN71: 59 | AO71: 1945-64 | AP71: 2 bedrooms | AQ71: 1945-642 bedrooms | AR71: 2800 | AS71: 3500 | AT71: 217550 | AU71: 2800 | AV71: 3400 | AW71: 222670 | AX71: 2800 | AY71: 3500 | AZ71: 191400 | BA71: 2800 | BB71: 3600 | BC71: 193260 | BD71: 2800 | BE71: 3600 | BF71: 195620 | BG71: 2800 | BH71: 3600 | BI71: 194030 | BJ71: 2800 | BK71: 3600 | BL71: 192950 | BM71: 2900 | BN71: 3800 | BO71: 192680 | BP71: 3000 | BQ71: 3800 | BR71: 193450 | BS71: 3000 | BT71: 4000 | BU71: 174110 | BV71: 10200 | BW71: 10900 | BX71: 203560 | BY71: 10600 | BZ71: 11300 | CA71: 191860 | CB71: 11000 | CC71: 11700 | CD71: 162220 | CE71: 11100 | CF71: 11800 | CG71: 168980 | CH71: 12000 | CI71: 12700 | CJ71: 165540 | CK71: 12100 | CL71: 12800 | CM71: 177530 | CN71: 13500 | CO71: 14100 | CP71: 160200 | CQ71: 14100 | CR71: 14800 | CS71: 158250 | CT71: 14600 | CU71: 15200 | CV71: 155660 | CW71: 15400 | CX71: 16100 | CY71: 151820 | DB71: Index of Multiple Deprivation Quintile | DC71: IMD - 2 | DD71: Index of Multiple Deprivation QuintileIMD - 2 | DE71: 3200 | DF71: 3900 | DG71: 726850 | DH71: 3100 | DI71: 3800 | DJ71: 754900 | DK71: 3100 | DL71: 3900 | DM71: 665540 | DN71: 3200 | DO71: 3900 | DP71: 671680 | DQ71: n/a | DR71: n/a | DS71: n/a | DT71: n/a | DU71: n/a | DV71: n/a | DW71: n/a | DX71: n/a | DY71: n/a | DZ71: n/a | EA71: n/a | EB71: n/a | EC71: n/a | ED71: n/a | EE71: n/a | EF71: n/a | EG71: n/a | EH71: n/a | EI71: 11000 | EJ71: 11900 | EK71: 647330 | EL71: 11400 | EM71: 12400 | EN71: 600280 | EO71: 11900 | EP71: 12900 | EQ71: 537190 | ER71: 12000 | ES71: 13000 | ET71: 562090 | EU71: n/a | EV71: n/a | EW71: n/a | EX71: n/a | EY71: n/a | EZ71: n/a | FA71: n/a | FB71: n/a | FC71: n/a | FD71: n/a | FE71: n/a | FF71: n/a | FG71: n/a | FH71: n/a | FI71: n/a | FJ71: n/a | FK71: n/a | FL71: n/a
AN72: 60 | AO72: 1965-82 | AP72: 2 bedrooms | AQ72: 1965-822 bedrooms | AR72: 2700 | AS72: 3600 | AT72: 214030 | AU72: 2700 | AV72: 3500 | AW72: 221050 | AX72: 2700 | AY72: 3700 | AZ72: 191130 | BA72: 2800 | BB72: 3700 | BC72: 192670 | BD72: 2800 | BE72: 3800 | BF72: 192430 | BG72: 2800 | BH72: 3800 | BI72: 191030 | BJ72: 2800 | BK72: 3900 | BL72: 189940 | BM72: 3000 | BN72: 4000 | BO72: 189950 | BP72: 3000 | BQ72: 4100 | BR72: 190760 | BS72: 3000 | BT72: 4200 | BU72: 170030 | BV72: 9100 | BW72: 9800 | BX72: 179780 | BY72: 9400 | BZ72: 10100 | CA72: 169030 | CB72: 9800 | CC72: 10400 | CD72: 143660 | CE72: 9800 | CF72: 10500 | CG72: 150020 | CH72: 10600 | CI72: 11200 | CJ72: 144290 | CK72: 10700 | CL72: 11300 | CM72: 155460 | CN72: 11800 | CO72: 12500 | CP72: 139960 | CQ72: 12400 | CR72: 13100 | CS72: 138770 | CT72: 12900 | CU72: 13600 | CV72: 136480 | CW72: 13600 | CX72: 14300 | CY72: 132070 | DB72: Index of Multiple Deprivation Quintile | DC72: IMD - 3 | DD72: Index of Multiple Deprivation QuintileIMD - 3 | DE72: 3400 | DF72: 4300 | DG72: 726660 | DH72: 3300 | DI72: 4100 | DJ72: 755340 | DK72: 3400 | DL72: 4200 | DM72: 667430 | DN72: 3500 | DO72: 4300 | DP72: 672640 | DQ72: n/a | DR72: n/a | DS72: n/a | DT72: n/a | DU72: n/a | DV72: n/a | DW72: n/a | DX72: n/a | DY72: n/a | DZ72: n/a | EA72: n/a | EB72: n/a | EC72: n/a | ED72: n/a | EE72: n/a | EF72: n/a | EG72: n/a | EH72: n/a | EI72: 12000 | EJ72: 13100 | EK72: 647310 | EL72: 12400 | EM72: 13500 | EN72: 599620 | EO72: 13000 | EP72: 14000 | EQ72: 506320 | ER72: 12900 | ES72: 14000 | ET72: 530580 | EU72: n/a | EV72: n/a | EW72: n/a | EX72: n/a | EY72: n/a | EZ72: n/a | FA72: n/a | FB72: n/a | FC72: n/a | FD72: n/a | FE72: n/a | FF72: n/a | FG72: n/a | FH72: n/a | FI72: n/a | FJ72: n/a | FK72: n/a | FL72: n/a
AN73: 61 | AO73: 1983-92 | AP73: 2 bedrooms | AQ73: 1983-922 bedrooms | AR73: 2700 | AS73: 3800 | AT73: 92610 | AU73: 2800 | AV73: 3700 | AW73: 95750 | AX73: 2700 | AY73: 3900 | AZ73: 84340 | BA73: 2800 | BB73: 3900 | BC73: 84750 | BD73: 2900 | BE73: 4000 | BF73: 84400 | BG73: 2800 | BH73: 4000 | BI73: 83940 | BJ73: 2900 | BK73: 4100 | BL73: 83460 | BM73: 3000 | BN73: 4200 | BO73: 83690 | BP73: 3000 | BQ73: 4200 | BR73: 84060 | BS73: 3100 | BT73: 4400 | BU73: 75920 | BV73: 8200 | BW73: 8800 | BX73: 73520 | BY73: 8400 | BZ73: 9000 | CA73: 69790 | CB73: 8700 | CC73: 9300 | CD73: 61040 | CE73: 8700 | CF73: 9300 | CG73: 63440 | CH73: 9400 | CI73: 10000 | CJ73: 61590 | CK73: 9500 | CL73: 10100 | CM73: 64810 | CN73: 10400 | CO73: 11100 | CP73: 59870 | CQ73: 10900 | CR73: 11600 | CS73: 59740 | CT73: 11200 | CU73: 11900 | CV73: 59300 | CW73: 11700 | CX73: 12400 | CY73: 57830 | DB73: Index of Multiple Deprivation Quintile | DC73: IMD - 4 | DD73: Index of Multiple Deprivation QuintileIMD - 4 | DE73: 3500 | DF73: 4400 | DG73: 726700 | DH73: 3500 | DI73: 4300 | DJ73: 755360 | DK73: 3500 | DL73: 4400 | DM73: 653730 | DN73: 3700 | DO73: 4500 | DP73: 659010 | DQ73: n/a | DR73: n/a | DS73: n/a | DT73: n/a | DU73: n/a | DV73: n/a | DW73: n/a | DX73: n/a | DY73: n/a | DZ73: n/a | EA73: n/a | EB73: n/a | EC73: n/a | ED73: n/a | EE73: n/a | EF73: n/a | EG73: n/a | EH73: n/a | EI73: 13100 | EJ73: 14200 | EK73: 647350 | EL73: 13500 | EM73: 14700 | EN73: 603000 | EO73: 14000 | EP73: 15200 | EQ73: 499730 | ER73: 13900 | ES73: 15100 | ET73: 524850 | EU73: n/a | EV73: n/a | EW73: n/a | EX73: n/a | EY73: n/a | EZ73: n/a | FA73: n/a | FB73: n/a | FC73: n/a | FD73: n/a | FE73: n/a | FF73: n/a | FG73: n/a | FH73: n/a | FI73: n/a | FJ73: n/a | FK73: n/a | FL73: n/a
AN74: 62 | AO74: 1993-99 | AP74: 2 bedrooms | AQ74: 1993-992 bedrooms | AR74: 2700 | AS74: 3700 | AT74: 58800 | AU74: 2700 | AV74: 3600 | AW74: 61640 | AX74: 2700 | AY74: 3800 | AZ74: 57340 | BA74: 2800 | BB74: 3800 | BC74: 57680 | BD74: 2800 | BE74: 3800 | BF74: 57460 | BG74: 2800 | BH74: 3800 | BI74: 57010 | BJ74: 2800 | BK74: 3900 | BL74: 56600 | BM74: 2900 | BN74: 4000 | BO74: 56720 | BP74: 3000 | BQ74: 4000 | BR74: 57030 | BS74: 3000 | BT74: 4200 | BU74: 51280 | BV74: 7900 | BW74: 8400 | BX74: 47470 | BY74: 8100 | BZ74: 8600 | CA74: 44470 | CB74: 8400 | CC74: 8900 | CD74: 41980 | CE74: 8500 | CF74: 9000 | CG74: 43780 | CH74: 9000 | CI74: 9500 | CJ74: 41910 | CK74: 9100 | CL74: 9600 | CM74: 44120 | CN74: 9900 | CO74: 10500 | CP74: 41580 | CQ74: 10300 | CR74: 10900 | CS74: 40710 | CT74: 10600 | CU74: 11200 | CV74: 39200 | CW74: 11100 | CX74: 11600 | CY74: 40290 | DB74: Index of Multiple Deprivation Quintile | DC74: IMD - 5 | DD74: Index of Multiple Deprivation QuintileIMD - 5 | DE74: 3600 | DF74: 4400 | DG74: 726690 | DH74: 3700 | DI74: 4400 | DJ74: 756600 | DK74: 3700 | DL74: 4500 | DM74: 651550 | DN74: 3800 | DO74: 4600 | DP74: 655600 | DQ74: n/a | DR74: n/a | DS74: n/a | DT74: n/a | DU74: n/a | DV74: n/a | DW74: n/a | DX74: n/a | DY74: n/a | DZ74: n/a | EA74: n/a | EB74: n/a | EC74: n/a | ED74: n/a | EE74: n/a | EF74: n/a | EG74: n/a | EH74: n/a | EI74: 14600 | EJ74: 15900 | EK74: 647270 | EL74: 15000 | EM74: 16200 | EN74: 605360 | EO74: 15500 | EP74: 16800 | EQ74: 541180 | ER74: 15300 | ES74: 16600 | ET74: 567390 | EU74: n/a | EV74: n/a | EW74: n/a | EX74: n/a | EY74: n/a | EZ74: n/a | FA74: n/a | FB74: n/a | FC74: n/a | FD74: n/a | FE74: n/a | FF74: n/a | FG74: n/a | FH74: n/a | FI74: n/a | FJ74: n/a | FK74: n/a | FL74: n/a
AN75: 63 | AO75: Post 1999 | AP75: 2 bedrooms | AQ75: Post 19992 bedrooms | AR75: 2800 | AS75: 4000 | AT75: 91990 | AU75: 2800 | AV75: 3800 | AW75: 101890 | AX75: 2800 | AY75: 4100 | AZ75: 83180 | BA75: 2900 | BB75: 4000 | BC75: 83520 | BD75: 2900 | BE75: 4100 | BF75: 69720 | BG75: 2900 | BH75: 4100 | BI75: 68950 | BJ75: 2900 | BK75: 4100 | BL75: 67820 | BM75: 2900 | BN75: 4200 | BO75: 63290 | BP75: 2900 | BQ75: 4100 | BR75: 54030 | BS75: 2900 | BT75: 4200 | BU75: 40280 | BV75: 7200 | BW75: 7800 | BX75: 44000 | BY75: 7300 | BZ75: 7900 | CA75: 35980 | CB75: 7500 | CC75: 8200 | CD75: 32680 | CE75: 7700 | CF75: 8300 | CG75: 36430 | CH75: 8100 | CI75: 8800 | CJ75: 26280 | CK75: 8100 | CL75: 8900 | CM75: 28270 | CN75: 8800 | CO75: 9500 | CP75: 29510 | CQ75: 10300 | CR75: 10500 | CS75: 26810 | CT75: 10900 | CU75: 11000 | CV75: 18340 | CW75: 11600 | CX75: 11700 | CY75: 22710 | DD75: All Properties | DE75: 3300 | DF75: 4100 | DG75: 3846180 | DH75: 3300 | DI75: 4000 | DJ75: 3998160 | DK75: 3300 | DL75: 4100 | DM75: 3498160 | DN75: 3400 | DO75: 4200 | DP75: 3528760 | DQ75: 3500 | DR75: 4200 | DS75: 3458030 | DT75: 3400 | DU75: 4200 | DV75: 3425800 | DW75: 3500 | DX75: 4300 | DY75: 3403390 | DZ75: 3600 | EA75: 4500 | EB75: 3395530 | EC75: 3700 | ED75: 4500 | EE75: 3389650 | EF75: 3800 | EG75: 4600 | EH75: 2996480 | EI75: 12000 | EJ75: 13100 | EK75: 3415650 | EL75: 12400 | EM75: 13500 | EN75: 3184030 | EO75: 12900 | EP75: 14000 | EQ75: 2778260 | ER75: 12900 | ES75: 14100 | ET75: 2909210 | EU75: 14000 | EV75: 15100 | EW75: 2757930 | EX75: 14100 | EY75: 15200 | EZ75: 2949010 | FA75: 15600 | FB75: 16600 | FC75: 2689450 | FD75: 16200 | FE75: 17200 | FF75: 2640270 | FG75: 16800 | FH75: 17800 | FI75: 2562760 | FJ75: 17700 | FK75: 18600 | FL75: 2531820
AN76: 64 | AO76: Pre 1919 | AP76: 3 bedrooms | AQ76: Pre 19193 bedrooms | AR76: 3400 | AS76: 4300 | AT76: 301260 | AU76: 3500 | AV76: 4200 | AW76: 312610 | AX76: 3500 | AY76: 4300 | AZ76: 277130 | BA76: 3600 | BB76: 4400 | BC76: 280620 | BD76: 3600 | BE76: 4400 | BF76: 255840 | BG76: 3600 | BH76: 4500 | BI76: 252510 | BJ76: 3700 | BK76: 4500 | BL76: 251130 | BM76: 3800 | BN76: 4700 | BO76: 251330 | BP76: 3900 | BQ76: 4700 | BR76: 252900 | BS76: 4000 | BT76: 4900 | BU76: 225220 | BV76: 13800 | BW76: 14700 | BX76: 275560 | BY76: 14300 | BZ76: 15200 | CA76: 256600 | CB76: 14800 | CC76: 15800 | CD76: 224460 | CE76: 14800 | CF76: 15800 | CG76: 234670 | CH76: 16100 | CI76: 17000 | CJ76: 209070 | CK76: 16200 | CL76: 17100 | CM76: 225850 | CN76: 17800 | CO76: 18700 | CP76: 201370 | CQ76: 18400 | CR76: 19300 | CS76: 198370 | CT76: 19100 | CU76: 19800 | CV76: 195000 | CW76: 20000 | CX76: 20800 | CY76: 190170
AN77: 65 | AO77: 1919-44 | AP77: 3 bedrooms | AQ77: =CONCATENATE(AO77,AP77) -> 1919-443 bedrooms | AR77: 3600 | AS77: 4100 | AT77: 479730 | AU77: 3600 | AV77: 4100 | AW77: 484400 | AX77: 3600 | AY77: 4100 | AZ77: 418820 | BA77: 3700 | BB77: 4200 | BC77: 422350 | BD77: 3700 | BE77: 4300 | BF77: 429870 | BG77: 3700 | BH77: 4300 | BI77: 425770 | BJ77: 3700 | BK77: 4300 | BL77: 423380 | BM77: 3900 | BN77: 4500 | BO77: 424460 | BP77: 3900 | BQ77: 4500 | BR77: 426100 | BS77: 4000 | BT77: 4700 | BU77: 376360 | BV77: 13900 | BW77: 14700 | BX77: 472090 | BY77: 14300 | BZ77: 15100 | CA77: 444240 | CB77: 14900 | CC77: 15700 | CD77: 377790 | CE77: 14800 | CF77: 15700 | CG77: 394430 | CH77: 16100 | CI77: 16800 | CJ77: 390020 | CK77: 16200 | CL77: 17000 | CM77: 414690 | CN77: 17900 | CO77: 18700 | CP77: 378180 | CQ77: 18600 | CR77: 19300 | CS77: 373070 | CT77: 19300 | CU77: 19900 | CV77: 367470 | CW77: 20200 | CX77: 20800 | CY77: 359190
AN78: 66 | AO78: 1945-64 | AP78: 3 bedrooms | AQ78: 1945-643 bedrooms | AR78: 3500 | AS78: 4100 | AT78: 457220 | AU78: 3500 | AV78: 4100 | AW78: 462990 | AX78: 3500 | AY78: 4100 | AZ78: 396540 | BA78: 3600 | BB78: 4200 | BC78: 399620 | BD78: 3600 | BE78: 4200 | BF78: 396550 | BG78: 3600 | BH78: 4200 | BI78: 393190 | BJ78: 3600 | BK78: 4200 | BL78: 390840 | BM78: 3800 | BN78: 4500 | BO78: 391560 | BP78: 3800 | BQ78: 4500 | BR78: 393510 | BS78: 3900 | BT78: 4600 | BU78: 350300 | BV78: 12700 | BW78: 13400 | BX78: 438350 | BY78: 13100 | BZ78: 13800 | CA78: 414380 | CB78: 13700 | CC78: 14400 | CD78: 349250 | CE78: 13700 | CF78: 14400 | CG78: 364180 | CH78: 14800 | CI78: 15500 | CJ78: 351750 | CK78: 15000 | CL78: 15700 | CM78: 372760 | CN78: 16600 | CO78: 17300 | CP78: 341270 | CQ78: 17200 | CR78: 17900 | CS78: 337000 | CT78: 17900 | CU78: 18500 | CV78: 332140 | CW78: 18800 | CX78: 19400 | CY78: 324080
AN79: 67 | AO79: 1965-82 | AP79: 3 bedrooms | AQ79: 1965-823 bedrooms | AR79: 3400 | AS79: 4000 | AT79: 429670 | AU79: 3400 | AV79: 4000 | AW79: 435800 | AX79: 3400 | AY79: 4000 | AZ79: 374230 | BA79: 3600 | BB79: 4100 | BC79: 376570 | BD79: 3600 | BE79: 4200 | BF79: 375270 | BG79: 3600 | BH79: 4200 | BI79: 372550 | BJ79: 3600 | BK79: 4300 | BL79: 370050 | BM79: 3800 | BN79: 4500 | BO79: 370830 | BP79: 3900 | BQ79: 4600 | BR79: 372660 | BS79: 3900 | BT79: 4700 | BU79: 330240 | BV79: 12000 | BW79: 12700 | BX79: 404730 | BY79: 12400 | BZ79: 13000 | CA79: 380950 | CB79: 12900 | CC79: 13500 | CD79: 322170 | CE79: 12800 | CF79: 13600 | CG79: 336270 | CH79: 13800 | CI79: 14500 | CJ79: 326230 | CK79: 14000 | CL79: 14700 | CM79: 346350 | CN79: 15500 | CO79: 16300 | CP79: 316410 | CQ79: 16200 | CR79: 16900 | CS79: 312760 | CT79: 16800 | CU79: 17500 | CV79: 307990 | CW79: 17700 | CX79: 18400 | CY79: 300370
AN80: 68 | AO80: 1983-92 | AP80: 3 bedrooms | AQ80: 1983-923 bedrooms | AR80: 3400 | AS80: 4100 | AT80: 91230 | AU80: 3500 | AV80: 4100 | AW80: 93400 | AX80: 3500 | AY80: 4200 | AZ80: 81540 | BA80: 3600 | BB80: 4300 | BC80: 81880 | BD80: 3600 | BE80: 4300 | BF80: 80700 | BG80: 3600 | BH80: 4300 | BI80: 80260 | BJ80: 3600 | BK80: 4400 | BL80: 79550 | BM80: 3800 | BN80: 4600 | BO80: 79770 | BP80: 3900 | BQ80: 4600 | BR80: 80220 | BS80: 3900 | BT80: 4800 | BU80: 72060 | BV80: 11700 | BW80: 12400 | BX80: 84480 | BY80: 12000 | BZ80: 12800 | CA80: 80500 | CB80: 12500 | CC80: 13200 | CD80: 70090 | CE80: 12500 | CF80: 13300 | CG80: 72690 | CH80: 13400 | CI80: 14100 | CJ80: 71190 | CK80: 13500 | CL80: 14300 | CM80: 74070 | CN80: 15000 | CO80: 15700 | CP80: 69240 | CQ80: 15500 | CR80: 16300 | CS80: 68740 | CT80: 16000 | CU80: 16800 | CV80: 68180 | CW80: 16700 | CX80: 17400 | CY80: 66810
AN81: 69 | AO81: 1993-99 | AP81: 3 bedrooms | AQ81: 1993-993 bedrooms | AR81: 3500 | AS81: 4100 | AT81: 69330 | AU81: 3500 | AV81: 4000 | AW81: 71910 | AX81: 3500 | AY81: 4100 | AZ81: 66710 | BA81: 3600 | BB81: 4200 | BC81: 66950 | BD81: 3600 | BE81: 4200 | BF81: 65860 | BG81: 3600 | BH81: 4200 | BI81: 65480 | BJ81: 3600 | BK81: 4200 | BL81: 64810 | BM81: 3800 | BN81: 4400 | BO81: 64990 | BP81: 3800 | BQ81: 4500 | BR81: 65310 | BS81: 3800 | BT81: 4600 | BU81: 58360 | BV81: 11100 | BW81: 11700 | BX81: 64940 | BY81: 11400 | BZ81: 12000 | CA81: 60520 | CB81: 11800 | CC81: 12400 | CD81: 57060 | CE81: 11800 | CF81: 12500 | CG81: 59530 | CH81: 12600 | CI81: 13300 | CJ81: 56510 | CK81: 12700 | CL81: 13400 | CM81: 58680 | CN81: 13900 | CO81: 14500 | CP81: 56760 | CQ81: 14300 | CR81: 15000 | CS81: 55130 | CT81: 14700 | CU81: 15400 | CV81: 52030 | CW81: 15200 | CX81: 15900 | CY81: 55010
AN82: 70 | AO82: Post 1999 | AP82: 3 bedrooms | AQ82: Post 19993 bedrooms | AR82: 3300 | AS82: 3900 | AT82: 71870 | AU82: 3300 | AV82: 3800 | AW82: 76770 | AX82: 3300 | AY82: 3900 | AZ82: 62680 | BA82: 3400 | BB82: 4000 | BC82: 62830 | BD82: 3400 | BE82: 4000 | BF82: 54720 | BG82: 3400 | BH82: 3900 | BI82: 54230 | BJ82: 3300 | BK82: 3900 | BL82: 53370 | BM82: 3400 | BN82: 4000 | BO82: 50520 | BP82: 3500 | BQ82: 4000 | BR82: 45220 | BS82: 3400 | BT82: 4000 | BU82: 35570 | BV82: 10900 | BW82: 11500 | BX82: 55770 | BY82: 11000 | BZ82: 11700 | CA82: 44860 | CB82: 11400 | CC82: 12100 | CD82: 41090 | CE82: 11500 | CF82: 12200 | CG82: 46650 | CH82: 12100 | CI82: 12900 | CJ82: 31870 | CK82: 12000 | CL82: 12800 | CM82: 33700 | CN82: 12900 | CO82: 13700 | CP82: 38480 | CQ82: 13800 | CR82: 14600 | CS82: 33230 | CT82: 14400 | CU82: 15200 | CV82: 22280 | CW82: 14500 | CX82: 15500 | CY82: 30370
AN83: 71 | AO83: Pre 1919 | AP83: 4 bedrooms | AQ83: Pre 19194 bedrooms | AR83: 4700 | AS83: 6000 | AT83: 79650 | AU83: 4700 | AV83: 5700 | AW83: 83350 | AX83: 4800 | AY83: 5900 | AZ83: 78000 | BA83: 4900 | BB83: 6000 | BC83: 79010 | BD83: 5000 | BE83: 6000 | BF83: 71820 | BG83: 5000 | BH83: 6000 | BI83: 71050 | BJ83: 5000 | BK83: 6000 | BL83: 70550 | BM83: 5200 | BN83: 6300 | BO83: 70540 | BP83: 5300 | BQ83: 6300 | BR83: 71060 | BS83: 5400 | BT83: 6500 | BU83: 63890 | BV83: 19600 | BW83: 20700 | BX83: 64720 | BY83: 20300 | BZ83: 21300 | CA83: 59880 | CB83: 21100 | CC83: 21900 | CD83: 55200 | CE83: 20800 | CF83: 21800 | CG83: 57950 | CH83: 22800 | CI83: 23500 | CJ83: 52160 | CK83: 22800 | CL83: 23500 | CM83: 56250 | CN83: 24900 | CO83: 25200 | CP83: 49210 | CQ83: 25500 | CR83: 25700 | CS83: 48080 | CT83: 26200 | CU83: 26300 | CV83: 46820 | CW83: 27300 | CX83: 27200 | CY83: 45230
AN84: 72 | AO84: 1919-44 | AP84: 4 bedrooms | AQ84: 1919-444 bedrooms | AR84: 4600 | AS84: 5500 | AT84: 54150 | AU84: 4600 | AV84: 5400 | AW84: 54950 | AX84: 4700 | AY84: 5500 | AZ84: 50650 | BA84: 4900 | BB84: 5600 | BC84: 51050 | BD84: 4900 | BE84: 5600 | BF84: 51340 | BG84: 4900 | BH84: 5600 | BI84: 50840 | BJ84: 5000 | BK84: 5700 | BL84: 50650 | BM84: 5200 | BN84: 5900 | BO84: 50680 | BP84: 5300 | BQ84: 6000 | BR84: 50940 | BS84: 5400 | BT84: 6100 | BU84: 46270 | BV84: 20500 | BW84: 21600 | BX84: 50810 | BY84: 21100 | BZ84: 22200 | CA84: 47490 | CB84: 21800 | CC84: 22800 | CD84: 43170 | CE84: 21500 | CF84: 22600 | CG84: 45360 | CH84: 23200 | CI84: 24100 | CJ84: 43950 | CK84: 23400 | CL84: 24200 | CM84: 46760 | CN84: 25500 | CO84: 26000 | CP84: 41710 | CQ84: 26000 | CR84: 26500 | CS84: 40740 | CT84: 26900 | CU84: 27300 | CV84: 39930 | CW84: 27900 | CX84: 28100 | CY84: 38550
AN85: 73 | AO85: 1945-64 | AP85: 4 bedrooms | AQ85: 1945-644 bedrooms | AR85: 4300 | AS85: 5200 | AT85: 46790 | AU85: 4400 | AV85: 5100 | AW85: 47750 | AX85: 4400 | AY85: 5100 | AZ85: 43330 | BA85: 4600 | BB85: 5300 | BC85: 43740 | BD85: 4600 | BE85: 5300 | BF85: 43990 | BG85: 4600 | BH85: 5300 | BI85: 43590 | BJ85: 4600 | BK85: 5400 | BL85: 43330 | BM85: 4900 | BN85: 5600 | BO85: 43410 | BP85: 5000 | BQ85: 5700 | BR85: 43660 | BS85: 5000 | BT85: 5800 | BU85: 39390 | BV85: 17600 | BW85: 18800 | BX85: 43670 | BY85: 18200 | BZ85: 19300 | CA85: 41130 | CB85: 18800 | CC85: 20000 | CD85: 36990 | CE85: 18600 | CF85: 19800 | CG85: 38620 | CH85: 20100 | CI85: 21200 | CJ85: 37950 | CK85: 20200 | CL85: 21300 | CM85: 40050 | CN85: 22200 | CO85: 23200 | CP85: 36170 | CQ85: 22800 | CR85: 23800 | CS85: 35570 | CT85: 23700 | CU85: 24500 | CV85: 35060 | CW85: 24800 | CX85: 25500 | CY85: 34140
AN86: 74 | AO86: 1965-82 | AP86: 4 bedrooms | AQ86: 1965-824 bedrooms | AR86: 4100 | AS86: 4800 | AT86: 104740 | AU86: 4200 | AV86: 4800 | AW86: 106920 | AX86: 4200 | AY86: 4800 | AZ86: 94120 | BA86: 4400 | BB86: 5000 | BC86: 94690 | BD86: 4400 | BE86: 5100 | BF86: 95170 | BG86: 4400 | BH86: 5100 | BI86: 94460 | BJ86: 4500 | BK86: 5100 | BL86: 93920 | BM86: 4700 | BN86: 5400 | BO86: 94110 | BP86: 4800 | BQ86: 5500 | BR86: 94610 | BS86: 4900 | BT86: 5600 | BU86: 84880 | BV86: 16700 | BW86: 17700 | BX86: 96630 | BY86: 17200 | BZ86: 18200 | CA86: 91060 | CB86: 17800 | CC86: 18800 | CD86: 79490 | CE86: 17600 | CF86: 18600 | CG86: 83100 | CH86: 18900 | CI86: 19900 | CJ86: 81520 | CK86: 19100 | CL86: 20100 | CM86: 85960 | CN86: 21100 | CO86: 22100 | CP86: 78630 | CQ86: 21800 | CR86: 22700 | CS86: 77500 | CT86: 22600 | CU86: 23400 | CV86: 75980 | CW86: 23600 | CX86: 24400 | CY86: 74020
AN87: 75 | AO87: 1983-92 | AP87: 4 bedrooms | AQ87: 1983-924 bedrooms | AR87: 4200 | AS87: 4900 | AT87: 58340 | AU87: 4300 | AV87: 4900 | AW87: 59900 | AX87: 4300 | AY87: 4900 | AZ87: 53150 | BA87: 4500 | BB87: 5100 | BC87: 53310 | BD87: 4500 | BE87: 5200 | BF87: 53740 | BG87: 4500 | BH87: 5200 | BI87: 53440 | BJ87: 4600 | BK87: 5200 | BL87: 52990 | BM87: 4900 | BN87: 5500 | BO87: 53200 | BP87: 5000 | BQ87: 5600 | BR87: 53460 | BS87: 5000 | BT87: 5700 | BU87: 47560 | BV87: 16300 | BW87: 17100 | BX87: 54910 | BY87: 16800 | BZ87: 17600 | CA87: 52370 | CB87: 17400 | CC87: 18200 | CD87: 46300 | CE87: 17200 | CF87: 18100 | CG87: 48220 | CH87: 18400 | CI87: 19300 | CJ87: 48140 | CK87: 18600 | CL87: 19500 | CM87: 49830 | CN87: 20500 | CO87: 21300 | CP87: 46820 | CQ87: 21000 | CR87: 21900 | CS87: 46470 | CT87: 21700 | CU87: 22600 | CV87: 45970 | CW87: 22600 | CX87: 23400 | CY87: 45040
AN88: 76 | AO88: 1993-99 | AP88: 4 bedrooms | AQ88: 1993-994 bedrooms | AR88: 4400 | AS88: 5000 | AT88: 47740 | AU88: 4400 | AV88: 4900 | AW88: 49790 | AX88: 4400 | AY88: 5000 | AZ88: 47010 | BA88: 4700 | BB88: 5200 | BC88: 47140 | BD88: 4700 | BE88: 5300 | BF88: 47230 | BG88: 4700 | BH88: 5300 | BI88: 46990 | BJ88: 4700 | BK88: 5300 | BL88: 46550 | BM88: 5000 | BN88: 5600 | BO88: 46770 | BP88: 5100 | BQ88: 5600 | BR88: 46940 | BS88: 5100 | BT88: 5700 | BU88: 41560 | BV88: 16200 | BW88: 16900 | BX88: 45010 | BY88: 16700 | BZ88: 17400 | CA88: 41870 | CB88: 17100 | CC88: 17900 | CD88: 40050 | CE88: 17000 | CF88: 17800 | CG88: 41740 | CH88: 18000 | CI88: 18900 | CJ88: 40040 | CK88: 18100 | CL88: 18900 | CM88: 41570 | CN88: 19500 | CO88: 20400 | CP88: 40630 | CQ88: 20100 | CR88: 20900 | CS88: 39220 | CT88: 20600 | CU88: 21400 | CV88: 35670 | CW88: 21000 | CX88: 21900 | CY88: 39780
AN89: 77 | AO89: Post 1999 | AP89: 4 bedrooms | AQ89: Post 19994 bedrooms | AR89: 4200 | AS89: 4900 | AT89: 49650 | AU89: 4300 | AV89: 4800 | AW89: 53290 | AX89: 4300 | AY89: 4900 | AZ89: 44920 | BA89: 4500 | BB89: 5100 | BC89: 45040 | BD89: 4500 | BE89: 5100 | BF89: 39190 | BG89: 4400 | BH89: 5100 | BI89: 38790 | BJ89: 4400 | BK89: 5000 | BL89: 38160 | BM89: 4500 | BN89: 5100 | BO89: 36660 | BP89: 4700 | BQ89: 5300 | BR89: 33430 | BS89: 4600 | BT89: 5200 | BU89: 26860 | BV89: 15200 | BW89: 16000 | BX89: 40830 | BY89: 15600 | BZ89: 16400 | CA89: 32950 | CB89: 16100 | CC89: 17000 | CD89: 31110 | CE89: 16200 | CF89: 17000 | CG89: 34940 | CH89: 16900 | CI89: 17800 | CJ89: 23680 | CK89: 16800 | CL89: 17700 | CM89: 24970 | CN89: 17900 | CO89: 18800 | CP89: 29200 | CQ89: 19100 | CR89: 19700 | CS89: 24210 | CT89: 20100 | CU89: 20600 | CV89: 16270 | CW89: 21500 | CX89: 21200 | CY89: 24060
AN90: 78 | AO90: Pre 1919 | AP90: 5 or more bedrooms | AQ90: Pre 19195 or more bedrooms | AR90: 6200 | AS90: 8500 | AT90: 39810 | AU90: 6100 | AV90: 7400 | AW90: 41100 | AX90: 6300 | AY90: 7700 | AZ90: 40140 | BA90: 6400 | BB90: 7800 | BC90: 40710 | BD90: 6500 | BE90: 7800 | BF90: 38220 | BG90: 6500 | BH90: 7800 | BI90: 37770 | BJ90: 6500 | BK90: 7800 | BL90: 37470 | BM90: 6800 | BN90: 8000 | BO90: 37480 | BP90: 6900 | BQ90: 8100 | BR90: 37800 | BS90: 7000 | BT90: 8300 | BU90: 34170 | BV90: 25500 | BW90: 25800 | BX90: 27570 | BY90: 26300 | BZ90: 26500 | CA90: 25170 | CB90: 27000 | CC90: 27000 | CD90: 24110 | CE90: 26700 | CF90: 26800 | CG90: 25320 | CH90: 28700 | CI90: 28300 | CJ90: 23110 | CK90: 28500 | CL90: 28000 | CM90: 25010 | CN90: 30300 | CO90: 29400 | CP90: 20620 | CQ90: 30600 | CR90: 29700 | CS90: 19740 | CT90: 31400 | CU90: 30200 | CV90: 19060 | CW90: 32400 | CX90: 31000 | CY90: 17960
AN91: 79 | AO91: 1919-44 | AP91: 5 or more bedrooms | AQ91: 1919-445 or more bedrooms | AR91: 5900 | AS91: 7700 | AT91: 12590 | AU91: 5800 | AV91: 7000 | AW91: 12760 | AX91: 5900 | AY91: 7100 | AZ91: 12250 | BA91: 6000 | BB91: 7200 | BC91: 12380 | BD91: 6100 | BE91: 7300 | BF91: 12630 | BG91: 6100 | BH91: 7300 | BI91: 12500 | BJ91: 6200 | BK91: 7300 | BL91: 12470 | BM91: 6500 | BN91: 7600 | BO91: 12480 | BP91: 6600 | BQ91: 7700 | BR91: 12530 | BS91: 6700 | BT91: 7800 | BU91: 11590 | BV91: 25800 | BW91: 26400 | BX91: 10170 | BY91: 26600 | BZ91: 27000 | CA91: 9300 | CB91: 27100 | CC91: 27500 | CD91: 8960 | CE91: 26800 | CF91: 27200 | CG91: 9390 | CH91: 28300 | CI91: 28700 | CJ91: 8970 | CK91: 28300 | CL91: 28500 | CM91: 9560 | CN91: 30100 | CO91: 29900 | CP91: 8100 | CQ91: 30500 | CR91: 30300 | CS91: 7800 | CT91: 31500 | CU91: 31000 | CV91: 7490 | CW91: 32300 | CX91: 31700 | CY91: 7070
AN92: 80 | AO92: 1945-64 | AP92: 5 or more bedrooms | AQ92: 1945-645 or more bedrooms | AR92: 5100 | AS92: 6500 | AT92: 8010 | AU92: 5100 | AV92: 6100 | AW92: 8230 | AX92: 5300 | AY92: 6400 | AZ92: 7880 | BA92: 5500 | BB92: 6500 | BC92: 7920 | BD92: 5500 | BE92: 6600 | BF92: 8080 | BG92: 5500 | BH92: 6600 | BI92: 8010 | BJ92: 5600 | BK92: 6600 | BL92: 7990 | BM92: 5900 | BN92: 6900 | BO92: 7970 | BP92: 6000 | BQ92: 7000 | BR92: 7990 | BS92: 6100 | BT92: 7200 | BU92: 7270 | BV92: 21500 | BW92: 22800 | BX92: 6880 | BY92: 22100 | BZ92: 23200 | CA92: 6410 | CB92: 23000 | CC92: 24200 | CD92: 6080 | CE92: 22700 | CF92: 23900 | CG92: 6390 | CH92: 24300 | CI92: 25400 | CJ92: 6260 | CK92: 24300 | CL92: 25400 | CM92: 6630 | CN92: 26500 | CO92: 27200 | CP92: 5870 | CQ92: 27000 | CR92: 27700 | CS92: 5700 | CT92: 27900 | CU92: 28400 | CV92: 5550 | CW92: 28800 | CX92: 29300 | CY92: 5380
AN93: 81 | AO93: 1965-82 | AP93: 5 or more bedrooms | AQ93: 1965-825 or more bedrooms | AR93: 4800 | AS93: 6100 | AT93: 11640 | AU93: 4900 | AV93: 5800 | AW93: 11970 | AX93: 5000 | AY93: 6000 | AZ93: 11000 | BA93: 5200 | BB93: 6200 | BC93: 11110 | BD93: 5300 | BE93: 6300 | BF93: 11040 | BG93: 5300 | BH93: 6200 | BI93: 10970 | BJ93: 5400 | BK93: 6300 | BL93: 10890 | BM93: 5700 | BN93: 6600 | BO93: 10920 | BP93: 5800 | BQ93: 6700 | BR93: 10980 | BS93: 5900 | BT93: 6800 | BU93: 9980 | BV93: 20100 | BW93: 21500 | BX93: 9850 | BY93: 20700 | BZ93: 22000 | CA93: 9260 | CB93: 21900 | CC93: 23100 | CD93: 8420 | CE93: 21500 | CF93: 22800 | CG93: 8800 | CH93: 22800 | CI93: 23900 | CJ93: 8550 | CK93: 23000 | CL93: 24200 | CM93: 9040 | CN93: 25100 | CO93: 26000 | CP93: 8030 | CQ93: 25700 | CR93: 26600 | CS93: 7900 | CT93: 26800 | CU93: 27400 | CV93: 7700 | CW93: 27800 | CX93: 28300 | CY93: 7460
AN94: 82 | AO94: 1983-92 | AP94: 5 or more bedrooms | AQ94: 1983-925 or more bedrooms | AR94: 5300 | AS94: 6600 | AT94: 5620 | AU94: 5400 | AV94: 6400 | AW94: 5810 | AX94: 5600 | AY94: 6500 | AZ94: 5550 | BA94: 5800 | BB94: 6800 | BC94: 5590 | BD94: 5800 | BE94: 6800 | BF94: 5640 | BG94: 5800 | BH94: 6800 | BI94: 5570 | BJ94: 6000 | BK94: 7000 | BL94: 5550 | BM94: 6300 | BN94: 7300 | BO94: 5550 | BP94: 6400 | BQ94: 7400 | BR94: 5610 | BS94: 6500 | BT94: 7400 | BU94: 5110 | BV94: 21900 | BW94: 23200 | BX94: 4740 | BY94: 22700 | BZ94: 23800 | CA94: 4480 | CB94: 23300 | CC94: 24300 | CD94: 4290 | CE94: 22900 | CF94: 24100 | CG94: 4470 | CH94: 24600 | CI94: 25400 | CJ94: 4510 | CK94: 24600 | CL94: 25500 | CM94: 4680 | CN94: 27000 | CO94: 27500 | CP94: 4230 | CQ94: 27500 | CR94: 28100 | CS94: 4140 | CT94: 28200 | CU94: 28800 | CV94: 4100 | CW94: 29100 | CX94: 29700 | CY94: 4010
AN95: 83 | AO95: 1993-99 | AP95: 5 or more bedrooms | AQ95: 1993-995 or more bedrooms | AR95: 5600 | AS95: 6900 | AT95: 6260 | AU95: 5600 | AV95: 6600 | AW95: 6620 | AX95: 5700 | AY95: 6600 | AZ95: 6470 | BA95: 5900 | BB95: 6900 | BC95: 6490 | BD95: 6100 | BE95: 7000 | BF95: 6560 | BG95: 6100 | BH95: 7000 | BI95: 6550 | BJ95: 6200 | BK95: 7000 | BL95: 6460 | BM95: 6500 | BN95: 7300 | BO95: 6480 | BP95: 6600 | BQ95: 7400 | BR95: 6510 | BS95: 6700 | BT95: 7600 | BU95: 5930 | BV95: 21900 | BW95: 23100 | BX95: 5270 | BY95: 22800 | BZ95: 23800 | CA95: 4860 | CB95: 23600 | CC95: 24700 | CD95: 5000 | CE95: 23500 | CF95: 24400 | CG95: 5180 | CH95: 24700 | CI95: 25700 | CJ95: 5020 | CK95: 24600 | CL95: 25600 | CM95: 5250 | CN95: 26400 | CO95: 27200 | CP95: 4910 | CQ95: 26700 | CR95: 27500 | CS95: 4710 | CT95: 27500 | CU95: 28300 | CV95: 4280 | CW95: 27900 | CX95: 28600 | CY95: 4800
AN96: 84 | AO96: Post 1999 | AP96: 5 or more bedrooms | AQ96: Post 19995 or more bedrooms | AR96: 5400 | AS96: 6600 | AT96: 10880 | AU96: 5500 | AV96: 6300 | AW96: 11770 | AX96: 5600 | AY96: 6700 | AZ96: 10700 | BA96: 5900 | BB96: 6900 | BC96: 10740 | BD96: 5900 | BE96: 6800 | BF96: 9380 | BG96: 5900 | BH96: 6800 | BI96: 9300 | BJ96: 5800 | BK96: 6700 | BL96: 9160 | BM96: 6000 | BN96: 6900 | BO96: 8870 | BP96: 6100 | BQ96: 6900 | BR96: 8150 | BS96: 6000 | BT96: 6900 | BU96: 6640 | BV96: 21600 | BW96: 22500 | BX96: 8300 | BY96: 22200 | BZ96: 23100 | CA96: 6820 | CB96: 22900 | CC96: 23900 | CD96: 7050 | CE96: 22900 | CF96: 24000 | CG96: 7780 | CH96: 24200 | CI96: 25300 | CJ96: 5430 | CK96: 23900 | CL96: 24900 | CM96: 5750 | CN96: 25400 | CO96: 26200 | CP96: 6160 | CQ96: 26000 | CR96: 26700 | CS96: 5180 | CT96: 27600 | CU96: 27900 | CV96: 3650 | CW96: 29700 | CX96: 28300 | CY96: 5370
AN97: 85 | AO97: Pre 1919 | AP97: 50 or less | AQ97: Pre 191950 or less | AR97: 2400 | AS97: 3900 | AT97: 51650 | AU97: 2200 | AV97: 3200 | AW97: 82600 | AX97: 2300 | AY97: 3300 | AZ97: 71830 | BA97: 2300 | BB97: 3300 | BC97: 72920 | BD97: 2300 | BE97: 3300 | BF97: 54320 | BG97: 2300 | BH97: 3300 | BI97: 53430 | BJ97: 2400 | BK97: 3400 | BL97: 53140 | BM97: 2400 | BN97: 3500 | BO97: 52370 | BP97: 2500 | BQ97: 3500 | BR97: 52160 | BS97: 2600 | BT97: 3700 | BU97: 48160 | BV97: 7400 | BW97: 8900 | BX97: 52190 | BY97: 7700 | BZ97: 9100 | CA97: 47530 | CB97: 7800 | CC97: 9000 | CD97: 50160 | CE97: 7900 | CF97: 9100 | CG97: 52520 | CH97: 8600 | CI97: 9700 | CJ97: 35950 | CK97: 8500 | CL97: 9700 | CM97: 40840 | CN97: 9500 | CO97: 10700 | CP97: 34630 | CQ97: 9900 | CR97: 11200 | CS97: 33830 | CT97: 10200 | CU97: 11500 | CV97: 33310 | CW97: 11000 | CX97: 12300 | CY97: 32210
AN98: 86 | AO98: 1919-44 | AP98: 50 or less | AQ98: 1919-4450 or less | AR98: 2100 | AS98: 2800 | AT98: 33000 | AU98: 2100 | AV98: 2700 | AW98: 35070 | AX98: 2100 | AY98: 2800 | AZ98: 30800 | BA98: 2200 | BB98: 2900 | BC98: 31330 | BD98: 2100 | BE98: 2800 | BF98: 31210 | BG98: 2100 | BH98: 2900 | BI98: 30780 | BJ98: 2200 | BK98: 2900 | BL98: 30630 | BM98: 2200 | BN98: 3000 | BO98: 30490 | BP98: 2200 | BQ98: 3000 | BR98: 30510 | BS98: 2300 | BT98: 3100 | BU98: 29100 | BV98: 7500 | BW98: 8200 | BX98: 29120 | BY98: 7800 | BZ98: 8500 | CA98: 26860 | CB98: 8000 | CC98: 8600 | CD98: 24190 | CE98: 8100 | CF98: 8800 | CG98: 25180 | CH98: 8900 | CI98: 9400 | CJ98: 23600 | CK98: 8900 | CL98: 9500 | CM98: 26640 | CN98: 9800 | CO98: 10500 | CP98: 22860 | CQ98: 10300 | CR98: 11000 | CS98: 22530 | CT98: 10600 | CU98: 11300 | CV98: 22110 | CW98: 11400 | CX98: 12000 | CY98: 21350
AN99: 87 | AO99: 1945-64 | AP99: 50 or less | AQ99: 1945-6450 or less | AR99: 2100 | AS99: 3000 | AT99: 87120 | AU99: 2100 | AV99: 2800 | AW99: 89980 | AX99: 2100 | AY99: 2800 | AZ99: 76880 | BA99: 2100 | BB99: 2900 | BC99: 78230 | BD99: 2100 | BE99: 2900 | BF99: 79020 | BG99: 2100 | BH99: 2900 | BI99: 77940 | BJ99: 2200 | BK99: 3000 | BL99: 77590 | BM99: 2200 | BN99: 3100 | BO99: 77290 | BP99: 2300 | BQ99: 3100 | BR99: 77490 | BS99: 2300 | BT99: 3200 | BU99: 70850 | BV99: 6700 | BW99: 7200 | BX99: 76510 | BY99: 6900 | BZ99: 7500 | CA99: 71010 | CB99: 7200 | CC99: 7700 | CD99: 60060 | CE99: 7300 | CF99: 7900 | CG99: 62510 | CH99: 8100 | CI99: 8600 | CJ99: 59330 | CK99: 8100 | CL99: 8700 | CM99: 66810 | CN99: 9000 | CO99: 9600 | CP99: 57350 | CQ99: 9500 | CR99: 10100 | CS99: 56970 | CT99: 9800 | CU99: 10300 | CV99: 55970 | CW99: 10600 | CX99: 11000 | CY99: 54080
AN100: 88 | AO100: 1965-82 | AP100: 50 or less | AQ100: 1965-8250 or less | AR100: 2100 | AS100: 3100 | AT100: 133430 | AU100: 2000 | AV100: 2900 | AW100: 140500 | AX100: 2000 | AY100: 3000 | AZ100: 121460 | BA100: 2100 | BB100: 3000 | BC100: 123260 | BD100: 2100 | BE100: 3100 | BF100: 124980 | BG100: 2100 | BH100: 3200 | BI100: 123910 | BJ100: 2100 | BK100: 3200 | BL100: 123390 | BM100: 2200 | BN100: 3400 | BO100: 123260 | BP100: 2200 | BQ100: 3400 | BR100: 123730 | BS100: 2300 | BT100: 3500 | BU100: 109620 | BV100: 5600 | BW100: 6200 | BX100: 86720 | BY100: 5800 | BZ100: 6400 | CA100: 80250 | CB100: 6100 | CC100: 6500 | CD100: 67740 | CE100: 6100 | CF100: 6700 | CG100: 71000 | CH100: 6700 | CI100: 7200 | CJ100: 67070 | CK100: 6700 | CL100: 7300 | CM100: 75760 | CN100: 7500 | CO100: 8000 | CP100: 65290 | CQ100: 7800 | CR100: 8400 | CS100: 64920 | CT100: 8100 | CU100: 8700 | CV100: 63840 | CW100: 8800 | CX100: 9300 | CY100: 60950
AN101: 89 | AO101: 1983-92 | AP101: 50 or less | AQ101: 1983-9250 or less | AR101: 2700 | AS101: 3800 | AT101: 67960 | AU101: 2600 | AV101: 3600 | AW101: 72730 | AX101: 2800 | AY101: 3900 | AZ101: 63130 | BA101: 2800 | BB101: 3800 | BC101: 63470 | BD101: 2900 | BE101: 3900 | BF101: 63620 | BG101: 2900 | BH101: 4000 | BI101: 63350 | BJ101: 3000 | BK101: 4000 | BL101: 63070 | BM101: 3100 | BN101: 4200 | BO101: 63310 | BP101: 3100 | BQ101: 4100 | BR101: 63570 | BS101: 3300 | BT101: 4300 | BU101: 57610 | BV101: 5500 | BW101: 6100 | BX101: 29690 | BY101: 5700 | BZ101: 6300 | CA101: 27850 | CB101: 5800 | CC101: 6300 | CD101: 23700 | CE101: 5800 | CF101: 6400 | CG101: 24670 | CH101: 6300 | CI101: 6800 | CJ101: 23450 | CK101: 6400 | CL101: 7000 | CM101: 25470 | CN101: 7000 | CO101: 7600 | CP101: 22910 | CQ101: 7400 | CR101: 8000 | CS101: 22800 | CT101: 7600 | CU101: 8200 | CV101: 22800 | CW101: 8100 | CX101: 8600 | CY101: 22080
AN102: 90 | AO102: 1993-99 | AP102: 50 or less | AQ102: 1993-9950 or less | AR102: 3100 | AS102: 4200 | AT102: 27390 | AU102: 3000 | AV102: 4000 | AW102: 29850 | AX102: 3100 | AY102: 4200 | AZ102: 26520 | BA102: 3100 | BB102: 4100 | BC102: 26760 | BD102: 3300 | BE102: 4300 | BF102: 26920 | BG102: 3300 | BH102: 4300 | BI102: 26630 | BJ102: 3400 | BK102: 4400 | BL102: 26520 | BM102: 3500 | BN102: 4600 | BO102: 26520 | BP102: 3500 | BQ102: 4500 | BR102: 26720 | BS102: 3600 | BT102: 4700 | BU102: 23840 | BV102: 5600 | BW102: 6400 | BX102: 12780 | BY102: 5800 | BZ102: 6600 | CA102: 11880 | CB102: 5800 | CC102: 6300 | CD102: 10530 | CE102: 5900 | CF102: 6500 | CG102: 10880 | CH102: 6400 | CI102: 7000 | CJ102: 10340 | CK102: 6500 | CL102: 7200 | CM102: 11280 | CN102: 7100 | CO102: 7800 | CP102: 10040 | CQ102: 7400 | CR102: 8200 | CS102: 9840 | CT102: 7600 | CU102: 8400 | CV102: 9640 | CW102: 8200 | CX102: 8900 | CY102: 9590
AN103: 91 | AO103: Post 1999 | AP103: 50 or less | AQ103: Post 199950 or less | AR103: 2700 | AS103: 3800 | AT103: 68020 | AU103: 2700 | AV103: 3600 | AW103: 76990 | AX103: 2800 | AY103: 3900 | AZ103: 62110 | BA103: 2900 | BB103: 3800 | BC103: 62430 | BD103: 3000 | BE103: 4100 | BF103: 49280 | BG103: 2900 | BH103: 4100 | BI103: 48650 | BJ103: 2900 | BK103: 4100 | BL103: 47950 | BM103: 2900 | BN103: 4100 | BO103: 44080 | BP103: 2900 | BQ103: 4100 | BR103: 36410 | BS103: 3000 | BT103: 4200 | BU103: 26120 | BV103: 5500 | BW103: 6200 | BX103: 22780 | BY103: 5600 | BZ103: 6300 | CA103: 18730 | CB103: 5700 | CC103: 6300 | CD103: 16730 | CE103: 5700 | CF103: 6500 | CG103: 18430 | CH103: 6100 | CI103: 6900 | CJ103: 12940 | CK103: 6200 | CL103: 7100 | CM103: 14220 | CN103: 6700 | CO103: 7600 | CP103: 13790 | CQ103: 8200 | CR103: 8700 | CS103: 13050 | CT103: 8600 | CU103: 9100 | CV103: 9010 | CW103: 10400 | CX103: 9900 | CY103: 10210
AN104: 92 | AO104: Pre 1919 | AP104: 51 to 100 | AQ104: Pre 191951 to 100 | AR104: 2800 | AS104: 3500 | AT104: 334140 | AU104: 2800 | AV104: 3400 | AW104: 353020 | AX104: 2800 | AY104: 3600 | AZ104: 312030 | BA104: 2900 | BB104: 3600 | BC104: 316440 | BD104: 2900 | BE104: 3600 | BF104: 299780 | BG104: 2900 | BH104: 3600 | BI104: 295480 | BJ104: 2900 | BK104: 3700 | BL104: 293870 | BM104: 3000 | BN104: 3800 | BO104: 293930 | BP104: 3100 | BQ104: 3900 | BR104: 295920 | BS104: 3200 | BT104: 4100 | BU104: 257960 | BV104: 10700 | BW104: 11300 | BX104: 320930 | BY104: 11100 | BZ104: 11700 | CA104: 296290 | CB104: 11600 | CC104: 12200 | CD104: 260930 | CE104: 11600 | CF104: 12300 | CG104: 272720 | CH104: 12500 | CI104: 13100 | CJ104: 250210 | CK104: 12500 | CL104: 13200 | CM104: 274710 | CN104: 13900 | CO104: 14600 | CP104: 241640 | CQ104: 14400 | CR104: 15200 | CS104: 238480 | CT104: 15000 | CU104: 15600 | CV104: 233790 | CW104: 15800 | CX104: 16400 | CY104: 228090
AN105: 93 | AO105: 1919-44 | AP105: 51 to 100 | AQ105: 1919-4451 to 100 | AR105: 3300 | AS105: 3800 | AT105: 407120 | AU105: 3300 | AV105: 3800 | AW105: 411350 | AX105: 3300 | AY105: 3800 | AZ105: 354290 | BA105: 3400 | BB105: 3900 | BC105: 357430 | BD105: 3400 | BE105: 3900 | BF105: 366960 | BG105: 3300 | BH105: 3900 | BI105: 363390 | BJ105: 3400 | BK105: 4000 | BL105: 361420 | BM105: 3500 | BN105: 4100 | BO105: 362070 | BP105: 3600 | BQ105: 4200 | BR105: 363430 | BS105: 3600 | BT105: 4300 | BU105: 320910 | BV105: 12200 | BW105: 12700 | BX105: 400130 | BY105: 12600 | BZ105: 13100 | CA105: 376640 | CB105: 13100 | CC105: 13600 | CD105: 319470 | CE105: 13100 | CF105: 13700 | CG105: 332810 | CH105: 14200 | CI105: 14700 | CJ105: 331360 | CK105: 14300 | CL105: 14800 | CM105: 353380 | CN105: 15800 | CO105: 16300 | CP105: 321620 | CQ105: 16500 | CR105: 17000 | CS105: 317620 | CT105: 17100 | CU105: 17500 | CV105: 312850 | CW105: 18000 | CX105: 18400 | CY105: 305580
AN106: 94 | AO106: 1945-64 | AP106: 51 to 100 | AQ106: 1945-6451 to 100 | AR106: 3100 | AS106: 3700 | AT106: 467610 | AU106: 3100 | AV106: 3700 | AW106: 474710 | AX106: 3100 | AY106: 3700 | AZ106: 404580 | BA106: 3200 | BB106: 3800 | BC106: 407920 | BD106: 3200 | BE106: 3800 | BF106: 409010 | BG106: 3200 | BH106: 3800 | BI106: 405660 | BJ106: 3200 | BK106: 3900 | BL106: 403270 | BM106: 3300 | BN106: 4100 | BO106: 403620 | BP106: 3400 | BQ106: 4100 | BR106: 405380 | BS106: 3400 | BT106: 4200 | BU106: 361960 | BV106: 11300 | BW106: 11800 | BX106: 448060 | BY106: 11700 | BZ106: 12200 | CA106: 423740 | CB106: 12200 | CC106: 12600 | CD106: 354540 | CE106: 12200 | CF106: 12700 | CG106: 369290 | CH106: 13200 | CI106: 13600 | CJ106: 360020 | CK106: 13300 | CL106: 13800 | CM106: 382500 | CN106: 14800 | CO106: 15200 | CP106: 349510 | CQ106: 15400 | CR106: 15900 | CS106: 345410 | CT106: 16000 | CU106: 16400 | CV106: 339990 | CW106: 16900 | CX106: 17300 | CY106: 332050
AN107: 95 | AO107: 1965-82 | AP107: 51 to 100 | AQ107: 1965-8251 to 100 | AR107: 3000 | AS107: 3700 | AT107: 472600 | AU107: 3100 | AV107: 3700 | AW107: 481430 | AX107: 3000 | AY107: 3800 | AZ107: 411970 | BA107: 3200 | BB107: 3800 | BC107: 414690 | BD107: 3200 | BE107: 3900 | BF107: 415730 | BG107: 3200 | BH107: 3900 | BI107: 412690 | BJ107: 3200 | BK107: 4000 | BL107: 410150 | BM107: 3400 | BN107: 4200 | BO107: 410700 | BP107: 3400 | BQ107: 4200 | BR107: 412790 | BS107: 3500 | BT107: 4300 | BU107: 364480 | BV107: 10500 | BW107: 11000 | BX107: 434420 | BY107: 10800 | BZ107: 11300 | CA107: 408940 | CB107: 11300 | CC107: 11700 | CD107: 344120 | CE107: 11200 | CF107: 11800 | CG107: 359060 | CH107: 12100 | CI107: 12600 | CJ107: 348550 | CK107: 12300 | CL107: 12800 | CM107: 371450 | CN107: 13600 | CO107: 14100 | CP107: 338480 | CQ107: 14200 | CR107: 14800 | CS107: 335010 | CT107: 14800 | CU107: 15300 | CV107: 329990 | CW107: 15600 | CX107: 16100 | CY107: 321140
AN108: 96 | AO108: 1983-92 | AP108: 51 to 100 | AQ108: 1983-9251 to 100 | AR108: 2900 | AS108: 3700 | AT108: 142520 | AU108: 2900 | AV108: 3700 | AW108: 145600 | AX108: 2900 | AY108: 3800 | AZ108: 127080 | BA108: 3000 | BB108: 3800 | BC108: 127640 | BD108: 3000 | BE108: 3900 | BF108: 127760 | BG108: 3000 | BH108: 3900 | BI108: 127000 | BJ108: 3100 | BK108: 4000 | BL108: 126000 | BM108: 3200 | BN108: 4200 | BO108: 126410 | BP108: 3300 | BQ108: 4200 | BR108: 127050 | BS108: 3300 | BT108: 4300 | BU108: 114390 | BV108: 9400 | BW108: 9900 | BX108: 128080 | BY108: 9600 | BZ108: 10200 | CA108: 121880 | CB108: 10000 | CC108: 10500 | CD108: 105550 | CE108: 10000 | CF108: 10500 | CG108: 109610 | CH108: 10700 | CI108: 11300 | CJ108: 107530 | CK108: 10800 | CL108: 11400 | CM108: 112400 | CN108: 11900 | CO108: 12500 | CP108: 104600 | CQ108: 12500 | CR108: 13000 | CS108: 104120 | CT108: 12900 | CU108: 13400 | CV108: 103450 | CW108: 13400 | CX108: 14000 | CY108: 101210
AN109: 97 | AO109: 1993-99 | AP109: 51 to 100 | AQ109: 1993-9951 to 100 | AR109: 3000 | AS109: 3700 | AT109: 98120 | AU109: 3000 | AV109: 3600 | AW109: 101660 | AX109: 3000 | AY109: 3700 | AZ109: 93770 | BA109: 3100 | BB109: 3800 | BC109: 94160 | BD109: 3100 | BE109: 3800 | BF109: 93800 | BG109: 3100 | BH109: 3800 | BI109: 93230 | BJ109: 3100 | BK109: 3900 | BL109: 92340 | BM109: 3200 | BN109: 4000 | BO109: 92660 | BP109: 3300 | BQ109: 4000 | BR109: 93040 | BS109: 3300 | BT109: 4200 | BU109: 83010 | BV109: 9200 | BW109: 9700 | BX109: 89570 | BY109: 9400 | BZ109: 9900 | CA109: 83780 | CB109: 9700 | CC109: 10200 | CD109: 78320 | CE109: 9800 | CF109: 10300 | CG109: 81710 | CH109: 10500 | CI109: 11000 | CJ109: 78100 | CK109: 10500 | CL109: 11100 | CM109: 81490 | CN109: 11500 | CO109: 12100 | CP109: 78220 | CQ109: 11900 | CR109: 12500 | CS109: 76310 | CT109: 12200 | CU109: 12800 | CV109: 72690 | CW109: 12700 | CX109: 13300 | CY109: 75860
AN110: 98 | AO110: Post 1999 | AP110: 51 to 100 | AQ110: Post 199951 to 100 | AR110: 2900 | AS110: 3800 | AT110: 87750 | AU110: 2900 | AV110: 3700 | AW110: 95180 | AX110: 2900 | AY110: 3800 | AZ110: 77210 | BA110: 3000 | BB110: 3800 | BC110: 77480 | BD110: 3000 | BE110: 3900 | BF110: 67170 | BG110: 3000 | BH110: 3900 | BI110: 66550 | BJ110: 2900 | BK110: 3800 | BL110: 65520 | BM110: 3000 | BN110: 3900 | BO110: 61930 | BP110: 3000 | BQ110: 3900 | BR110: 54890 | BS110: 3000 | BT110: 3900 | BU110: 42820 | BV110: 8700 | BW110: 9200 | BX110: 56650 | BY110: 8800 | BZ110: 9300 | CA110: 45720 | CB110: 9100 | CC110: 9600 | CD110: 41390 | CE110: 9200 | CF110: 9700 | CG110: 46930 | CH110: 9600 | CI110: 10200 | CJ110: 33270 | CK110: 9600 | CL110: 10200 | CM110: 35370 | CN110: 10500 | CO110: 11000 | CP110: 39600 | CQ110: 11500 | CR110: 11900 | CS110: 34170 | CT110: 12100 | CU110: 12300 | CV110: 23610 | CW110: 12900 | CX110: 13200 | CY110: 31320
AN111: 99 | AO111: Pre 1919 | AP111: 101 to 150 | AQ111: Pre 1919101 to 150 | AR111: 3600 | AS111: 4500 | AT111: 232020 | AU111: 3700 | AV111: 4400 | AW111: 239350 | AX111: 3700 | AY111: 4500 | AZ111: 213370 | BA111: 3800 | BB111: 4500 | BC111: 216010 | BD111: 3900 | BE111: 4600 | BF111: 197740 | BG111: 3900 | BH111: 4700 | BI111: 195160 | BJ111: 3900 | BK111: 4700 | BL111: 194020 | BM111: 4100 | BN111: 4900 | BO111: 194220 | BP111: 4100 | BQ111: 4900 | BR111: 195670 | BS111: 4200 | BT111: 5100 | BU111: 172360 | BV111: 15200 | BW111: 16000 | BX111: 210470 | BY111: 15800 | BZ111: 16500 | CA111: 196380 | CB111: 16400 | CC111: 17100 | CD111: 172050 | CE111: 16300 | CF111: 17100 | CG111: 180070 | CH111: 17800 | CI111: 18400 | CJ111: 161650 | CK111: 17900 | CL111: 18600 | CM111: 173980 | CN111: 19700 | CO111: 20300 | CP111: 155540 | CQ111: 20300 | CR111: 20900 | CS111: 153440 | CT111: 21100 | CU111: 21500 | CV111: 150720 | CW111: 22100 | CX111: 22500 | CY111: 147220
AN112: 100 | AO112: 1919-44 | AP112: 101 to 150 | AQ112: 1919-44101 to 150 | AR112: 3900 | AS112: 4500 | AT112: 214510 | AU112: 3900 | AV112: 4400 | AW112: 216970 | AX112: 3900 | AY112: 4500 | AZ112: 191370 | BA112: 4000 | BB112: 4600 | BC112: 192880 | BD112: 4100 | BE112: 4700 | BF112: 194330 | BG112: 4100 | BH112: 4700 | BI112: 192530 | BJ112: 4100 | BK112: 4700 | BL112: 191430 | BM112: 4300 | BN112: 4900 | BO112: 191950 | BP112: 4300 | BQ112: 5000 | BR112: 192840 | BS112: 4400 | BT112: 5100 | BU112: 171880 | BV112: 16600 | BW112: 17300 | BX112: 210200 | BY112: 17100 | BZ112: 17900 | CA112: 197830 | CB112: 17800 | CC112: 18500 | CD112: 171390 | CE112: 17600 | CF112: 18300 | CG112: 179500 | CH112: 19100 | CI112: 19800 | CJ112: 176310 | CK112: 19300 | CL112: 19900 | CM112: 186880 | CN112: 21300 | CO112: 21800 | CP112: 170730 | CQ112: 21900 | CR112: 22400 | CS112: 168140 | CT112: 22800 | CU112: 23200 | CV112: 165660 | CW112: 23800 | CX112: 24200 | CY112: 162140
AN113: 101 | AO113: 1945-64 | AP113: 101 to 150 | AQ113: 1945-64101 to 150 | AR113: 3700 | AS113: 4400 | AT113: 206490 | AU113: 3800 | AV113: 4400 | AW113: 209740 | AX113: 3800 | AY113: 4400 | AZ113: 183130 | BA113: 3900 | BB113: 4500 | BC113: 184410 | BD113: 3900 | BE113: 4500 | BF113: 183420 | BG113: 3900 | BH113: 4500 | BI113: 181880 | BJ113: 3900 | BK113: 4600 | BL113: 180840 | BM113: 4100 | BN113: 4800 | BO113: 181180 | BP113: 4200 | BQ113: 4900 | BR113: 182170 | BS113: 4200 | BT113: 5000 | BU113: 161610 | BV113: 14800 | BW113: 15600 | BX113: 196000 | BY113: 15200 | BZ113: 16000 | CA113: 185200 | CB113: 15900 | CC113: 16600 | CD113: 159550 | CE113: 15700 | CF113: 16600 | CG113: 166650 | CH113: 17100 | CI113: 17800 | CJ113: 161690 | CK113: 17200 | CL113: 18000 | CM113: 170730 | CN113: 19100 | CO113: 19800 | CP113: 156550 | CQ113: 19800 | CR113: 20500 | CS113: 154550 | CT113: 20500 | CU113: 21200 | CV113: 152500 | CW113: 21500 | CX113: 22200 | CY113: 148710
AN114: 102 | AO114: 1965-82 | AP114: 101 to 150 | AQ114: 1965-82101 to 150 | AR114: 3700 | AS114: 4300 | AT114: 221160 | AU114: 3800 | AV114: 4300 | AW114: 224780 | AX114: 3800 | AY114: 4400 | AZ114: 196250 | BA114: 3900 | BB114: 4500 | BC114: 197400 | BD114: 4000 | BE114: 4500 | BF114: 196660 | BG114: 4000 | BH114: 4600 | BI114: 195320 | BJ114: 4000 | BK114: 4600 | BL114: 194020 | BM114: 4200 | BN114: 4900 | BO114: 194480 | BP114: 4300 | BQ114: 4900 | BR114: 195330 | BS114: 4400 | BT114: 5100 | BU114: 174730 | BV114: 14500 | BW114: 15100 | BX114: 206310 | BY114: 14900 | BZ114: 15600 | CA114: 194670 | CB114: 15500 | CC114: 16200 | CD114: 167470 | CE114: 15400 | CF114: 16100 | CG114: 175020 | CH114: 16500 | CI114: 17200 | CJ114: 170660 | CK114: 16700 | CL114: 17400 | CM114: 180310 | CN114: 18500 | CO114: 19200 | CP114: 165200 | CQ114: 19200 | CR114: 19900 | CS114: 163320 | CT114: 20000 | CU114: 20600 | CV114: 160560 | CW114: 21000 | CX114: 21600 | CY114: 156490
AN115: 103 | AO115: 1983-92 | AP115: 101 to 150 | AQ115: 1983-92101 to 150 | AR115: 3900 | AS115: 4500 | AT115: 70320 | AU115: 4000 | AV115: 4500 | AW115: 72150 | AX115: 4000 | AY115: 4600 | AZ115: 63760 | BA115: 4100 | BB115: 4700 | BC115: 63990 | BD115: 4200 | BE115: 4800 | BF115: 64010 | BG115: 4200 | BH115: 4800 | BI115: 63700 | BJ115: 4200 | BK115: 4800 | BL115: 63160 | BM115: 4500 | BN115: 5100 | BO115: 63360 | BP115: 4600 | BQ115: 5200 | BR115: 63700 | BS115: 4600 | BT115: 5300 | BU115: 56690 | BV115: 14900 | BW115: 15400 | BX115: 66060 | BY115: 15400 | BZ115: 15900 | CA115: 63090 | CB115: 15900 | CC115: 16400 | CD115: 55660 | CE115: 15800 | CF115: 16300 | CG115: 57860 | CH115: 16900 | CI115: 17500 | CJ115: 57540 | CK115: 17100 | CL115: 17700 | CM115: 59560 | CN115: 18900 | CO115: 19400 | CP115: 56040 | CQ115: 19400 | CR115: 20100 | CS115: 55680 | CT115: 20100 | CU115: 20700 | CV115: 55040 | CW115: 20900 | CX115: 21500 | CY115: 53980
AN116: 104 | AO116: 1993-99 | AP116: 101 to 150 | AQ116: 1993-99101 to 150 | AR116: 4000 | AS116: 4600 | AT116: 54350 | AU116: 4000 | AV116: 4500 | AW116: 56520 | AX116: 4000 | AY116: 4600 | AZ116: 53200 | BA116: 4200 | BB116: 4700 | BC116: 53360 | BD116: 4300 | BE116: 4800 | BF116: 53370 | BG116: 4200 | BH116: 4800 | BI116: 53040 | BJ116: 4300 | BK116: 4800 | BL116: 52580 | BM116: 4500 | BN116: 5000 | BO116: 52770 | BP116: 4600 | BQ116: 5100 | BR116: 53010 | BS116: 4600 | BT116: 5200 | BU116: 47170 | BV116: 14600 | BW116: 15000 | BX116: 51840 | BY116: 15000 | BZ116: 15500 | CA116: 48320 | CB116: 15400 | CC116: 15900 | CD116: 46060 | CE116: 15300 | CF116: 15800 | CG116: 48040 | CH116: 16300 | CI116: 16700 | CJ116: 46000 | CK116: 16300 | CL116: 16800 | CM116: 47720 | CN116: 17800 | CO116: 18300 | CP116: 46660 | CQ116: 18300 | CR116: 18800 | CS116: 45090 | CT116: 18800 | CU116: 19200 | CV116: 41470 | CW116: 19200 | CX116: 19800 | CY116: 45650
AN117: 105 | AO117: Post 1999 | AP117: 101 to 150 | AQ117: Post 1999101 to 150 | AR117: 3700 | AS117: 4200 | AT117: 67460 | AU117: 3700 | AV117: 4200 | AW117: 71930 | AX117: 3700 | AY117: 4200 | AZ117: 58930 | BA117: 3800 | BB117: 4300 | BC117: 59050 | BD117: 3800 | BE117: 4300 | BF117: 51550 | BG117: 3800 | BH117: 4300 | BI117: 51090 | BJ117: 3800 | BK117: 4300 | BL117: 50230 | BM117: 3900 | BN117: 4400 | BO117: 47780 | BP117: 4000 | BQ117: 4500 | BR117: 42670 | BS117: 3900 | BT117: 4500 | BU117: 33670 | BV117: 13000 | BW117: 13500 | BX117: 55110 | BY117: 13300 | BZ117: 13800 | CA117: 44350 | CB117: 13700 | CC117: 14100 | CD117: 40780 | CE117: 13700 | CF117: 14300 | CG117: 45960 | CH117: 14400 | CI117: 14900 | CJ117: 30950 | CK117: 14300 | CL117: 14800 | CM117: 32700 | CN117: 15400 | CO117: 15900 | CP117: 37850 | CQ117: 15900 | CR117: 16800 | CS117: 32410 | CT117: 16800 | CU117: 17500 | CV117: 21250 | CW117: 18600 | CX117: 18200 | CY117: 30320
AN118: 106 | AO118: Pre 1919 | AP118: 151 to 200 | AQ118: Pre 1919151 to 200 | AR118: 4900 | AS118: 6200 | AT118: 63060 | AU118: 4900 | AV118: 5900 | AW118: 66310 | AX118: 5000 | AY118: 6000 | AZ118: 62040 | BA118: 5100 | BB118: 6100 | BC118: 62910 | BD118: 5200 | BE118: 6100 | BF118: 57950 | BG118: 5200 | BH118: 6200 | BI118: 57250 | BJ118: 5200 | BK118: 6200 | BL118: 56910 | BM118: 5500 | BN118: 6400 | BO118: 56880 | BP118: 5600 | BQ118: 6500 | BR118: 57270 | BS118: 5700 | BT118: 6700 | BU118: 50520 | BV118: 22200 | BW118: 22700 | BX118: 49320 | BY118: 22900 | BZ118: 23400 | CA118: 45750 | CB118: 23600 | CC118: 24000 | CD118: 42570 | CE118: 23300 | CF118: 23800 | CG118: 44720 | CH118: 25400 | CI118: 25600 | CJ118: 41300 | CK118: 25300 | CL118: 25500 | CM118: 44290 | CN118: 27600 | CO118: 27500 | CP118: 38730 | CQ118: 28200 | CR118: 28000 | CS118: 37740 | CT118: 29100 | CU118: 28700 | CV118: 36730 | CW118: 30200 | CX118: 29600 | CY118: 35350
AN119: 107 | AO119: 1919-44 | AP119: 151 to 200 | AQ119: 1919-44151 to 200 | AR119: 4900 | AS119: 5900 | AT119: 31830 | AU119: 4900 | AV119: 5700 | AW119: 32440 | AX119: 5000 | AY119: 5800 | AZ119: 29630 | BA119: 5200 | BB119: 6000 | BC119: 29900 | BD119: 5300 | BE119: 6000 | BF119: 30220 | BG119: 5300 | BH119: 6000 | BI119: 29960 | BJ119: 5300 | BK119: 6100 | BL119: 29810 | BM119: 5600 | BN119: 6300 | BO119: 29820 | BP119: 5600 | BQ119: 6400 | BR119: 30000 | BS119: 5800 | BT119: 6600 | BU119: 27260 | BV119: 24300 | BW119: 24900 | BX119: 29540 | BY119: 25100 | BZ119: 25600 | CA119: 27490 | CB119: 25800 | CC119: 26300 | CD119: 24940 | CE119: 25500 | CF119: 26000 | CG119: 26140 | CH119: 27200 | CI119: 27600 | CJ119: 25530 | CK119: 27400 | CL119: 27600 | CM119: 27020 | CN119: 29800 | CO119: 29700 | CP119: 23830 | CQ119: 30300 | CR119: 30200 | CS119: 23280 | CT119: 31300 | CU119: 31000 | CV119: 22650 | CW119: 32300 | CX119: 32000 | CY119: 21740
AN120: 108 | AO120: 1945-64 | AP120: 151 to 200 | AQ120: 1945-64151 to 200 | AR120: 4800 | AS120: 5800 | AT120: 21610 | AU120: 4800 | AV120: 5600 | AW120: 22290 | AX120: 4900 | AY120: 5800 | AZ120: 20240 | BA120: 5100 | BB120: 5900 | BC120: 20420 | BD120: 5100 | BE120: 5900 | BF120: 20380 | BG120: 5100 | BH120: 5900 | BI120: 20200 | BJ120: 5100 | BK120: 6000 | BL120: 20040 | BM120: 5400 | BN120: 6300 | BO120: 20080 | BP120: 5500 | BQ120: 6300 | BR120: 20240 | BS120: 5600 | BT120: 6500 | BU120: 18080 | BV120: 22500 | BW120: 23400 | BX120: 19020 | BY120: 23300 | BZ120: 24000 | CA120: 17820 | CB120: 23900 | CC120: 24600 | CD120: 16280 | CE120: 23500 | CF120: 24400 | CG120: 17050 | CH120: 25200 | CI120: 25800 | CJ120: 16540 | CK120: 25300 | CL120: 26000 | CM120: 17450 | CN120: 27700 | CO120: 28100 | CP120: 15480 | CQ120: 28300 | CR120: 28600 | CS120: 15050 | CT120: 29200 | CU120: 29400 | CV120: 14750 | CW120: 30400 | CX120: 30500 | CY120: 14260
AN121: 109 | AO121: 1965-82 | AP121: 151 to 200 | AQ121: 1965-82151 to 200 | AR121: 4500 | AS121: 5400 | AT121: 35190 | AU121: 4500 | AV121: 5300 | AW121: 36410 | AX121: 4600 | AY121: 5300 | AZ121: 32450 | BA121: 4700 | BB121: 5500 | BC121: 32690 | BD121: 4800 | BE121: 5600 | BF121: 31940 | BG121: 4800 | BH121: 5600 | BI121: 31690 | BJ121: 4900 | BK121: 5600 | BL121: 31500 | BM121: 5100 | BN121: 5900 | BO121: 31580 | BP121: 5300 | BQ121: 6000 | BR121: 31780 | BS121: 5300 | BT121: 6100 | BU121: 28570 | BV121: 20800 | BW121: 21700 | BX121: 29920 | BY121: 21500 | BZ121: 22300 | CA121: 28170 | CB121: 22100 | CC121: 23000 | CD121: 25070 | CE121: 21800 | CF121: 22700 | CG121: 26190 | CH121: 23500 | CI121: 24300 | CJ121: 25210 | CK121: 23700 | CL121: 24500 | CM121: 26520 | CN121: 26000 | CO121: 26700 | CP121: 24060 | CQ121: 26800 | CR121: 27400 | CS121: 23530 | CT121: 27700 | CU121: 28200 | CV121: 23020 | CW121: 28900 | CX121: 29200 | CY121: 22280
AN122: 110 | AO122: 1983-92 | AP122: 151 to 200 | AQ122: 1983-92151 to 200 | AR122: 4500 | AS122: 5400 | AT122: 18180 | AU122: 4600 | AV122: 5300 | AW122: 18940 | AX122: 4600 | AY122: 5400 | AZ122: 17170 | BA122: 4800 | BB122: 5600 | BC122: 17280 | BD122: 4900 | BE122: 5700 | BF122: 16950 | BG122: 4900 | BH122: 5700 | BI122: 16820 | BJ122: 4900 | BK122: 5700 | BL122: 16690 | BM122: 5300 | BN122: 6000 | BO122: 16770 | BP122: 5400 | BQ122: 6100 | BR122: 16870 | BS122: 5400 | BT122: 6200 | BU122: 15150 | BV122: 19200 | BW122: 20000 | BX122: 15530 | BY122: 19800 | BZ122: 20600 | CA122: 14780 | CB122: 20600 | CC122: 21300 | CD122: 13460 | CE122: 20300 | CF122: 21100 | CG122: 14090 | CH122: 21700 | CI122: 22400 | CJ122: 13810 | CK122: 21800 | CL122: 22700 | CM122: 14310 | CN122: 24000 | CO122: 24800 | CP122: 13320 | CQ122: 24600 | CR122: 25400 | CS122: 13180 | CT122: 25500 | CU122: 26200 | CV122: 13030 | CW122: 26500 | CX122: 27100 | CY122: 12690
AN123: 111 | AO123: 1993-99 | AP123: 151 to 200 | AQ123: 1993-99151 to 200 | AR123: 4700 | AS123: 5500 | AT123: 14910 | AU123: 4700 | AV123: 5400 | AW123: 15830 | AX123: 4800 | AY123: 5500 | AZ123: 15240 | BA123: 5000 | BB123: 5700 | BC123: 15290 | BD123: 5100 | BE123: 5800 | BF123: 14860 | BG123: 5100 | BH123: 5800 | BI123: 14800 | BJ123: 5100 | BK123: 5800 | BL123: 14660 | BM123: 5500 | BN123: 6100 | BO123: 14670 | BP123: 5600 | BQ123: 6200 | BR123: 14790 | BS123: 5600 | BT123: 6300 | BU123: 13230 | BV123: 18800 | BW123: 19400 | BX123: 12890 | BY123: 19400 | BZ123: 20000 | CA123: 11930 | CB123: 20100 | CC123: 20800 | CD123: 11820 | CE123: 19800 | CF123: 20500 | CG123: 12310 | CH123: 21000 | CI123: 21700 | CJ123: 11780 | CK123: 20900 | CL123: 21700 | CM123: 12270 | CN123: 22800 | CO123: 23500 | CP123: 11740 | CQ123: 23100 | CR123: 23900 | CS123: 11360 | CT123: 23900 | CU123: 24500 | CV123: 10390 | CW123: 23800 | CX123: 24800 | CY123: 11480
AN124: 112 | AO124: Post 1999 | AP124: 151 to 200 | AQ124: Post 1999151 to 200 | AR124: 4500 | AS124: 5200 | AT124: 21310 | AU124: 4600 | AV124: 5100 | AW124: 23070 | AX124: 4600 | AY124: 5200 | AZ124: 19710 | BA124: 4800 | BB124: 5300 | BC124: 19760 | BD124: 4800 | BE124: 5400 | BF124: 17310 | BG124: 4800 | BH124: 5400 | BI124: 17130 | BJ124: 4800 | BK124: 5300 | BL124: 16850 | BM124: 4900 | BN124: 5500 | BO124: 16200 | BP124: 5000 | BQ124: 5600 | BR124: 14900 | BS124: 5000 | BT124: 5500 | BU124: 11980 | BV124: 17400 | BW124: 18100 | BX124: 16550 | BY124: 17800 | BZ124: 18500 | CA124: 13600 | CB124: 18300 | CC124: 19000 | CD124: 13230 | CE124: 18400 | CF124: 19000 | CG124: 14710 | CH124: 19300 | CI124: 20000 | CJ124: 10360 | CK124: 19100 | CL124: 19800 | CM124: 10890 | CN124: 20500 | CO124: 21100 | CP124: 12300 | CQ124: 21200 | CR124: 21800 | CS124: 10300 | CT124: 22000 | CU124: 22600 | CV124: 7130 | CW124: 22500 | CX124: 22800 | CY124: 10270
AN125: 113 | AO125: Pre 1919 | AP125: Over 200 | AQ125: Pre 1919Over 200 | AR125: 6800 | AS125: 9200 | AT125: 44060 | AU125: 6600 | AV125: 8000 | AW125: 46250 | AX125: 6800 | AY125: 8200 | AZ125: 45550 | BA125: 7000 | BB125: 8300 | BC125: 46170 | BD125: n/a | BE125: n/a | BF125: n/a | BG125: n/a | BH125: n/a | BI125: n/a | BJ125: n/a | BK125: n/a | BL125: n/a | BM125: n/a | BN125: n/a | BO125: n/a | BP125: n/a | BQ125: n/a | BR125: n/a | BS125: n/a | BT125: n/a | BU125: n/a | BV125: 29200 | BW125: 28800 | BX125: 23960 | BY125: 29900 | BZ125: 29400 | CA125: 21700 | CB125: 30600 | CC125: 29700 | CD125: 21090 | CE125: 30100 | CF125: 29500 | CG125: 22190 | CH125: n/a | CI125: n/a | CJ125: n/a | CK125: n/a | CL125: n/a | CM125: n/a | CN125: n/a | CO125: n/a | CP125: n/a | CQ125: n/a | CR125: n/a | CS125: n/a | CT125: n/a | CU125: n/a | CV125: n/a | CW125: n/a | CX125: n/a | CY125: n/a
AN126: 114 | AO126: 1919-44 | AP126: Over 200 | AQ126: 1919-44Over 200 | AR126: 6700 | AS126: 8600 | AT126: 11990 | AU126: 6600 | AV126: 7800 | AW126: 12270 | AX126: 6700 | AY126: 7800 | AZ126: 11610 | BA126: 6800 | BB126: 8000 | BC126: 11760 | BD126: n/a | BE126: n/a | BF126: n/a | BG126: n/a | BH126: n/a | BI126: n/a | BJ126: n/a | BK126: n/a | BL126: n/a | BM126: n/a | BN126: n/a | BO126: n/a | BP126: n/a | BQ126: n/a | BR126: n/a | BS126: n/a | BT126: n/a | BU126: n/a | BV126: 31500 | BW126: 30800 | BX126: 8630 | BY126: 32200 | BZ126: 31500 | CA126: 7790 | CB126: 32600 | CC126: 31900 | CD126: 7400 | CE126: 32000 | CF126: 31500 | CG126: 7770 | CH126: n/a | CI126: n/a | CJ126: n/a | CK126: n/a | CL126: n/a | CM126: n/a | CN126: n/a | CO126: n/a | CP126: n/a | CQ126: n/a | CR126: n/a | CS126: n/a | CT126: n/a | CU126: n/a | CV126: n/a | CW126: n/a | CX126: n/a | CY126: n/a
AN127: 115 | AO127: 1945-64 | AP127: Over 200 | AQ127: 1945-64Over 200 | AR127: 6400 | AS127: 8200 | AT127: 5740 | AU127: 6400 | AV127: 7500 | AW127: 6000 | AX127: 6600 | AY127: 7700 | AZ127: 5960 | BA127: 6700 | BB127: 7900 | BC127: 6020 | BD127: n/a | BE127: n/a | BF127: n/a | BG127: n/a | BH127: n/a | BI127: n/a | BJ127: n/a | BK127: n/a | BL127: n/a | BM127: n/a | BN127: n/a | BO127: n/a | BP127: n/a | BQ127: n/a | BR127: n/a | BS127: n/a | BT127: n/a | BU127: n/a | BV127: 29100 | BW127: 29000 | BX127: 4040 | BY127: 29700 | BZ127: 29500 | CA127: 3680 | CB127: 30300 | CC127: 30300 | CD127: 3740 | CE127: 29700 | CF127: 29800 | CG127: 3920 | CH127: n/a | CI127: n/a | CJ127: n/a | CK127: n/a | CL127: n/a | CM127: n/a | CN127: n/a | CO127: n/a | CP127: n/a | CQ127: n/a | CR127: n/a | CS127: n/a | CT127: n/a | CU127: n/a | CV127: n/a | CW127: n/a | CX127: n/a | CY127: n/a
AN128: 116 | AO128: 1965-82 | AP128: Over 200 | AQ128: 1965-82Over 200 | AR128: 5800 | AS128: 7400 | AT128: 9320 | AU128: 5900 | AV128: 7000 | AW128: 9880 | AX128: 6000 | AY128: 7200 | AZ128: 9060 | BA128: 6200 | BB128: 7300 | BC128: 9140 | BD128: n/a | BE128: n/a | BF128: n/a | BG128: n/a | BH128: n/a | BI128: n/a | BJ128: n/a | BK128: n/a | BL128: n/a | BM128: n/a | BN128: n/a | BO128: n/a | BP128: n/a | BQ128: n/a | BR128: n/a | BS128: n/a | BT128: n/a | BU128: n/a | BV128: 27200 | BW128: 27500 | BX128: 6390 | BY128: 28000 | BZ128: 28200 | CA128: 5930 | CB128: 28700 | CC128: 28900 | CD128: 5560 | CE128: 28300 | CF128: 28600 | CG128: 5770 | CH128: n/a | CI128: n/a | CJ128: n/a | CK128: n/a | CL128: n/a | CM128: n/a | CN128: n/a | CO128: n/a | CP128: n/a | CQ128: n/a | CR128: n/a | CS128: n/a | CT128: n/a | CU128: n/a | CV128: n/a | CW128: n/a | CX128: n/a | CY128: n/a
AN129: 117 | AO129: 1983-92 | AP129: Over 200 | AQ129: 1983-92Over 200 | AR129: 5700 | AS129: 7400 | AT129: 6600 | AU129: 5800 | AV129: 6900 | AW129: 6980 | AX129: 5900 | AY129: 7000 | AZ129: 6470 | BA129: 6100 | BB129: 7200 | BC129: 6510 | BD129: n/a | BE129: n/a | BF129: n/a | BG129: n/a | BH129: n/a | BI129: n/a | BJ129: n/a | BK129: n/a | BL129: n/a | BM129: n/a | BN129: n/a | BO129: n/a | BP129: n/a | BQ129: n/a | BR129: n/a | BS129: n/a | BT129: n/a | BU129: n/a | BV129: 25300 | BW129: 25900 | BX129: 4700 | BY129: 26000 | BZ129: 26700 | CA129: 4420 | CB129: 26800 | CC129: 27300 | CD129: 4190 | CE129: 26300 | CF129: 27000 | CG129: 4350 | CH129: n/a | CI129: n/a | CJ129: n/a | CK129: n/a | CL129: n/a | CM129: n/a | CN129: n/a | CO129: n/a | CP129: n/a | CQ129: n/a | CR129: n/a | CS129: n/a | CT129: n/a | CU129: n/a | CV129: n/a | CW129: n/a | CX129: n/a | CY129: n/a
AN130: 118 | AO130: 1993-99 | AP130: Over 200 | AQ130: 1993-99Over 200 | AR130: 5800 | AS130: 7400 | AT130: 6410 | AU130: 5900 | AV130: 6900 | AW130: 6890 | AX130: 6000 | AY130: 7100 | AZ130: 6860 | BA130: 6200 | BB130: 7200 | BC130: 6880 | BD130: n/a | BE130: n/a | BF130: n/a | BG130: n/a | BH130: n/a | BI130: n/a | BJ130: n/a | BK130: n/a | BL130: n/a | BM130: n/a | BN130: n/a | BO130: n/a | BP130: n/a | BQ130: n/a | BR130: n/a | BS130: n/a | BT130: n/a | BU130: n/a | BV130: 25000 | BW130: 25600 | BX130: 4480 | BY130: 25500 | BZ130: 26300 | CA130: 4130 | CB130: 26600 | CC130: 27200 | CD130: 4430 | CE130: 26000 | CF130: 26800 | CG130: 4580 | CH130: n/a | CI130: n/a | CJ130: n/a | CK130: n/a | CL130: n/a | CM130: n/a | CN130: n/a | CO130: n/a | CP130: n/a | CQ130: n/a | CR130: n/a | CS130: n/a | CT130: n/a | CU130: n/a | CV130: n/a | CW130: n/a | CX130: n/a | CY130: n/a
AN131: 119 | AO131: Post 1999 | AP131: Over 200 | AQ131: Post 1999Over 200 | AR131: 5800 | AS131: 7200 | AT131: 11250 | AU131: 5900 | AV131: 6800 | AW131: 12480 | AX131: 6100 | AY131: 7200 | AZ131: 12040 | BA131: 6300 | BB131: 7400 | BC131: 12140 | BD131: n/a | BE131: n/a | BF131: n/a | BG131: n/a | BH131: n/a | BI131: n/a | BJ131: n/a | BK131: n/a | BL131: n/a | BM131: n/a | BN131: n/a | BO131: n/a | BP131: n/a | BQ131: n/a | BR131: n/a | BS131: n/a | BT131: n/a | BU131: n/a | BV131: 23400 | BW131: 24300 | BX131: 7030 | BY131: 23900 | BZ131: 24800 | CA131: 5940 | CB131: 24700 | CC131: 25500 | CD131: 6710 | CE131: 24400 | CF131: 25400 | CG131: 7340 | CH131: n/a | CI131: n/a | CJ131: n/a | CK131: n/a | CL131: n/a | CM131: n/a | CN131: n/a | CO131: n/a | CP131: n/a | CQ131: n/a | CR131: n/a | CS131: n/a | CT131: n/a | CU131: n/a | CV131: n/a | CW131: n/a | CX131: n/a | CY131: n/a
AN132: 120 | AO132: Pre 1919 | AP132: Owner-occupied | AQ132: Pre 1919Owner-occupied | AR132: 3500 | AS132: 4600 | AT132: 481170 | AU132: 3500 | AV132: 4400 | AW132: 495150 | AX132: 3600 | AY132: 4600 | AZ132: 460040 | BA132: 3700 | BB132: 4600 | BC132: 465750 | BD132: 3700 | BE132: 4600 | BF132: 378450 | BG132: 3700 | BH132: 4600 | BI132: 373880 | BJ132: 3700 | BK132: 4700 | BL132: 372180 | BM132: 3900 | BN132: 4800 | BO132: 371890 | BP132: 3900 | BQ132: 4900 | BR132: 374380 | BS132: 4000 | BT132: 5100 | BU132: 325590 | BV132: 13900 | BW132: 15300 | BX132: 412620 | BY132: 14400 | BZ132: 15800 | CA132: 383640 | CB132: 14900 | CC132: 16400 | CD132: 353150 | CE132: 14900 | CF132: 16300 | CG132: 369570 | CH132: 15700 | CI132: 17200 | CJ132: 300890 | CK132: 15800 | CL132: 17300 | CM132: 325280 | CN132: 17400 | CO132: 18800 | CP132: 288390 | CQ132: 18000 | CR132: 19300 | CS132: 283230 | CT132: 18600 | CU132: 19800 | CV132: 277200 | CW132: 19400 | CX132: 20600 | CY132: 269150
AN133: 121 | AO133: 1919-44 | AP133: Owner-occupied | AQ133: 1919-44Owner-occupied | AR133: 3600 | AS133: 4300 | AT133: 507810 | AU133: 3600 | AV133: 4200 | AW133: 512750 | AX133: 3700 | AY133: 4300 | AZ133: 437910 | BA133: 3800 | BB133: 4400 | BC133: 441740 | BD133: 3900 | BE133: 4500 | BF133: 404190 | BG133: 3900 | BH133: 4500 | BI133: 400740 | BJ133: 3900 | BK133: 4600 | BL133: 398820 | BM133: 4100 | BN133: 4800 | BO133: 399260 | BP133: 4100 | BQ133: 4800 | BR133: 400860 | BS133: 4200 | BT133: 5000 | BU133: 355690 | BV133: 14900 | BW133: 15900 | BX133: 491800 | BY133: 15400 | BZ133: 16400 | CA133: 461970 | CB133: 16100 | CC133: 17100 | CD133: 387470 | CE133: 16000 | CF133: 17000 | CG133: 405530 | CH133: 17200 | CI133: 18200 | CJ133: 362490 | CK133: 17400 | CL133: 18400 | CM133: 384400 | CN133: 19200 | CO133: 20100 | CP133: 350410 | CQ133: 19700 | CR133: 20600 | CS133: 344940 | CT133: 20500 | CU133: 21300 | CV133: 339560 | CW133: 21400 | CX133: 22200 | CY133: 331400
AN134: 122 | AO134: 1945-64 | AP134: Owner-occupied | AQ134: =CONCATENATE(AO134,AP134) -> 1945-64Owner-occupied | AR134: 3400 | AS134: 4100 | AT134: 495430 | AU134: 3400 | AV134: 4000 | AW134: 502390 | AX134: 3400 | AY134: 4100 | AZ134: 419720 | BA134: 3500 | BB134: 4200 | BC134: 422870 | BD134: 3600 | BE134: 4300 | BF134: 392110 | BG134: 3600 | BH134: 4400 | BI134: 389300 | BJ134: 3700 | BK134: 4400 | BL134: 387380 | BM134: 3800 | BN134: 4600 | BO134: 387700 | BP134: 3900 | BQ134: 4700 | BR134: 389350 | BS134: 4000 | BT134: 4800 | BU134: 346960 | BV134: 13300 | BW134: 14200 | BX134: 469280 | BY134: 13800 | BZ134: 14700 | CA134: 443110 | CB134: 14400 | CC134: 15300 | CD134: 361870 | CE134: 14300 | CF134: 15200 | CG134: 378310 | CH134: 15500 | CI134: 16500 | CJ134: 344240 | CK134: 15700 | CL134: 16700 | CM134: 363400 | CN134: 17400 | CO134: 18300 | CP134: 333470 | CQ134: 18000 | CR134: 18900 | CS134: 328910 | CT134: 18700 | CU134: 19500 | CV134: 324140 | CW134: 19600 | CX134: 20400 | CY134: 316230
AN135: 123 | AO135: 1965-82 | AP135: Owner-occupied | AQ135: 1965-82Owner-occupied | AR135: 3400 | AS135: 4100 | AT135: 580920 | AU135: 3400 | AV135: 4000 | AW135: 590920 | AX135: 3400 | AY135: 4100 | AZ135: 523650 | BA135: 3500 | BB135: 4200 | BC135: 526700 | BD135: 3700 | BE135: 4400 | BF135: 466030 | BG135: 3700 | BH135: 4400 | BI135: 463210 | BJ135: 3700 | BK135: 4400 | BL135: 460670 | BM135: 3900 | BN135: 4700 | BO135: 461220 | BP135: 4000 | BQ135: 4700 | BR135: 463410 | BS135: 4000 | BT135: 4800 | BU135: 411330 | BV135: 12600 | BW135: 13500 | BX135: 530140 | BY135: 13000 | BZ135: 13900 | CA135: 499350 | CB135: 13500 | CC135: 14400 | CD135: 432580 | CE135: 13400 | CF135: 14300 | CG135: 452140 | CH135: 14600 | CI135: 15600 | CJ135: 396910 | CK135: 14800 | CL135: 15800 | CM135: 419960 | CN135: 16400 | CO135: 17400 | CP135: 384650 | CQ135: 17000 | CR135: 18000 | CS135: 380010 | CT135: 17700 | CU135: 18600 | CV135: 373980 | CW135: 18600 | CX135: 19400 | CY135: 364400
AN136: 124 | AO136: 1983-92 | AP136: Owner-occupied | AQ136: 1983-92Owner-occupied | AR136: 3500 | AS136: 4300 | AT136: 213130 | AU136: 3500 | AV136: 4200 | AW136: 218770 | AX136: 3500 | AY136: 4300 | AZ136: 198650 | BA136: 3700 | BB136: 4400 | BC136: 199400 | BD136: 3800 | BE136: 4500 | BF136: 182030 | BG136: 3800 | BH136: 4500 | BI136: 181030 | BJ136: 3800 | BK136: 4600 | BL136: 179870 | BM136: 4000 | BN136: 4800 | BO136: 180260 | BP136: 4100 | BQ136: 4900 | BR136: 181080 | BS136: 4200 | BT136: 5000 | BU136: 162500 | BV136: 12100 | BW136: 13000 | BX136: 182060 | BY136: 12500 | BZ136: 13400 | CA136: 173450 | CB136: 12900 | CC136: 13800 | CD136: 155310 | CE136: 12800 | CF136: 13800 | CG136: 161430 | CH136: 13800 | CI136: 14800 | CJ136: 149740 | CK136: 14000 | CL136: 15000 | CM136: 155730 | CN136: 15500 | CO136: 16400 | CP136: 145620 | CQ136: 16000 | CR136: 16900 | CS136: 144690 | CT136: 16500 | CU136: 17400 | CV136: 143440 | CW136: 17200 | CX136: 18000 | CY136: 140240
AN137: 125 | AO137: 1993-99 | AP137: Owner-occupied | AQ137: 1993-99Owner-occupied | AR137: 3600 | AS137: 4300 | AT137: 134700 | AU137: 3700 | AV137: 4300 | AW137: 140220 | AX137: 3700 | AY137: 4300 | AZ137: 141490 | BA137: 3800 | BB137: 4500 | BC137: 141930 | BD137: 3800 | BE137: 4500 | BF137: 134300 | BG137: 3800 | BH137: 4500 | BI137: 133560 | BJ137: 3900 | BK137: 4600 | BL137: 132390 | BM137: 4000 | BN137: 4800 | BO137: 132850 | BP137: 4100 | BQ137: 4800 | BR137: 133500 | BS137: 4100 | BT137: 4900 | BU137: 118850 | BV137: 12600 | BW137: 13500 | BX137: 120310 | BY137: 13000 | BZ137: 13900 | CA137: 112140 | CB137: 13200 | CC137: 14200 | CD137: 114180 | CE137: 13100 | CF137: 14100 | CG137: 119160 | CH137: 13900 | CI137: 14900 | CJ137: 110060 | CK137: 14000 | CL137: 15000 | CM137: 114300 | CN137: 15200 | CO137: 16300 | CP137: 111090 | CQ137: 15700 | CR137: 16700 | CS137: 107660 | CT137: 16000 | CU137: 17000 | CV137: 100240 | CW137: 16700 | CX137: 17600 | CY137: 108350
AN138: 126 | AO138: Post 1999 | AP138: Owner-occupied | AQ138: Post 1999Owner-occupied | AR138: 3500 | AS138: 4300 | AT138: 143180 | AU138: 3500 | AV138: 4200 | AW138: 153960 | AX138: 3600 | AY138: 4400 | AZ138: 139070 | BA138: 3800 | BB138: 4400 | BC138: 139490 | BD138: 3800 | BE138: 4500 | BF138: 114770 | BG138: 3700 | BH138: 4500 | BI138: 113740 | BJ138: 3700 | BK138: 4400 | BL138: 112200 | BM138: 3800 | BN138: 4500 | BO138: 108540 | BP138: 3800 | BQ138: 4600 | BR138: 98700 | BS138: 3800 | BT138: 4600 | BU138: 77740 | BV138: 12300 | BW138: 13300 | BX138: 102530 | BY138: 12500 | BZ138: 13600 | CA138: 82980 | CB138: 12900 | CC138: 14000 | CD138: 83440 | CE138: 13000 | CF138: 14100 | CG138: 94000 | CH138: 13400 | CI138: 14700 | CJ138: 64040 | CK138: 13400 | CL138: 14600 | CM138: 67780 | CN138: 14300 | CO138: 15600 | CP138: 76980 | CQ138: 15000 | CR138: 16300 | CS138: 65700 | CT138: 15600 | CU138: 17100 | CV138: 44210 | CW138: 16200 | CX138: 17700 | CY138: 63730
AN139: 127 | AO139: Pre 1919 | AP139: Privately rented | AQ139: Pre 1919Privately rented | AR139: 2900 | AS139: 4000 | AT139: 197500 | AU139: 2900 | AV139: 3700 | AW139: 205810 | AX139: 3000 | AY139: 3900 | AZ139: 163550 | BA139: 3000 | BB139: 3900 | BC139: 166230 | BD139: 3000 | BE139: 3800 | BF139: 69700 | BG139: 2900 | BH139: 3800 | BI139: 68720 | BJ139: 3000 | BK139: 3900 | BL139: 68250 | BM139: 3100 | BN139: 4000 | BO139: 67640 | BP139: 3200 | BQ139: 4100 | BR139: 68060 | BS139: 3300 | BT139: 4300 | BU139: 58580 | BV139: 11000 | BW139: 12300 | BX139: 181260 | BY139: 11400 | BZ139: 12700 | CA139: 166110 | CB139: 11600 | CC139: 12900 | CD139: 130480 | CE139: 11600 | CF139: 13100 | CG139: 136550 | CH139: 12200 | CI139: 13400 | CJ139: 55380 | CK139: 12100 | CL139: 13400 | CM139: 61740 | CN139: 13400 | CO139: 14600 | CP139: 53160 | CQ139: 14000 | CR139: 15200 | CS139: 51990 | CT139: 14600 | CU139: 15700 | CV139: 50730 | CW139: 15700 | CX139: 16800 | CY139: 49360
AN140: 128 | AO140: 1919-44 | AP140: Privately rented | AQ140: 1919-44Privately rented | AR140: 3200 | AS140: 3900 | AT140: 64720 | AU140: 3200 | AV140: 3800 | AW140: 66100 | AX140: 3200 | AY140: 3800 | AZ140: 57540 | BA140: 3200 | BB140: 3900 | BC140: 58170 | BD140: 3200 | BE140: 3900 | BF140: 22860 | BG140: 3200 | BH140: 3900 | BI140: 22600 | BJ140: 3200 | BK140: 3900 | BL140: 22410 | BM140: 3300 | BN140: 4100 | BO140: 22260 | BP140: 3400 | BQ140: 4100 | BR140: 22400 | BS140: 3500 | BT140: 4300 | BU140: 20160 | BV140: 12100 | BW140: 13100 | BX140: 61020 | BY140: 12500 | BZ140: 13600 | CA140: 56740 | CB140: 12300 | CC140: 13400 | CD140: 48720 | CE140: 12400 | CF140: 13500 | CG140: 50720 | CH140: 13400 | CI140: 14500 | CJ140: 19930 | CK140: 13600 | CL140: 14500 | CM140: 21640 | CN140: 14900 | CO140: 16000 | CP140: 19150 | CQ140: 15700 | CR140: 16600 | CS140: 18850 | CT140: 16400 | CU140: 17200 | CV140: 18460 | CW140: 17400 | CX140: 18200 | CY140: 17990
AN141: 129 | AO141: 1945-64 | AP141: Privately rented | AQ141: 1945-64Privately rented | AR141: 3200 | AS141: 3900 | AT141: 60330 | AU141: 3200 | AV141: 3800 | AW141: 62370 | AX141: 3000 | AY141: 3800 | AZ141: 64600 | BA141: 3100 | BB141: 3800 | BC141: 65390 | BD141: 3200 | BE141: 3900 | BF141: 24640 | BG141: 3200 | BH141: 4000 | BI141: 24290 | BJ141: 3200 | BK141: 4000 | BL141: 24160 | BM141: 3300 | BN141: 4100 | BO141: 23960 | BP141: 3300 | BQ141: 4100 | BR141: 24160 | BS141: 3400 | BT141: 4300 | BU141: 21820 | BV141: 10600 | BW141: 11500 | BX141: 54650 | BY141: 11100 | BZ141: 11900 | CA141: 51020 | CB141: 10700 | CC141: 11400 | CD141: 52220 | CE141: 10700 | CF141: 11500 | CG141: 54400 | CH141: 12400 | CI141: 13000 | CJ141: 20080 | CK141: 12400 | CL141: 13100 | CM141: 21830 | CN141: 13700 | CO141: 14400 | CP141: 19330 | CQ141: 14400 | CR141: 15000 | CS141: 19220 | CT141: 15000 | CU141: 15500 | CV141: 18770 | CW141: 15900 | CX141: 16600 | CY141: 18240
AN142: 130 | AO142: 1965-82 | AP142: Privately rented | AQ142: 1965-82Privately rented | AR142: 3000 | AS142: 3900 | AT142: 78390 | AU142: 3000 | AV142: 3800 | AW142: 81530 | AX142: 2800 | AY142: 3700 | AZ142: 83630 | BA142: 2900 | BB142: 3700 | BC142: 84450 | BD142: 3200 | BE142: 4100 | BF142: 32670 | BG142: 3200 | BH142: 4100 | BI142: 32310 | BJ142: 3200 | BK142: 4200 | BL142: 32140 | BM142: 3300 | BN142: 4300 | BO142: 31950 | BP142: 3400 | BQ142: 4400 | BR142: 32120 | BS142: 3500 | BT142: 4500 | BU142: 28430 | BV142: 9300 | BW142: 10200 | BX142: 61920 | BY142: 9700 | BZ142: 10600 | CA142: 57730 | CB142: 9200 | CC142: 10100 | CD142: 56300 | CE142: 9300 | CF142: 10200 | CG142: 58520 | CH142: 10700 | CI142: 11500 | CJ142: 22410 | CK142: 10700 | CL142: 11600 | CM142: 24460 | CN142: 11800 | CO142: 12700 | CP142: 21740 | CQ142: 12400 | CR142: 13300 | CS142: 21370 | CT142: 12900 | CU142: 13800 | CV142: 21110 | CW142: 13900 | CX142: 14700 | CY142: 20320
AN143: 131 | AO143: 1983-92 | AP143: Privately rented | AQ143: 1983-92Privately rented | AR143: 3100 | AS143: 4000 | AT143: 44680 | AU143: 3100 | AV143: 3900 | AW143: 46530 | AX143: 2900 | AY143: 4000 | AZ143: 41040 | BA143: 3000 | BB143: 3900 | BC143: 41320 | BD143: 3300 | BE143: 4200 | BF143: 18470 | BG143: 3300 | BH143: 4200 | BI143: 18310 | BJ143: 3400 | BK143: 4300 | BL143: 18200 | BM143: 3500 | BN143: 4500 | BO143: 18110 | BP143: 3600 | BQ143: 4400 | BR143: 18220 | BS143: 3800 | BT143: 4700 | BU143: 16340 | BV143: 7900 | BW143: 8900 | BX143: 27890 | BY143: 8100 | BZ143: 9200 | CA143: 26240 | CB143: 8000 | CC143: 9000 | CD143: 22380 | CE143: 8000 | CF143: 9100 | CG143: 23320 | CH143: 8800 | CI143: 9800 | CJ143: 10360 | CK143: 8800 | CL143: 9800 | CM143: 11070 | CN143: 9600 | CO143: 10700 | CP143: 9990 | CQ143: 10000 | CR143: 11200 | CS143: 9950 | CT143: 10500 | CU143: 11500 | CV143: 9970 | CW143: 11000 | CX143: 12200 | CY143: 9620
AN144: 132 | AO144: 1993-99 | AP144: Privately rented | AQ144: 1993-99Privately rented | AR144: 3100 | AS144: 4200 | AT144: 27030 | AU144: 3100 | AV144: 4000 | AW144: 28610 | AX144: 3100 | AY144: 4200 | AZ144: 25140 | BA144: 3200 | BB144: 4200 | BC144: 25370 | BD144: 3500 | BE144: 4400 | BF144: 12930 | BG144: 3500 | BH144: 4400 | BI144: 12810 | BJ144: 3500 | BK144: 4400 | BL144: 12710 | BM144: 3600 | BN144: 4600 | BO144: 12670 | BP144: 3700 | BQ144: 4600 | BR144: 12710 | BS144: 3700 | BT144: 4700 | BU144: 10970 | BV144: 8500 | BW144: 9600 | BX144: 18520 | BY144: 8700 | BZ144: 9800 | CA144: 17150 | CB144: 8600 | CC144: 9600 | CD144: 15190 | CE144: 8600 | CF144: 9600 | CG144: 15770 | CH144: 9700 | CI144: 10600 | CJ144: 8020 | CK144: 9800 | CL144: 10600 | CM144: 8510 | CN144: 10600 | CO144: 11700 | CP144: 7870 | CQ144: 11100 | CR144: 12100 | CS144: 7740 | CT144: 11400 | CU144: 12400 | CV144: 7490 | CW144: 12000 | CX144: 13000 | CY144: 7560
AN145: 133 | AO145: Post 1999 | AP145: Privately rented | AQ145: Post 1999Privately rented | AR145: 3200 | AS145: 4200 | AT145: 75360 | AU145: 3200 | AV145: 4100 | AW145: 83320 | AX145: 3200 | AY145: 4200 | AZ145: 60280 | BA145: 3200 | BB145: 4200 | BC145: 60570 | BD145: 3300 | BE145: 4300 | BF145: 21530 | BG145: 3300 | BH145: 4300 | BI145: 21260 | BJ145: 3200 | BK145: 4300 | BL145: 20980 | BM145: 3200 | BN145: 4300 | BO145: 19790 | BP145: 3200 | BQ145: 4200 | BR145: 16870 | BS145: 3200 | BT145: 4300 | BU145: 11880 | BV145: 8300 | BW145: 9400 | BX145: 32410 | BY145: 8500 | BZ145: 9600 | CA145: 26730 | CB145: 8200 | CC145: 9300 | CD145: 20530 | CE145: 8300 | CF145: 9500 | CG145: 22600 | CH145: 8400 | CI145: 9600 | CJ145: 7310 | CK145: 8500 | CL145: 9700 | CM145: 7920 | CN145: 9500 | CO145: 10700 | CP145: 8280 | CQ145: 10900 | CR145: 11500 | CS145: 7620 | CT145: 11100 | CU145: 11700 | CV145: 5180 | CW145: 12100 | CX145: 12900 | CY145: 6270
AN146: 134 | AO146: Pre 1919 | AP146: Council/Housing Association | AQ146: Pre 1919Council/Housing Association | AR146: 3000 | AS146: 3700 | AT146: 41400 | AU146: 3000 | AV146: 3500 | AW146: 42560 | AX146: 2900 | AY146: 3600 | AZ146: 43320 | BA146: 3000 | BB146: 3700 | BC146: 44010 | BD146: 2900 | BE146: 3600 | BF146: 36650 | BG146: 2900 | BH146: 3600 | BI146: 36100 | BJ146: 2900 | BK146: 3700 | BL146: 36000 | BM146: 3000 | BN146: 3900 | BO146: 35890 | BP146: 3100 | BQ146: 3900 | BR146: 35960 | BS146: 3200 | BT146: 4100 | BU146: 30460 | BV146: 10400 | BW146: 11500 | BX146: 39780 | BY146: 10800 | BZ146: 11900 | CA146: 36970 | CB146: 12000 | CC146: 13000 | CD146: 37560 | CE146: 12000 | CF146: 13200 | CG146: 39300 | CH146: 12200 | CI146: 13100 | CJ146: 29930 | CK146: 12300 | CL146: 13300 | CM146: 33150 | CN146: 13700 | CO146: 14700 | CP146: 29010 | CQ146: 14300 | CR146: 15300 | CS146: 28750 | CT146: 14800 | CU146: 15700 | CV146: 28000 | CW146: 15900 | CX146: 16700 | CY146: 27010
AN147: 135 | AO147: 1919-44 | AP147: Council/Housing Association | AQ147: 1919-44Council/Housing Association | AR147: 3200 | AS147: 3700 | AT147: 124560 | AU147: 3200 | AV147: 3700 | AW147: 125890 | AX147: 3100 | AY147: 3600 | AZ147: 119400 | BA147: 3200 | BB147: 3700 | BC147: 120430 | BD147: 3300 | BE147: 3700 | BF147: 103200 | BG147: 3200 | BH147: 3700 | BI147: 102150 | BJ147: 3200 | BK147: 3800 | BL147: 101540 | BM147: 3400 | BN147: 3900 | BO147: 101510 | BP147: 3400 | BQ147: 4000 | BR147: 101600 | BS147: 3500 | BT147: 4100 | BU147: 87610 | BV147: 10100 | BW147: 10600 | BX147: 122640 | BY147: 10500 | BZ147: 11000 | CA147: 115930 | CB147: 11400 | CC147: 11800 | CD147: 109300 | CE147: 11500 | CF147: 12100 | CG147: 113140 | CH147: 12400 | CI147: 12900 | CJ147: 93990 | CK147: 12600 | CL147: 13100 | CM147: 100510 | CN147: 13900 | CO147: 14500 | CP147: 90710 | CQ147: 14600 | CR147: 15200 | CS147: 89460 | CT147: 15200 | CU147: 15700 | CV147: 87630 | CW147: 16200 | CX147: 16700 | CY147: 84920
AN148: 136 | AO148: 1945-64 | AP148: Council/Housing Association | AQ148: 1945-64Council/Housing Association | AR148: 2900 | AS148: 3600 | AT148: 231860 | AU148: 2900 | AV148: 3500 | AW148: 235490 | AX148: 2800 | AY148: 3400 | AZ148: 204910 | BA148: 2900 | BB148: 3500 | BC148: 207070 | BD148: 3000 | BE148: 3600 | BF148: 173890 | BG148: 2900 | BH148: 3600 | BI148: 172300 | BJ148: 3000 | BK148: 3700 | BL148: 171360 | BM148: 3100 | BN148: 3800 | BO148: 170750 | BP148: 3100 | BQ148: 3900 | BR148: 171290 | BS148: 3200 | BT148: 4000 | BU148: 151580 | BV148: 9300 | BW148: 9700 | BX148: 218240 | BY148: 9700 | BZ148: 10100 | CA148: 205980 | CB148: 10600 | CC148: 11000 | CD148: 179310 | CE148: 10700 | CF148: 11100 | CG148: 185870 | CH148: 11500 | CI148: 11900 | CJ148: 149270 | CK148: 11600 | CL148: 12000 | CM148: 160930 | CN148: 12900 | CO148: 13300 | CP148: 144470 | CQ148: 13600 | CR148: 14000 | CS148: 142630 | CT148: 14100 | CU148: 14400 | CV148: 140070 | CW148: 14900 | CX148: 15300 | CY148: 135810
AN149: 137 | AO149: 1965-82 | AP149: Council/Housing Association | AQ149: 1965-82Council/Housing Association | AR149: 2600 | AS149: 3400 | AT149: 211310 | AU149: 2600 | AV149: 3200 | AW149: 217370 | AX149: 2600 | AY149: 3400 | AZ149: 162030 | BA149: 2700 | BB149: 3400 | BC149: 163880 | BD149: 2800 | BE149: 3600 | BF149: 158630 | BG149: 2700 | BH149: 3600 | BI149: 157380 | BJ149: 2800 | BK149: 3700 | BL149: 156530 | BM149: 2900 | BN149: 3800 | BO149: 156160 | BP149: 3000 | BQ149: 3900 | BR149: 156530 | BS149: 3000 | BT149: 4000 | BU149: 135780 | BV149: 7900 | BW149: 8400 | BX149: 170060 | BY149: 8200 | BZ149: 8600 | CA149: 159370 | CB149: 8900 | CC149: 9300 | CD149: 120330 | CE149: 8900 | CF149: 9400 | CG149: 125410 | CH149: 9700 | CI149: 10100 | CJ149: 113920 | CK149: 9700 | CL149: 10300 | CM149: 123790 | CN149: 10800 | CO149: 11300 | CP149: 110230 | CQ149: 11400 | CR149: 12000 | CS149: 109140 | CT149: 11800 | CU149: 12400 | CV149: 106790 | CW149: 12600 | CX149: 13200 | CY149: 102380
AN150: 138 | AO150: 1983-92 | AP150: Council/Housing Association | AQ150: 1983-92Council/Housing Association | AR150: 2500 | AS150: 3400 | AT150: 47320 | AU150: 2500 | AV150: 3300 | AW150: 49300 | AX150: 2600 | AY150: 3500 | AZ150: 37690 | BA150: 2700 | BB150: 3500 | BC150: 37910 | BD150: 2700 | BE150: 3600 | BF150: 36010 | BG150: 2600 | BH150: 3600 | BI150: 35950 | BJ150: 2700 | BK150: 3700 | BL150: 35760 | BM150: 2800 | BN150: 3800 | BO150: 35720 | BP150: 2800 | BQ150: 3800 | BR150: 35820 | BS150: 2900 | BT150: 3900 | BU150: 31630 | BV150: 7500 | BW150: 8100 | BX150: 33190 | BY150: 7700 | BZ150: 8300 | CA150: 31460 | CB150: 8200 | CC150: 8800 | CD150: 24810 | CE150: 8300 | CF150: 9000 | CG150: 25780 | CH150: 8600 | CI150: 9200 | CJ150: 21220 | CK150: 8800 | CL150: 9400 | CM150: 22450 | CN150: 9700 | CO150: 10400 | CP150: 20570 | CQ150: 10300 | CR150: 11000 | CS150: 20450 | CT150: 10600 | CU150: 11300 | CV150: 20340 | CW150: 11200 | CX150: 11900 | CY150: 19800
AN151: 139 | AO151: 1993-99 | AP151: Council/Housing Association | AQ151: 1993-99Council/Housing Association | AR151: 3300 | AS151: 4000 | AT151: 39110 | AU151: 3200 | AV151: 3900 | AW151: 40690 | AX151: 3200 | AY151: 3900 | AZ151: 28940 | BA151: 3300 | BB151: 4000 | BC151: 29100 | BD151: 3300 | BE151: 4100 | BF151: 22580 | BG151: 3300 | BH151: 4100 | BI151: 22410 | BJ151: 3400 | BK151: 4200 | BL151: 22210 | BM151: 3500 | BN151: 4400 | BO151: 22220 | BP151: 3600 | BQ151: 4400 | BR151: 22300 | BS151: 3600 | BT151: 4500 | BU151: 19700 | BV151: 8300 | BW151: 8700 | BX151: 32160 | BY151: 8500 | BZ151: 8900 | CA151: 30210 | CB151: 8800 | CC151: 9200 | CD151: 21970 | CE151: 9000 | CF151: 9400 | CG151: 22750 | CH151: 9500 | CI151: 10000 | CJ151: 15960 | CK151: 9600 | CL151: 10100 | CM151: 16860 | CN151: 10500 | CO151: 11100 | CP151: 15620 | CQ151: 11000 | CR151: 11700 | CS151: 15280 | CT151: 11400 | CU151: 11900 | CV151: 14970 | CW151: 11900 | CX151: 12500 | CY151: 14760
AN152: 140 | AO152: Post 1999 | AP152: Council/Housing Association | AQ152: Post 1999Council/Housing Association | AR152: 3000 | AS152: 3700 | AT152: 35510 | AU152: 3000 | AV152: 3600 | AW152: 38410 | AX152: 2900 | AY152: 3600 | AZ152: 28070 | BA152: 2900 | BB152: 3600 | BC152: 28180 | BD152: 2900 | BE152: 3700 | BF152: 16290 | BG152: 2900 | BH152: 3700 | BI152: 16110 | BJ152: 2900 | BK152: 3700 | BL152: 15960 | BM152: 2900 | BN152: 3700 | BO152: 14770 | BP152: 3000 | BQ152: 3800 | BR152: 12040 | BS152: 3000 | BT152: 3800 | BU152: 8910 | BV152: 8300 | BW152: 9000 | BX152: 21780 | BY152: 8300 | BZ152: 9000 | CA152: 17400 | CB152: 8400 | CC152: 9100 | CD152: 13780 | CE152: 8700 | CF152: 9400 | CG152: 15570 | CH152: 8700 | CI152: 9400 | CJ152: 6850 | CK152: 8700 | CL152: 9500 | CM152: 7400 | CN152: 9400 | CO152: 10300 | CP152: 7950 | CQ152: 11100 | CR152: 11400 | CS152: 7360 | CT152: 11300 | CU152: 11800 | CV152: 5130 | CW152: 12100 | CX152: 12500 | CY152: 5540
AN153: 141 | AO153: Pre 1919 | AP153: Less than £15,000 | AQ153: Pre 1919Less than £15,000 | AR153: 2700 | AS153: 3600 | AT153: 98710 | AU153: 2700 | AV153: 3500 | AW153: 102050 | AX153: 2700 | AY153: 3600 | AZ153: 100020 | BA153: 2700 | BB153: 3600 | BC153: 101730 | BD153: n/a | BE153: n/a | BF153: n/a | BG153: n/a | BH153: n/a | BI153: n/a | BJ153: n/a | BK153: n/a | BL153: n/a | BM153: n/a | BN153: n/a | BO153: n/a | BP153: n/a | BQ153: n/a | BR153: n/a | BS153: n/a | BT153: n/a | BU153: n/a | BV153: 11200 | BW153: 12400 | BX153: 88430 | BY153: 11600 | BZ153: 12800 | CA153: 82250 | CB153: 11900 | CC153: 13100 | CD153: 79060 | CE153: 12000 | CF153: 13200 | CG153: 82720 | CH153: n/a | CI153: n/a | CJ153: n/a | CK153: n/a | CL153: n/a | CM153: n/a | CN153: n/a | CO153: n/a | CP153: n/a | CQ153: n/a | CR153: n/a | CS153: n/a | CT153: n/a | CU153: n/a | CV153: n/a | CW153: n/a | CX153: n/a | CY153: n/a
AN154: 142 | AO154: 1919-44 | AP154: Less than £15,000 | AQ154: 1919-44Less than £15,000 | AR154: 2900 | AS154: 3500 | AT154: 124520 | AU154: 2800 | AV154: 3400 | AW154: 126100 | AX154: 2800 | AY154: 3400 | AZ154: 124830 | BA154: 2900 | BB154: 3500 | BC154: 126040 | BD154: n/a | BE154: n/a | BF154: n/a | BG154: n/a | BH154: n/a | BI154: n/a | BJ154: n/a | BK154: n/a | BL154: n/a | BM154: n/a | BN154: n/a | BO154: n/a | BP154: n/a | BQ154: n/a | BR154: n/a | BS154: n/a | BT154: n/a | BU154: n/a | BV154: 11300 | BW154: 12000 | BX154: 121490 | BY154: 11700 | BZ154: 12400 | CA154: 114690 | CB154: 12200 | CC154: 13000 | CD154: 112310 | CE154: 12300 | CF154: 13100 | CG154: 116670 | CH154: n/a | CI154: n/a | CJ154: n/a | CK154: n/a | CL154: n/a | CM154: n/a | CN154: n/a | CO154: n/a | CP154: n/a | CQ154: n/a | CR154: n/a | CS154: n/a | CT154: n/a | CU154: n/a | CV154: n/a | CW154: n/a | CX154: n/a | CY154: n/a
AN155: 143 | AO155: 1945-64 | AP155: Less than £15,000 | AQ155: 1945-64Less than £15,000 | AR155: 2600 | AS155: 3300 | AT155: 192960 | AU155: 2600 | AV155: 3200 | AW155: 196770 | AX155: 2600 | AY155: 3300 | AZ155: 187600 | BA155: 2600 | BB155: 3300 | BC155: 189670 | BD155: n/a | BE155: n/a | BF155: n/a | BG155: n/a | BH155: n/a | BI155: n/a | BJ155: n/a | BK155: n/a | BL155: n/a | BM155: n/a | BN155: n/a | BO155: n/a | BP155: n/a | BQ155: n/a | BR155: n/a | BS155: n/a | BT155: n/a | BU155: n/a | BV155: 10200 | BW155: 10700 | BX155: 181950 | BY155: 10600 | BZ155: 11100 | CA155: 171970 | CB155: 11100 | CC155: 11600 | CD155: 161900 | CE155: 11200 | CF155: 11800 | CG155: 168210 | CH155: n/a | CI155: n/a | CJ155: n/a | CK155: n/a | CL155: n/a | CM155: n/a | CN155: n/a | CO155: n/a | CP155: n/a | CQ155: n/a | CR155: n/a | CS155: n/a | CT155: n/a | CU155: n/a | CV155: n/a | CW155: n/a | CX155: n/a | CY155: n/a
AN156: 144 | AO156: 1965-82 | AP156: Less than £15,000 | AQ156: 1965-82Less than £15,000 | AR156: 2400 | AS156: 3200 | AT156: 193640 | AU156: 2400 | AV156: 3100 | AW156: 199440 | AX156: 2400 | AY156: 3200 | AZ156: 186080 | BA156: 2500 | BB156: 3300 | BC156: 188030 | BD156: n/a | BE156: n/a | BF156: n/a | BG156: n/a | BH156: n/a | BI156: n/a | BJ156: n/a | BK156: n/a | BL156: n/a | BM156: n/a | BN156: n/a | BO156: n/a | BP156: n/a | BQ156: n/a | BR156: n/a | BS156: n/a | BT156: n/a | BU156: n/a | BV156: 9100 | BW156: 9800 | BX156: 160760 | BY156: 9500 | BZ156: 10200 | CA156: 151310 | CB156: 9900 | CC156: 10700 | CD156: 138420 | CE156: 10000 | CF156: 10800 | CG156: 144360 | CH156: n/a | CI156: n/a | CJ156: n/a | CK156: n/a | CL156: n/a | CM156: n/a | CN156: n/a | CO156: n/a | CP156: n/a | CQ156: n/a | CR156: n/a | CS156: n/a | CT156: n/a | CU156: n/a | CV156: n/a | CW156: n/a | CX156: n/a | CY156: n/a
AN157: 145 | AO157: 1983-92 | AP157: Less than £15,000 | AQ157: 1983-92Less than £15,000 | AR157: 2400 | AS157: 3400 | AT157: 53750 | AU157: 2400 | AV157: 3300 | AW157: 56160 | AX157: 2500 | AY157: 3400 | AZ157: 55610 | BA157: 2500 | BB157: 3400 | BC157: 55960 | BD157: n/a | BE157: n/a | BF157: n/a | BG157: n/a | BH157: n/a | BI157: n/a | BJ157: n/a | BK157: n/a | BL157: n/a | BM157: n/a | BN157: n/a | BO157: n/a | BP157: n/a | BQ157: n/a | BR157: n/a | BS157: n/a | BT157: n/a | BU157: n/a | BV157: 8500 | BW157: 9300 | BX157: 37880 | BY157: 8800 | BZ157: 9600 | CA157: 36090 | CB157: 9300 | CC157: 10300 | CD157: 35930 | CE157: 9400 | CF157: 10400 | CG157: 37300 | CH157: n/a | CI157: n/a | CJ157: n/a | CK157: n/a | CL157: n/a | CM157: n/a | CN157: n/a | CO157: n/a | CP157: n/a | CQ157: n/a | CR157: n/a | CS157: n/a | CT157: n/a | CU157: n/a | CV157: n/a | CW157: n/a | CX157: n/a | CY157: n/a
AN158: 146 | AO158: 1993-99 | AP158: Less than £15,000 | AQ158: 1993-99Less than £15,000 | AR158: 2900 | AS158: 3700 | AT158: 30310 | AU158: 2800 | AV158: 3600 | AW158: 31750 | AX158: 2900 | AY158: 3700 | AZ158: 34510 | BA158: 3000 | BB158: 3700 | BC158: 34700 | BD158: n/a | BE158: n/a | BF158: n/a | BG158: n/a | BH158: n/a | BI158: n/a | BJ158: n/a | BK158: n/a | BL158: n/a | BM158: n/a | BN158: n/a | BO158: n/a | BP158: n/a | BQ158: n/a | BR158: n/a | BS158: n/a | BT158: n/a | BU158: n/a | BV158: 8700 | BW158: 9400 | BX158: 24220 | BY158: 8900 | BZ158: 9700 | CA158: 22840 | CB158: 9500 | CC158: 10300 | CD158: 25480 | CE158: 9600 | CF158: 10400 | CG158: 26460 | CH158: n/a | CI158: n/a | CJ158: n/a | CK158: n/a | CL158: n/a | CM158: n/a | CN158: n/a | CO158: n/a | CP158: n/a | CQ158: n/a | CR158: n/a | CS158: n/a | CT158: n/a | CU158: n/a | CV158: n/a | CW158: n/a | CX158: n/a | CY158: n/a
AN159: 147 | AO159: Post 1999 | AP159: Less than £15,000 | AQ159: Post 1999Less than £15,000 | AR159: 2900 | AS159: 3700 | AT159: 26170 | AU159: 2800 | AV159: 3600 | AW159: 28680 | AX159: 2900 | AY159: 3700 | AZ159: 29540 | BA159: 3000 | BB159: 3700 | BC159: 29690 | BD159: n/a | BE159: n/a | BF159: n/a | BG159: n/a | BH159: n/a | BI159: n/a | BJ159: n/a | BK159: n/a | BL159: n/a | BM159: n/a | BN159: n/a | BO159: n/a | BP159: n/a | BQ159: n/a | BR159: n/a | BS159: n/a | BT159: n/a | BU159: n/a | BV159: 8800 | BW159: 9700 | BX159: 14540 | BY159: 8900 | BZ159: 9900 | CA159: 11840 | CB159: 9500 | CC159: 10500 | CD159: 13780 | CE159: 9600 | CF159: 10600 | CG159: 15720 | CH159: n/a | CI159: n/a | CJ159: n/a | CK159: n/a | CL159: n/a | CM159: n/a | CN159: n/a | CO159: n/a | CP159: n/a | CQ159: n/a | CR159: n/a | CS159: n/a | CT159: n/a | CU159: n/a | CV159: n/a | CW159: n/a | CX159: n/a | CY159: n/a
AN160: 148 | AO160: Pre 1919 | AP160: £15,000 - £19,999 | AQ160: Pre 1919£15,000 - £19,999 | AR160: 2900 | AS160: 3800 | AT160: 53650 | AU160: 2900 | AV160: 3600 | AW160: 55310 | AX160: 2900 | AY160: 3800 | AZ160: 50830 | BA160: 3000 | BB160: 3800 | BC160: 51640 | BD160: n/a | BE160: n/a | BF160: n/a | BG160: n/a | BH160: n/a | BI160: n/a | BJ160: n/a | BK160: n/a | BL160: n/a | BM160: n/a | BN160: n/a | BO160: n/a | BP160: n/a | BQ160: n/a | BR160: n/a | BS160: n/a | BT160: n/a | BU160: n/a | BV160: 11200 | BW160: 12400 | BX160: 47930 | BY160: 11700 | BZ160: 12900 | CA160: 44390 | CB160: 12400 | CC160: 13600 | CD160: 40160 | CE160: 12400 | CF160: 13700 | CG160: 42000 | CH160: n/a | CI160: n/a | CJ160: n/a | CK160: n/a | CL160: n/a | CM160: n/a | CN160: n/a | CO160: n/a | CP160: n/a | CQ160: n/a | CR160: n/a | CS160: n/a | CT160: n/a | CU160: n/a | CV160: n/a | CW160: n/a | CX160: n/a | CY160: n/a
AN161: 149 | AO161: 1919-44 | AP161: £15,000 - £19,999 | AQ161: 1919-44£15,000 - £19,999 | AR161: 3000 | AS161: 3600 | AT161: 56420 | AU161: 3000 | AV161: 3500 | AW161: 57060 | AX161: 3000 | AY161: 3600 | AZ161: 49330 | BA161: 3000 | BB161: 3700 | BC161: 49720 | BD161: n/a | BE161: n/a | BF161: n/a | BG161: n/a | BH161: n/a | BI161: n/a | BJ161: n/a | BK161: n/a | BL161: n/a | BM161: n/a | BN161: n/a | BO161: n/a | BP161: n/a | BQ161: n/a | BR161: n/a | BS161: n/a | BT161: n/a | BU161: n/a | BV161: 12100 | BW161: 12900 | BX161: 54730 | BY161: 12500 | BZ161: 13300 | CA161: 51780 | CB161: 13300 | CC161: 14200 | CD161: 43930 | CE161: 13300 | CF161: 14300 | CG161: 45680 | CH161: n/a | CI161: n/a | CJ161: n/a | CK161: n/a | CL161: n/a | CM161: n/a | CN161: n/a | CO161: n/a | CP161: n/a | CQ161: n/a | CR161: n/a | CS161: n/a | CT161: n/a | CU161: n/a | CV161: n/a | CW161: n/a | CX161: n/a | CY161: n/a
AN162: 150 | AO162: 1945-64 | AP162: £15,000 - £19,999 | AQ162: 1945-64£15,000 - £19,999 | AR162: 2800 | AS162: 3500 | AT162: 80240 | AU162: 2800 | AV162: 3500 | AW162: 81620 | AX162: 2800 | AY162: 3500 | AZ162: 65840 | BA162: 2900 | BB162: 3600 | BC162: 66370 | BD162: n/a | BE162: n/a | BF162: n/a | BG162: n/a | BH162: n/a | BI162: n/a | BJ162: n/a | BK162: n/a | BL162: n/a | BM162: n/a | BN162: n/a | BO162: n/a | BP162: n/a | BQ162: n/a | BR162: n/a | BS162: n/a | BT162: n/a | BU162: n/a | BV162: 10600 | BW162: 11200 | BX162: 74870 | BY162: 11000 | BZ162: 11600 | CA162: 70950 | CB162: 11900 | CC162: 12500 | CD162: 56240 | CE162: 11900 | CF162: 12600 | CG162: 58610 | CH162: n/a | CI162: n/a | CJ162: n/a | CK162: n/a | CL162: n/a | CM162: n/a | CN162: n/a | CO162: n/a | CP162: n/a | CQ162: n/a | CR162: n/a | CS162: n/a | CT162: n/a | CU162: n/a | CV162: n/a | CW162: n/a | CX162: n/a | CY162: n/a
AN163: 151 | AO163: 1965-82 | AP163: £15,000 - £19,999 | AQ163: 1965-82£15,000 - £19,999 | AR163: 2700 | AS163: 3400 | AT163: 81090 | AU163: 2700 | AV163: 3400 | AW163: 83370 | AX163: 2700 | AY163: 3400 | AZ163: 68620 | BA163: 2800 | BB163: 3500 | BC163: 69140 | BD163: n/a | BE163: n/a | BF163: n/a | BG163: n/a | BH163: n/a | BI163: n/a | BJ163: n/a | BK163: n/a | BL163: n/a | BM163: n/a | BN163: n/a | BO163: n/a | BP163: n/a | BQ163: n/a | BR163: n/a | BS163: n/a | BT163: n/a | BU163: n/a | BV163: 9600 | BW163: 10300 | BX163: 67460 | BY163: 9900 | BZ163: 10600 | CA163: 63550 | CB163: 10800 | CC163: 11500 | CD163: 51650 | CE163: 10800 | CF163: 11600 | CG163: 53950 | CH163: n/a | CI163: n/a | CJ163: n/a | CK163: n/a | CL163: n/a | CM163: n/a | CN163: n/a | CO163: n/a | CP163: n/a | CQ163: n/a | CR163: n/a | CS163: n/a | CT163: n/a | CU163: n/a | CV163: n/a | CW163: n/a | CX163: n/a | CY163: n/a
AN164: 152 | AO164: 1983-92 | AP164: £15,000 - £19,999 | AQ164: 1983-92£15,000 - £19,999 | AR164: 2700 | AS164: 3600 | AT164: 23910 | AU164: 2700 | AV164: 3500 | AW164: 24910 | AX164: 2800 | AY164: 3700 | AZ164: 21910 | BA164: 2900 | BB164: 3700 | BC164: 21950 | BD164: n/a | BE164: n/a | BF164: n/a | BG164: n/a | BH164: n/a | BI164: n/a | BJ164: n/a | BK164: n/a | BL164: n/a | BM164: n/a | BN164: n/a | BO164: n/a | BP164: n/a | BQ164: n/a | BR164: n/a | BS164: n/a | BT164: n/a | BU164: n/a | BV164: 8800 | BW164: 9600 | BX164: 15930 | BY164: 8900 | BZ164: 9900 | CA164: 15190 | CB164: 10100 | CC164: 11000 | CD164: 14060 | CE164: 10100 | CF164: 11100 | CG164: 14510 | CH164: n/a | CI164: n/a | CJ164: n/a | CK164: n/a | CL164: n/a | CM164: n/a | CN164: n/a | CO164: n/a | CP164: n/a | CQ164: n/a | CR164: n/a | CS164: n/a | CT164: n/a | CU164: n/a | CV164: n/a | CW164: n/a | CX164: n/a | CY164: n/a
AN165: 153 | AO165: 1993-99 | AP165: £15,000 - £19,999 | AQ165: 1993-99£15,000 - £19,999 | AR165: 3000 | AS165: 3800 | AT165: 12770 | AU165: 2900 | AV165: 3700 | AW165: 13380 | AX165: 3100 | AY165: 3900 | AZ165: 12570 | BA165: 3200 | BB165: 3900 | BC165: 12630 | BD165: n/a | BE165: n/a | BF165: n/a | BG165: n/a | BH165: n/a | BI165: n/a | BJ165: n/a | BK165: n/a | BL165: n/a | BM165: n/a | BN165: n/a | BO165: n/a | BP165: n/a | BQ165: n/a | BR165: n/a | BS165: n/a | BT165: n/a | BU165: n/a | BV165: 9000 | BW165: 9800 | BX165: 9820 | BY165: 9300 | BZ165: 10100 | CA165: 9240 | CB165: 10600 | CC165: 11600 | CD165: 9110 | CE165: 10700 | CF165: 11600 | CG165: 9520 | CH165: n/a | CI165: n/a | CJ165: n/a | CK165: n/a | CL165: n/a | CM165: n/a | CN165: n/a | CO165: n/a | CP165: n/a | CQ165: n/a | CR165: n/a | CS165: n/a | CT165: n/a | CU165: n/a | CV165: n/a | CW165: n/a | CX165: n/a | CY165: n/a
AN166: 154 | AO166: Post 1999 | AP166: £15,000 - £19,999 | AQ166: Post 1999£15,000 - £19,999 | AR166: 2900 | AS166: 3800 | AT166: 12710 | AU166: 2900 | AV166: 3600 | AW166: 14020 | AX166: 3100 | AY166: 3900 | AZ166: 12470 | BA166: 3200 | BB166: 3900 | BC166: 12510 | BD166: n/a | BE166: n/a | BF166: n/a | BG166: n/a | BH166: n/a | BI166: n/a | BJ166: n/a | BK166: n/a | BL166: n/a | BM166: n/a | BN166: n/a | BO166: n/a | BP166: n/a | BQ166: n/a | BR166: n/a | BS166: n/a | BT166: n/a | BU166: n/a | BV166: 8900 | BW166: 9900 | BX166: 6660 | BY166: 9000 | BZ166: 10000 | CA166: 5410 | CB166: 10600 | CC166: 11600 | CD166: 5900 | CE166: 10700 | CF166: 11700 | CG166: 6660 | CH166: n/a | CI166: n/a | CJ166: n/a | CK166: n/a | CL166: n/a | CM166: n/a | CN166: n/a | CO166: n/a | CP166: n/a | CQ166: n/a | CR166: n/a | CS166: n/a | CT166: n/a | CU166: n/a | CV166: n/a | CW166: n/a | CX166: n/a | CY166: n/a
AN167: 155 | AO167: Pre 1919 | AP167: £20,000 - £29,999 | AQ167: Pre 1919£20,000 - £29,999 | AR167: 2900 | AS167: 3800 | AT167: 166280 | AU167: 2900 | AV167: 3600 | AW167: 170780 | AX167: 3000 | AY167: 3800 | AZ167: 150250 | BA167: 3000 | BB167: 3800 | BC167: 152220 | BD167: n/a | BE167: n/a | BF167: n/a | BG167: n/a | BH167: n/a | BI167: n/a | BJ167: n/a | BK167: n/a | BL167: n/a | BM167: n/a | BN167: n/a | BO167: n/a | BP167: n/a | BQ167: n/a | BR167: n/a | BS167: n/a | BT167: n/a | BU167: n/a | BV167: 11200 | BW167: 12300 | BX167: 150110 | BY167: 11600 | BZ167: 12700 | CA167: 138560 | CB167: 12300 | CC167: 13500 | CD167: 120940 | CE167: 12300 | CF167: 13500 | CG167: 126110 | CH167: n/a | CI167: n/a | CJ167: n/a | CK167: n/a | CL167: n/a | CM167: n/a | CN167: n/a | CO167: n/a | CP167: n/a | CQ167: n/a | CR167: n/a | CS167: n/a | CT167: n/a | CU167: n/a | CV167: n/a | CW167: n/a | CX167: n/a | CY167: n/a
AN168: 156 | AO168: 1919-44 | AP168: £20,000 - £29,999 | AQ168: 1919-44£20,000 - £29,999 | AR168: 3200 | AS168: 3800 | AT168: 135560 | AU168: 3200 | AV168: 3700 | AW168: 136960 | AX168: 3200 | AY168: 3800 | AZ168: 108400 | BA168: 3300 | BB168: 3900 | BC168: 109110 | BD168: n/a | BE168: n/a | BF168: n/a | BG168: n/a | BH168: n/a | BI168: n/a | BJ168: n/a | BK168: n/a | BL168: n/a | BM168: n/a | BN168: n/a | BO168: n/a | BP168: n/a | BQ168: n/a | BR168: n/a | BS168: n/a | BT168: n/a | BU168: n/a | BV168: 12200 | BW168: 13100 | BX168: 131380 | BY168: 12600 | BZ168: 13500 | CA168: 123810 | CB168: 13500 | CC168: 14400 | CD168: 96140 | CE168: 13500 | CF168: 14400 | CG168: 99980 | CH168: n/a | CI168: n/a | CJ168: n/a | CK168: n/a | CL168: n/a | CM168: n/a | CN168: n/a | CO168: n/a | CP168: n/a | CQ168: n/a | CR168: n/a | CS168: n/a | CT168: n/a | CU168: n/a | CV168: n/a | CW168: n/a | CX168: n/a | CY168: n/a
AN169: 157 | AO169: 1945-64 | AP169: £20,000 - £29,999 | AQ169: 1945-64£20,000 - £29,999 | AR169: 3100 | AS169: 3700 | AT169: 183150 | AU169: 3100 | AV169: 3700 | AW169: 185780 | AX169: 3100 | AY169: 3700 | AZ169: 141960 | BA169: 3200 | BB169: 3800 | BC169: 143060 | BD169: n/a | BE169: n/a | BF169: n/a | BG169: n/a | BH169: n/a | BI169: n/a | BJ169: n/a | BK169: n/a | BL169: n/a | BM169: n/a | BN169: n/a | BO169: n/a | BP169: n/a | BQ169: n/a | BR169: n/a | BS169: n/a | BT169: n/a | BU169: n/a | BV169: 11300 | BW169: 11900 | BX169: 172560 | BY169: 11700 | BZ169: 12300 | CA169: 163150 | CB169: 12500 | CC169: 13100 | CD169: 121890 | CE169: 12400 | CF169: 13200 | CG169: 126950 | CH169: n/a | CI169: n/a | CJ169: n/a | CK169: n/a | CL169: n/a | CM169: n/a | CN169: n/a | CO169: n/a | CP169: n/a | CQ169: n/a | CR169: n/a | CS169: n/a | CT169: n/a | CU169: n/a | CV169: n/a | CW169: n/a | CX169: n/a | CY169: n/a
AN170: 158 | AO170: 1965-82 | AP170: £20,000 - £29,999 | AQ170: 1965-82£20,000 - £29,999 | AR170: 3000 | AS170: 3700 | AT170: 191190 | AU170: 3000 | AV170: 3600 | AW170: 195270 | AX170: 3000 | AY170: 3800 | AZ170: 154930 | BA170: 3100 | BB170: 3800 | BC170: 155850 | BD170: n/a | BE170: n/a | BF170: n/a | BG170: n/a | BH170: n/a | BI170: n/a | BJ170: n/a | BK170: n/a | BL170: n/a | BM170: n/a | BN170: n/a | BO170: n/a | BP170: n/a | BQ170: n/a | BR170: n/a | BS170: n/a | BT170: n/a | BU170: n/a | BV170: 10500 | BW170: 11200 | BX170: 166030 | BY170: 10900 | BZ170: 11600 | CA170: 156480 | CB170: 11500 | CC170: 12400 | CD170: 122130 | CE170: 11500 | CF170: 12400 | CG170: 127280 | CH170: n/a | CI170: n/a | CJ170: n/a | CK170: n/a | CL170: n/a | CM170: n/a | CN170: n/a | CO170: n/a | CP170: n/a | CQ170: n/a | CR170: n/a | CS170: n/a | CT170: n/a | CU170: n/a | CV170: n/a | CW170: n/a | CX170: n/a | CY170: n/a
AN171: 159 | AO171: 1983-92 | AP171: £20,000 - £29,999 | AQ171: 1983-92£20,000 - £29,999 | AR171: 2900 | AS171: 3700 | AT171: 59390 | AU171: 2900 | AV171: 3700 | AW171: 61280 | AX171: 3000 | AY171: 3900 | AZ171: 52070 | BA171: 3100 | BB171: 3900 | BC171: 52260 | BD171: n/a | BE171: n/a | BF171: n/a | BG171: n/a | BH171: n/a | BI171: n/a | BJ171: n/a | BK171: n/a | BL171: n/a | BM171: n/a | BN171: n/a | BO171: n/a | BP171: n/a | BQ171: n/a | BR171: n/a | BS171: n/a | BT171: n/a | BU171: n/a | BV171: 9200 | BW171: 10100 | BX171: 45710 | BY171: 9400 | BZ171: 10400 | CA171: 43500 | CB171: 10200 | CC171: 11300 | CD171: 37160 | CE171: 10200 | CF171: 11200 | CG171: 38660 | CH171: n/a | CI171: n/a | CJ171: n/a | CK171: n/a | CL171: n/a | CM171: n/a | CN171: n/a | CO171: n/a | CP171: n/a | CQ171: n/a | CR171: n/a | CS171: n/a | CT171: n/a | CU171: n/a | CV171: n/a | CW171: n/a | CX171: n/a | CY171: n/a
AN172: 160 | AO172: 1993-99 | AP172: £20,000 - £29,999 | AQ172: 1993-99£20,000 - £29,999 | AR172: 3000 | AS172: 3800 | AT172: 33690 | AU172: 3000 | AV172: 3800 | AW172: 35250 | AX172: 3100 | AY172: 3900 | AZ172: 32370 | BA172: 3200 | BB172: 4000 | BC172: 32560 | BD172: n/a | BE172: n/a | BF172: n/a | BG172: n/a | BH172: n/a | BI172: n/a | BJ172: n/a | BK172: n/a | BL172: n/a | BM172: n/a | BN172: n/a | BO172: n/a | BP172: n/a | BQ172: n/a | BR172: n/a | BS172: n/a | BT172: n/a | BU172: n/a | BV172: 9100 | BW172: 10000 | BX172: 27320 | BY172: 9400 | BZ172: 10200 | CA172: 25630 | CB172: 10300 | CC172: 11400 | CD172: 24460 | CE172: 10400 | CF172: 11400 | CG172: 25460 | CH172: n/a | CI172: n/a | CJ172: n/a | CK172: n/a | CL172: n/a | CM172: n/a | CN172: n/a | CO172: n/a | CP172: n/a | CQ172: n/a | CR172: n/a | CS172: n/a | CT172: n/a | CU172: n/a | CV172: n/a | CW172: n/a | CX172: n/a | CY172: n/a
AN173: 161 | AO173: Post 1999 | AP173: £20,000 - £29,999 | AQ173: Post 1999£20,000 - £29,999 | AR173: 2900 | AS173: 3700 | AT173: 44120 | AU173: 2900 | AV173: 3600 | AW173: 48320 | AX173: 3000 | AY173: 3900 | AZ173: 40280 | BA173: 3100 | BB173: 3900 | BC173: 40450 | BD173: n/a | BE173: n/a | BF173: n/a | BG173: n/a | BH173: n/a | BI173: n/a | BJ173: n/a | BK173: n/a | BL173: n/a | BM173: n/a | BN173: n/a | BO173: n/a | BP173: n/a | BQ173: n/a | BR173: n/a | BS173: n/a | BT173: n/a | BU173: n/a | BV173: 8700 | BW173: 9600 | BX173: 24990 | BY173: 8800 | BZ173: 9700 | CA173: 20280 | CB173: 9600 | CC173: 10800 | CD173: 19500 | CE173: 9800 | CF173: 10900 | CG173: 22050 | CH173: n/a | CI173: n/a | CJ173: n/a | CK173: n/a | CL173: n/a | CM173: n/a | CN173: n/a | CO173: n/a | CP173: n/a | CQ173: n/a | CR173: n/a | CS173: n/a | CT173: n/a | CU173: n/a | CV173: n/a | CW173: n/a | CX173: n/a | CY173: n/a
AN174: 162 | AO174: Pre 1919 | AP174: £30,000 - £39,999 | AQ174: Pre 1919£30,000 - £39,999 | AR174: 3300 | AS174: 4200 | AT174: 130080 | AU174: 3300 | AV174: 4100 | AW174: 133990 | AX174: 3400 | AY174: 4300 | AZ174: 110530 | BA174: 3500 | BB174: 4300 | BC174: 111860 | BD174: n/a | BE174: n/a | BF174: n/a | BG174: n/a | BH174: n/a | BI174: n/a | BJ174: n/a | BK174: n/a | BL174: n/a | BM174: n/a | BN174: n/a | BO174: n/a | BP174: n/a | BQ174: n/a | BR174: n/a | BS174: n/a | BT174: n/a | BU174: n/a | BV174: 12600 | BW174: 13700 | BX174: 116150 | BY174: 13000 | BZ174: 14100 | CA174: 107680 | CB174: 13700 | CC174: 15000 | CD174: 87130 | CE174: 13700 | CF174: 15000 | CG174: 91000 | CH174: n/a | CI174: n/a | CJ174: n/a | CK174: n/a | CL174: n/a | CM174: n/a | CN174: n/a | CO174: n/a | CP174: n/a | CQ174: n/a | CR174: n/a | CS174: n/a | CT174: n/a | CU174: n/a | CV174: n/a | CW174: n/a | CX174: n/a | CY174: n/a
AN175: 163 | AO175: 1919-44 | AP175: £30,000 - £39,999 | AQ175: 1919-44£30,000 - £39,999 | AR175: 3500 | AS175: 4100 | AT175: 123960 | AU175: 3500 | AV175: 4000 | AW175: 125180 | AX175: 3500 | AY175: 4100 | AZ175: 103580 | BA175: 3600 | BB175: 4200 | BC175: 104390 | BD175: n/a | BE175: n/a | BF175: n/a | BG175: n/a | BH175: n/a | BI175: n/a | BJ175: n/a | BK175: n/a | BL175: n/a | BM175: n/a | BN175: n/a | BO175: n/a | BP175: n/a | BQ175: n/a | BR175: n/a | BS175: n/a | BT175: n/a | BU175: n/a | BV175: 13500 | BW175: 14300 | BX175: 120810 | BY175: 14000 | BZ175: 14800 | CA175: 113450 | CB175: 14600 | CC175: 15500 | CD175: 92270 | CE175: 14600 | CF175: 15500 | CG175: 96300 | CH175: n/a | CI175: n/a | CJ175: n/a | CK175: n/a | CL175: n/a | CM175: n/a | CN175: n/a | CO175: n/a | CP175: n/a | CQ175: n/a | CR175: n/a | CS175: n/a | CT175: n/a | CU175: n/a | CV175: n/a | CW175: n/a | CX175: n/a | CY175: n/a
AN176: 164 | AO176: 1945-64 | AP176: £30,000 - £39,999 | AQ176: 1945-64£30,000 - £39,999 | AR176: 3400 | AS176: 4000 | AT176: 126360 | AU176: 3400 | AV176: 4000 | AW176: 127850 | AX176: 3400 | AY176: 4100 | AZ176: 106860 | BA176: 3600 | BB176: 4200 | BC176: 107610 | BD176: n/a | BE176: n/a | BF176: n/a | BG176: n/a | BH176: n/a | BI176: n/a | BJ176: n/a | BK176: n/a | BL176: n/a | BM176: n/a | BN176: n/a | BO176: n/a | BP176: n/a | BQ176: n/a | BR176: n/a | BS176: n/a | BT176: n/a | BU176: n/a | BV176: 12200 | BW176: 12900 | BX176: 119690 | BY176: 12700 | BZ176: 13300 | CA176: 112790 | CB176: 13200 | CC176: 13900 | CD176: 92460 | CE176: 13100 | CF176: 13900 | CG176: 96420 | CH176: n/a | CI176: n/a | CJ176: n/a | CK176: n/a | CL176: n/a | CM176: n/a | CN176: n/a | CO176: n/a | CP176: n/a | CQ176: n/a | CR176: n/a | CS176: n/a | CT176: n/a | CU176: n/a | CV176: n/a | CW176: n/a | CX176: n/a | CY176: n/a
AN177: 165 | AO177: 1965-82 | AP177: £30,000 - £39,999 | AQ177: 1965-82£30,000 - £39,999 | AR177: 3300 | AS177: 4000 | AT177: 147900 | AU177: 3300 | AV177: 3900 | AW177: 150330 | AX177: 3400 | AY177: 4000 | AZ177: 125780 | BA177: 3500 | BB177: 4100 | BC177: 126520 | BD177: n/a | BE177: n/a | BF177: n/a | BG177: n/a | BH177: n/a | BI177: n/a | BJ177: n/a | BK177: n/a | BL177: n/a | BM177: n/a | BN177: n/a | BO177: n/a | BP177: n/a | BQ177: n/a | BR177: n/a | BS177: n/a | BT177: n/a | BU177: n/a | BV177: 11500 | BW177: 12200 | BX177: 133450 | BY177: 11900 | BZ177: 12500 | CA177: 125340 | CB177: 12400 | CC177: 13200 | CD177: 102810 | CE177: 12400 | CF177: 13200 | CG177: 107360 | CH177: n/a | CI177: n/a | CJ177: n/a | CK177: n/a | CL177: n/a | CM177: n/a | CN177: n/a | CO177: n/a | CP177: n/a | CQ177: n/a | CR177: n/a | CS177: n/a | CT177: n/a | CU177: n/a | CV177: n/a | CW177: n/a | CX177: n/a | CY177: n/a
AN178: 166 | AO178: 1983-92 | AP178: £30,000 - £39,999 | AQ178: 1983-92£30,000 - £39,999 | AR178: 3200 | AS178: 4000 | AT178: 49240 | AU178: 3200 | AV178: 4000 | AW178: 50430 | AX178: 3400 | AY178: 4200 | AZ178: 44280 | BA178: 3500 | BB178: 4200 | BC178: 44430 | BD178: n/a | BE178: n/a | BF178: n/a | BG178: n/a | BH178: n/a | BI178: n/a | BJ178: n/a | BK178: n/a | BL178: n/a | BM178: n/a | BN178: n/a | BO178: n/a | BP178: n/a | BQ178: n/a | BR178: n/a | BS178: n/a | BT178: n/a | BU178: n/a | BV178: 10300 | BW178: 11100 | BX178: 39930 | BY178: 10600 | BZ178: 11400 | CA178: 37890 | CB178: 11200 | CC178: 12200 | CD178: 32990 | CE178: 11200 | CF178: 12200 | CG178: 34310 | CH178: n/a | CI178: n/a | CJ178: n/a | CK178: n/a | CL178: n/a | CM178: n/a | CN178: n/a | CO178: n/a | CP178: n/a | CQ178: n/a | CR178: n/a | CS178: n/a | CT178: n/a | CU178: n/a | CV178: n/a | CW178: n/a | CX178: n/a | CY178: n/a
AN179: 167 | AO179: 1993-99 | AP179: £30,000 - £39,999 | AQ179: 1993-99£30,000 - £39,999 | AR179: 3200 | AS179: 3900 | AT179: 28620 | AU179: 3200 | AV179: 3800 | AW179: 29840 | AX179: 3300 | AY179: 4100 | AZ179: 28450 | BA179: 3400 | BB179: 4100 | BC179: 28500 | BD179: n/a | BE179: n/a | BF179: n/a | BG179: n/a | BH179: n/a | BI179: n/a | BJ179: n/a | BK179: n/a | BL179: n/a | BM179: n/a | BN179: n/a | BO179: n/a | BP179: n/a | BQ179: n/a | BR179: n/a | BS179: n/a | BT179: n/a | BU179: n/a | BV179: 10000 | BW179: 10800 | BX179: 24240 | BY179: 10300 | BZ179: 11100 | CA179: 22640 | CB179: 11000 | CC179: 12100 | CD179: 21940 | CE179: 11000 | CF179: 12100 | CG179: 22870 | CH179: n/a | CI179: n/a | CJ179: n/a | CK179: n/a | CL179: n/a | CM179: n/a | CN179: n/a | CO179: n/a | CP179: n/a | CQ179: n/a | CR179: n/a | CS179: n/a | CT179: n/a | CU179: n/a | CV179: n/a | CW179: n/a | CX179: n/a | CY179: n/a
AN180: 168 | AO180: Post 1999 | AP180: £30,000 - £39,999 | AQ180: Post 1999£30,000 - £39,999 | AR180: 3100 | AS180: 3900 | AT180: 44440 | AU180: 3100 | AV180: 3800 | AW180: 48370 | AX180: 3200 | AY180: 4000 | AZ180: 38570 | BA180: 3200 | BB180: 4000 | BC180: 38690 | BD180: n/a | BE180: n/a | BF180: n/a | BG180: n/a | BH180: n/a | BI180: n/a | BJ180: n/a | BK180: n/a | BL180: n/a | BM180: n/a | BN180: n/a | BO180: n/a | BP180: n/a | BQ180: n/a | BR180: n/a | BS180: n/a | BT180: n/a | BU180: n/a | BV180: 9500 | BW180: 10400 | BX180: 26110 | BY180: 9600 | BZ180: 10500 | CA180: 21160 | CB180: 10300 | CC180: 11400 | CD180: 19490 | CE180: 10400 | CF180: 11500 | CG180: 21870 | CH180: n/a | CI180: n/a | CJ180: n/a | CK180: n/a | CL180: n/a | CM180: n/a | CN180: n/a | CO180: n/a | CP180: n/a | CQ180: n/a | CR180: n/a | CS180: n/a | CT180: n/a | CU180: n/a | CV180: n/a | CW180: n/a | CX180: n/a | CY180: n/a
AN181: 169 | AO181: Pre 1919 | AP181: £40,000 - £49,999 | AQ181: Pre 1919£40,000 - £49,999 | AR181: 3600 | AS181: 4600 | AT181: 95880 | AU181: 3600 | AV181: 4300 | AW181: 99100 | AX181: 3600 | AY181: 4500 | AZ181: 86420 | BA181: 3700 | BB181: 4600 | BC181: 87450 | BD181: n/a | BE181: n/a | BF181: n/a | BG181: n/a | BH181: n/a | BI181: n/a | BJ181: n/a | BK181: n/a | BL181: n/a | BM181: n/a | BN181: n/a | BO181: n/a | BP181: n/a | BQ181: n/a | BR181: n/a | BS181: n/a | BT181: n/a | BU181: n/a | BV181: 13400 | BW181: 14600 | BX181: 85360 | BY181: 13900 | BZ181: 15200 | CA181: 79300 | CB181: 14400 | CC181: 15700 | CD181: 68610 | CE181: 14400 | CF181: 15700 | CG181: 71850 | CH181: n/a | CI181: n/a | CJ181: n/a | CK181: n/a | CL181: n/a | CM181: n/a | CN181: n/a | CO181: n/a | CP181: n/a | CQ181: n/a | CR181: n/a | CS181: n/a | CT181: n/a | CU181: n/a | CV181: n/a | CW181: n/a | CX181: n/a | CY181: n/a
AN182: 170 | AO182: 1919-44 | AP182: £40,000 - £49,999 | AQ182: 1919-44£40,000 - £49,999 | AR182: 3800 | AS182: 4400 | AT182: 93590 | AU182: 3800 | AV182: 4300 | AW182: 94450 | AX182: 3800 | AY182: 4400 | AZ182: 82230 | BA182: 4000 | BB182: 4500 | BC182: 83050 | BD182: n/a | BE182: n/a | BF182: n/a | BG182: n/a | BH182: n/a | BI182: n/a | BJ182: n/a | BK182: n/a | BL182: n/a | BM182: n/a | BN182: n/a | BO182: n/a | BP182: n/a | BQ182: n/a | BR182: n/a | BS182: n/a | BT182: n/a | BU182: n/a | BV182: 14700 | BW182: 15500 | BX182: 91210 | BY182: 15200 | BZ182: 16100 | CA182: 85540 | CB182: 15600 | CC182: 16500 | CD182: 73580 | CE182: 15500 | CF182: 16400 | CG182: 77030 | CH182: n/a | CI182: n/a | CJ182: n/a | CK182: n/a | CL182: n/a | CM182: n/a | CN182: n/a | CO182: n/a | CP182: n/a | CQ182: n/a | CR182: n/a | CS182: n/a | CT182: n/a | CU182: n/a | CV182: n/a | CW182: n/a | CX182: n/a | CY182: n/a
AN183: 171 | AO183: 1945-64 | AP183: £40,000 - £49,999 | AQ183: 1945-64£40,000 - £49,999 | AR183: 3800 | AS183: 4400 | AT183: 84410 | AU183: 3800 | AV183: 4300 | AW183: 85470 | AX183: 3700 | AY183: 4400 | AZ183: 73410 | BA183: 3900 | BB183: 4500 | BC183: 74000 | BD183: n/a | BE183: n/a | BF183: n/a | BG183: n/a | BH183: n/a | BI183: n/a | BJ183: n/a | BK183: n/a | BL183: n/a | BM183: n/a | BN183: n/a | BO183: n/a | BP183: n/a | BQ183: n/a | BR183: n/a | BS183: n/a | BT183: n/a | BU183: n/a | BV183: 13500 | BW183: 14300 | BX183: 80480 | BY183: 14000 | BZ183: 14700 | CA183: 75890 | CB183: 14200 | CC183: 15000 | CD183: 64130 | CE183: 14100 | CF183: 15000 | CG183: 66950 | CH183: n/a | CI183: n/a | CJ183: n/a | CK183: n/a | CL183: n/a | CM183: n/a | CN183: n/a | CO183: n/a | CP183: n/a | CQ183: n/a | CR183: n/a | CS183: n/a | CT183: n/a | CU183: n/a | CV183: n/a | CW183: n/a | CX183: n/a | CY183: n/a
AN184: 172 | AO184: 1965-82 | AP184: £40,000 - £49,999 | AQ184: 1965-82£40,000 - £49,999 | AR184: 3700 | AS184: 4300 | AT184: 108690 | AU184: 3800 | AV184: 4300 | AW184: 110380 | AX184: 3700 | AY184: 4300 | AZ184: 95820 | BA184: 3900 | BB184: 4400 | BC184: 96340 | BD184: n/a | BE184: n/a | BF184: n/a | BG184: n/a | BH184: n/a | BI184: n/a | BJ184: n/a | BK184: n/a | BL184: n/a | BM184: n/a | BN184: n/a | BO184: n/a | BP184: n/a | BQ184: n/a | BR184: n/a | BS184: n/a | BT184: n/a | BU184: n/a | BV184: 12700 | BW184: 13500 | BX184: 100200 | BY184: 13200 | BZ184: 14000 | CA184: 94030 | CB184: 13500 | CC184: 14200 | CD184: 80410 | CE184: 13400 | CF184: 14200 | CG184: 83980 | CH184: n/a | CI184: n/a | CJ184: n/a | CK184: n/a | CL184: n/a | CM184: n/a | CN184: n/a | CO184: n/a | CP184: n/a | CQ184: n/a | CR184: n/a | CS184: n/a | CT184: n/a | CU184: n/a | CV184: n/a | CW184: n/a | CX184: n/a | CY184: n/a
AN185: 173 | AO185: 1983-92 | AP185: £40,000 - £49,999 | AQ185: 1983-92£40,000 - £49,999 | AR185: 3600 | AS185: 4300 | AT185: 40630 | AU185: 3700 | AV185: 4300 | AW185: 41630 | AX185: 3700 | AY185: 4500 | AZ185: 34970 | BA185: 3900 | BB185: 4500 | BC185: 35120 | BD185: n/a | BE185: n/a | BF185: n/a | BG185: n/a | BH185: n/a | BI185: n/a | BJ185: n/a | BK185: n/a | BL185: n/a | BM185: n/a | BN185: n/a | BO185: n/a | BP185: n/a | BQ185: n/a | BR185: n/a | BS185: n/a | BT185: n/a | BU185: n/a | BV185: 11800 | BW185: 12500 | BX185: 34840 | BY185: 12100 | BZ185: 12900 | CA185: 33190 | CB185: 12600 | CC185: 13400 | CD185: 27540 | CE185: 12600 | CF185: 13300 | CG185: 28580 | CH185: n/a | CI185: n/a | CJ185: n/a | CK185: n/a | CL185: n/a | CM185: n/a | CN185: n/a | CO185: n/a | CP185: n/a | CQ185: n/a | CR185: n/a | CS185: n/a | CT185: n/a | CU185: n/a | CV185: n/a | CW185: n/a | CX185: n/a | CY185: n/a
AN186: 174 | AO186: 1993-99 | AP186: £40,000 - £49,999 | AQ186: 1993-99£40,000 - £49,999 | AR186: 3600 | AS186: 4200 | AT186: 26260 | AU186: 3600 | AV186: 4200 | AW186: 27300 | AX186: 3700 | AY186: 4300 | AZ186: 24200 | BA186: 3800 | BB186: 4400 | BC186: 24290 | BD186: n/a | BE186: n/a | BF186: n/a | BG186: n/a | BH186: n/a | BI186: n/a | BJ186: n/a | BK186: n/a | BL186: n/a | BM186: n/a | BN186: n/a | BO186: n/a | BP186: n/a | BQ186: n/a | BR186: n/a | BS186: n/a | BT186: n/a | BU186: n/a | BV186: 11400 | BW186: 12300 | BX186: 23170 | BY186: 11700 | BZ186: 12600 | CA186: 21610 | CB186: 12200 | CC186: 13100 | CD186: 19330 | CE186: 12200 | CF186: 13100 | CG186: 20140 | CH186: n/a | CI186: n/a | CJ186: n/a | CK186: n/a | CL186: n/a | CM186: n/a | CN186: n/a | CO186: n/a | CP186: n/a | CQ186: n/a | CR186: n/a | CS186: n/a | CT186: n/a | CU186: n/a | CV186: n/a | CW186: n/a | CX186: n/a | CY186: n/a
AN187: 175 | AO187: Post 1999 | AP187: £40,000 - £49,999 | AQ187: Post 1999£40,000 - £49,999 | AR187: 3400 | AS187: 4100 | AT187: 38850 | AU187: 3400 | AV187: 4000 | AW187: 41790 | AX187: 3400 | AY187: 4200 | AZ187: 30670 | BA187: 3600 | BB187: 4200 | BC187: 30730 | BD187: n/a | BE187: n/a | BF187: n/a | BG187: n/a | BH187: n/a | BI187: n/a | BJ187: n/a | BK187: n/a | BL187: n/a | BM187: n/a | BN187: n/a | BO187: n/a | BP187: n/a | BQ187: n/a | BR187: n/a | BS187: n/a | BT187: n/a | BU187: n/a | BV187: 10900 | BW187: 11600 | BX187: 24730 | BY187: 11100 | BZ187: 11900 | CA187: 20000 | CB187: 11500 | CC187: 12500 | CD187: 16100 | CE187: 11600 | CF187: 12600 | CG187: 18120 | CH187: n/a | CI187: n/a | CJ187: n/a | CK187: n/a | CL187: n/a | CM187: n/a | CN187: n/a | CO187: n/a | CP187: n/a | CQ187: n/a | CR187: n/a | CS187: n/a | CT187: n/a | CU187: n/a | CV187: n/a | CW187: n/a | CX187: n/a | CY187: n/a
AN188: 176 | AO188: Pre 1919 | AP188: £50,000 - £59,999 | AQ188: Pre 1919£50,000 - £59,999 | AR188: 3800 | AS188: 4900 | AT188: 54450 | AU188: 3800 | AV188: 4600 | AW188: 56390 | AX188: 3800 | AY188: 4800 | AZ188: 50760 | BA188: 3900 | BB188: 4800 | BC188: 51330 | BD188: n/a | BE188: n/a | BF188: n/a | BG188: n/a | BH188: n/a | BI188: n/a | BJ188: n/a | BK188: n/a | BL188: n/a | BM188: n/a | BN188: n/a | BO188: n/a | BP188: n/a | BQ188: n/a | BR188: n/a | BS188: n/a | BT188: n/a | BU188: n/a | BV188: 14400 | BW188: 15900 | BX188: 47260 | BY188: 14900 | BZ188: 16300 | CA188: 43840 | CB188: 15300 | CC188: 16700 | CD188: 39150 | CE188: 15300 | CF188: 16700 | CG188: 41070 | CH188: n/a | CI188: n/a | CJ188: n/a | CK188: n/a | CL188: n/a | CM188: n/a | CN188: n/a | CO188: n/a | CP188: n/a | CQ188: n/a | CR188: n/a | CS188: n/a | CT188: n/a | CU188: n/a | CV188: n/a | CW188: n/a | CX188: n/a | CY188: n/a
AN189: 177 | AO189: 1919-44 | AP189: £50,000 - £59,999 | AQ189: 1919-44£50,000 - £59,999 | AR189: 4000 | AS189: 4600 | AT189: 54240 | AU189: 4000 | AV189: 4500 | AW189: 54810 | AX189: 4000 | AY189: 4700 | AZ189: 47800 | BA189: 4200 | BB189: 4800 | BC189: 48290 | BD189: n/a | BE189: n/a | BF189: n/a | BG189: n/a | BH189: n/a | BI189: n/a | BJ189: n/a | BK189: n/a | BL189: n/a | BM189: n/a | BN189: n/a | BO189: n/a | BP189: n/a | BQ189: n/a | BR189: n/a | BS189: n/a | BT189: n/a | BU189: n/a | BV189: 15700 | BW189: 16800 | BX189: 52570 | BY189: 16300 | BZ189: 17300 | CA189: 49210 | CB189: 16700 | CC189: 17700 | CD189: 42460 | CE189: 16500 | CF189: 17600 | CG189: 44450 | CH189: n/a | CI189: n/a | CJ189: n/a | CK189: n/a | CL189: n/a | CM189: n/a | CN189: n/a | CO189: n/a | CP189: n/a | CQ189: n/a | CR189: n/a | CS189: n/a | CT189: n/a | CU189: n/a | CV189: n/a | CW189: n/a | CX189: n/a | CY189: n/a
AN190: 178 | AO190: 1945-64 | AP190: £50,000 - £59,999 | AQ190: 1945-64£50,000 - £59,999 | AR190: 3900 | AS190: 4600 | AT190: 44500 | AU190: 3900 | AV190: 4500 | AW190: 45150 | AX190: 3900 | AY190: 4600 | AZ190: 39840 | BA190: 4100 | BB190: 4700 | BC190: 40210 | BD190: n/a | BE190: n/a | BF190: n/a | BG190: n/a | BH190: n/a | BI190: n/a | BJ190: n/a | BK190: n/a | BL190: n/a | BM190: n/a | BN190: n/a | BO190: n/a | BP190: n/a | BQ190: n/a | BR190: n/a | BS190: n/a | BT190: n/a | BU190: n/a | BV190: 14200 | BW190: 15100 | BX190: 42090 | BY190: 14600 | BZ190: 15600 | CA190: 39490 | CB190: 15000 | CC190: 15800 | CD190: 34370 | CE190: 14900 | CF190: 15800 | CG190: 36060 | CH190: n/a | CI190: n/a | CJ190: n/a | CK190: n/a | CL190: n/a | CM190: n/a | CN190: n/a | CO190: n/a | CP190: n/a | CQ190: n/a | CR190: n/a | CS190: n/a | CT190: n/a | CU190: n/a | CV190: n/a | CW190: n/a | CX190: n/a | CY190: n/a
AN191: 179 | AO191: 1965-82 | AP191: £50,000 - £59,999 | AQ191: 1965-82£50,000 - £59,999 | AR191: 3800 | AS191: 4500 | AT191: 55950 | AU191: 3900 | AV191: 4400 | AW191: 56910 | AX191: 3800 | AY191: 4500 | AZ191: 50580 | BA191: 4000 | BB191: 4600 | BC191: 50970 | BD191: n/a | BE191: n/a | BF191: n/a | BG191: n/a | BH191: n/a | BI191: n/a | BJ191: n/a | BK191: n/a | BL191: n/a | BM191: n/a | BN191: n/a | BO191: n/a | BP191: n/a | BQ191: n/a | BR191: n/a | BS191: n/a | BT191: n/a | BU191: n/a | BV191: 13300 | BW191: 14300 | BX191: 51200 | BY191: 13800 | BZ191: 14700 | CA191: 48000 | CB191: 14000 | CC191: 14800 | CD191: 42190 | CE191: 13900 | CF191: 14800 | CG191: 44090 | CH191: n/a | CI191: n/a | CJ191: n/a | CK191: n/a | CL191: n/a | CM191: n/a | CN191: n/a | CO191: n/a | CP191: n/a | CQ191: n/a | CR191: n/a | CS191: n/a | CT191: n/a | CU191: n/a | CV191: n/a | CW191: n/a | CX191: n/a | CY191: n/a
AN192: 180 | AO192: 1983-92 | AP192: £50,000 - £59,999 | AQ192: 1983-92£50,000 - £59,999 | AR192: 3800 | AS192: 4500 | AT192: 25690 | AU192: 3800 | AV192: 4500 | AW192: 26330 | AX192: 3900 | AY192: 4600 | AZ192: 22140 | BA192: 4000 | BB192: 4700 | BC192: 22250 | BD192: n/a | BE192: n/a | BF192: n/a | BG192: n/a | BH192: n/a | BI192: n/a | BJ192: n/a | BK192: n/a | BL192: n/a | BM192: n/a | BN192: n/a | BO192: n/a | BP192: n/a | BQ192: n/a | BR192: n/a | BS192: n/a | BT192: n/a | BU192: n/a | BV192: 12600 | BW192: 13400 | BX192: 22280 | BY192: 13000 | BZ192: 13900 | CA192: 21130 | CB192: 13200 | CC192: 14100 | CD192: 17730 | CE192: 13200 | CF192: 14100 | CG192: 18450 | CH192: n/a | CI192: n/a | CJ192: n/a | CK192: n/a | CL192: n/a | CM192: n/a | CN192: n/a | CO192: n/a | CP192: n/a | CQ192: n/a | CR192: n/a | CS192: n/a | CT192: n/a | CU192: n/a | CV192: n/a | CW192: n/a | CX192: n/a | CY192: n/a
AN193: 181 | AO193: 1993-99 | AP193: £50,000 - £59,999 | AQ193: 1993-99£50,000 - £59,999 | AR193: 3700 | AS193: 4400 | AT193: 19280 | AU193: 3800 | AV193: 4400 | AW193: 20090 | AX193: 3800 | AY193: 4500 | AZ193: 18390 | BA193: 4000 | BB193: 4600 | BC193: 18460 | BD193: n/a | BE193: n/a | BF193: n/a | BG193: n/a | BH193: n/a | BI193: n/a | BJ193: n/a | BK193: n/a | BL193: n/a | BM193: n/a | BN193: n/a | BO193: n/a | BP193: n/a | BQ193: n/a | BR193: n/a | BS193: n/a | BT193: n/a | BU193: n/a | BV193: 12300 | BW193: 13100 | BX193: 17280 | BY193: 12700 | BZ193: 13500 | CA193: 16030 | CB193: 13000 | CC193: 13900 | CD193: 14960 | CE193: 12900 | CF193: 13900 | CG193: 15620 | CH193: n/a | CI193: n/a | CJ193: n/a | CK193: n/a | CL193: n/a | CM193: n/a | CN193: n/a | CO193: n/a | CP193: n/a | CQ193: n/a | CR193: n/a | CS193: n/a | CT193: n/a | CU193: n/a | CV193: n/a | CW193: n/a | CX193: n/a | CY193: n/a
AN194: 182 | AO194: Post 1999 | AP194: £50,000 - £59,999 | AQ194: Post 1999£50,000 - £59,999 | AR194: 3600 | AS194: 4300 | AT194: 28500 | AU194: 3500 | AV194: 4200 | AW194: 30640 | AX194: 3600 | AY194: 4300 | AZ194: 23180 | BA194: 3800 | BB194: 4400 | BC194: 23270 | BD194: n/a | BE194: n/a | BF194: n/a | BG194: n/a | BH194: n/a | BI194: n/a | BJ194: n/a | BK194: n/a | BL194: n/a | BM194: n/a | BN194: n/a | BO194: n/a | BP194: n/a | BQ194: n/a | BR194: n/a | BS194: n/a | BT194: n/a | BU194: n/a | BV194: 11400 | BW194: 12300 | BX194: 19110 | BY194: 11700 | BZ194: 12500 | CA194: 15460 | CB194: 12100 | CC194: 13100 | CD194: 13020 | CE194: 12200 | CF194: 13200 | CG194: 14510 | CH194: n/a | CI194: n/a | CJ194: n/a | CK194: n/a | CL194: n/a | CM194: n/a | CN194: n/a | CO194: n/a | CP194: n/a | CQ194: n/a | CR194: n/a | CS194: n/a | CT194: n/a | CU194: n/a | CV194: n/a | CW194: n/a | CX194: n/a | CY194: n/a
AN195: 183 | AO195: Pre 1919 | AP195: £60,000 - £69,999 | AQ195: Pre 1919£60,000 - £69,999 | AR195: 4000 | AS195: 5200 | AT195: 32330 | AU195: 4000 | AV195: 4900 | AW195: 33670 | AX195: 4000 | AY195: 5100 | AZ195: 30770 | BA195: 4200 | BB195: 5100 | BC195: 31150 | BD195: n/a | BE195: n/a | BF195: n/a | BG195: n/a | BH195: n/a | BI195: n/a | BJ195: n/a | BK195: n/a | BL195: n/a | BM195: n/a | BN195: n/a | BO195: n/a | BP195: n/a | BQ195: n/a | BR195: n/a | BS195: n/a | BT195: n/a | BU195: n/a | BV195: 15300 | BW195: 16900 | BX195: 27210 | BY195: 15900 | BZ195: 17400 | CA195: 25320 | CB195: 16300 | CC195: 17800 | CD195: 23200 | CE195: 16200 | CF195: 17700 | CG195: 24260 | CH195: n/a | CI195: n/a | CJ195: n/a | CK195: n/a | CL195: n/a | CM195: n/a | CN195: n/a | CO195: n/a | CP195: n/a | CQ195: n/a | CR195: n/a | CS195: n/a | CT195: n/a | CU195: n/a | CV195: n/a | CW195: n/a | CX195: n/a | CY195: n/a
AN196: 184 | AO196: 1919-44 | AP196: £60,000 - £69,999 | AQ196: 1919-44£60,000 - £69,999 | AR196: 4100 | AS196: 4800 | AT196: 33330 | AU196: 4200 | AV196: 4700 | AW196: 33730 | AX196: 4200 | AY196: 4800 | AZ196: 29010 | BA196: 4300 | BB196: 4900 | BC196: 29260 | BD196: n/a | BE196: n/a | BF196: n/a | BG196: n/a | BH196: n/a | BI196: n/a | BJ196: n/a | BK196: n/a | BL196: n/a | BM196: n/a | BN196: n/a | BO196: n/a | BP196: n/a | BQ196: n/a | BR196: n/a | BS196: n/a | BT196: n/a | BU196: n/a | BV196: 16600 | BW196: 17600 | BX196: 32260 | BY196: 17200 | BZ196: 18200 | CA196: 30200 | CB196: 17700 | CC196: 18700 | CD196: 25410 | CE196: 17600 | CF196: 18600 | CG196: 26750 | CH196: n/a | CI196: n/a | CJ196: n/a | CK196: n/a | CL196: n/a | CM196: n/a | CN196: n/a | CO196: n/a | CP196: n/a | CQ196: n/a | CR196: n/a | CS196: n/a | CT196: n/a | CU196: n/a | CV196: n/a | CW196: n/a | CX196: n/a | CY196: n/a
AN197: 185 | AO197: 1945-64 | AP197: £60,000 - £69,999 | AQ197: 1945-64£60,000 - £69,999 | AR197: 4000 | AS197: 4700 | AT197: 25610 | AU197: 4000 | AV197: 4600 | AW197: 26060 | AX197: 4000 | AY197: 4700 | AZ197: 24480 | BA197: 4200 | BB197: 4800 | BC197: 24680 | BD197: n/a | BE197: n/a | BF197: n/a | BG197: n/a | BH197: n/a | BI197: n/a | BJ197: n/a | BK197: n/a | BL197: n/a | BM197: n/a | BN197: n/a | BO197: n/a | BP197: n/a | BQ197: n/a | BR197: n/a | BS197: n/a | BT197: n/a | BU197: n/a | BV197: 14800 | BW197: 15800 | BX197: 24130 | BY197: 15300 | BZ197: 16300 | CA197: 22620 | CB197: 15600 | CC197: 16600 | CD197: 21030 | CE197: 15400 | CF197: 16500 | CG197: 22070 | CH197: n/a | CI197: n/a | CJ197: n/a | CK197: n/a | CL197: n/a | CM197: n/a | CN197: n/a | CO197: n/a | CP197: n/a | CQ197: n/a | CR197: n/a | CS197: n/a | CT197: n/a | CU197: n/a | CV197: n/a | CW197: n/a | CX197: n/a | CY197: n/a
AN198: 186 | AO198: 1965-82 | AP198: £60,000 - £69,999 | AQ198: =CONCATENATE(AO198,AP198) -> 1965-82£60,000 - £69,999 | AR198: 3900 | AS198: 4600 | AT198: 32160 | AU198: 4000 | AV198: 4600 | AW198: 32740 | AX198: 4000 | AY198: 4600 | AZ198: 30350 | BA198: 4100 | BB198: 4800 | BC198: 30540 | BD198: n/a | BE198: n/a | BF198: n/a | BG198: n/a | BH198: n/a | BI198: n/a | BJ198: n/a | BK198: n/a | BL198: n/a | BM198: n/a | BN198: n/a | BO198: n/a | BP198: n/a | BQ198: n/a | BR198: n/a | BS198: n/a | BT198: n/a | BU198: n/a | BV198: 13900 | BW198: 14900 | BX198: 29170 | BY198: 14400 | BZ198: 15400 | CA198: 27340 | CB198: 14600 | CC198: 15500 | CD198: 25160 | CE198: 14500 | CF198: 15500 | CG198: 26340 | CH198: n/a | CI198: n/a | CJ198: n/a | CK198: n/a | CL198: n/a | CM198: n/a | CN198: n/a | CO198: n/a | CP198: n/a | CQ198: n/a | CR198: n/a | CS198: n/a | CT198: n/a | CU198: n/a | CV198: n/a | CW198: n/a | CX198: n/a | CY198: n/a
AN199: 187 | AO199: 1983-92 | AP199: £60,000 - £69,999 | AQ199: 1983-92£60,000 - £69,999 | AR199: 4000 | AS199: 4700 | AT199: 16830 | AU199: 4000 | AV199: 4700 | AW199: 17270 | AX199: 4100 | AY199: 4800 | AZ199: 14720 | BA199: 4200 | BB199: 4900 | BC199: 14800 | BD199: n/a | BE199: n/a | BF199: n/a | BG199: n/a | BH199: n/a | BI199: n/a | BJ199: n/a | BK199: n/a | BL199: n/a | BM199: n/a | BN199: n/a | BO199: n/a | BP199: n/a | BQ199: n/a | BR199: n/a | BS199: n/a | BT199: n/a | BU199: n/a | BV199: 13400 | BW199: 14200 | BX199: 14750 | BY199: 13800 | BZ199: 14700 | CA199: 14050 | CB199: 14100 | CC199: 14900 | CD199: 11730 | CE199: 13900 | CF199: 14800 | CG199: 12250 | CH199: n/a | CI199: n/a | CJ199: n/a | CK199: n/a | CL199: n/a | CM199: n/a | CN199: n/a | CO199: n/a | CP199: n/a | CQ199: n/a | CR199: n/a | CS199: n/a | CT199: n/a | CU199: n/a | CV199: n/a | CW199: n/a | CX199: n/a | CY199: n/a
AN200: 188 | AO200: 1993-99 | AP200: £60,000 - £69,999 | AQ200: 1993-99£60,000 - £69,999 | AR200: 3900 | AS200: 4500 | AT200: 14320 | AU200: 3900 | AV200: 4500 | AW200: 14880 | AX200: 4000 | AY200: 4700 | AZ200: 13270 | BA200: 4200 | BB200: 4800 | BC200: 13310 | BD200: n/a | BE200: n/a | BF200: n/a | BG200: n/a | BH200: n/a | BI200: n/a | BJ200: n/a | BK200: n/a | BL200: n/a | BM200: n/a | BN200: n/a | BO200: n/a | BP200: n/a | BQ200: n/a | BR200: n/a | BS200: n/a | BT200: n/a | BU200: n/a | BV200: 13400 | BW200: 14100 | BX200: 12950 | BY200: 13700 | BZ200: 14500 | CA200: 11970 | CB200: 14100 | CC200: 15000 | CD200: 10920 | CE200: 14000 | CF200: 14900 | CG200: 11400 | CH200: n/a | CI200: n/a | CJ200: n/a | CK200: n/a | CL200: n/a | CM200: n/a | CN200: n/a | CO200: n/a | CP200: n/a | CQ200: n/a | CR200: n/a | CS200: n/a | CT200: n/a | CU200: n/a | CV200: n/a | CW200: n/a | CX200: n/a | CY200: n/a
AN201: 189 | AO201: Post 1999 | AP201: £60,000 - £69,999 | AQ201: Post 1999£60,000 - £69,999 | AR201: 3700 | AS201: 4400 | AT201: 19460 | AU201: 3700 | AV201: 4400 | AW201: 20880 | AX201: 3800 | AY201: 4500 | AZ201: 16270 | BA201: 3900 | BB201: 4600 | BC201: 16280 | BD201: n/a | BE201: n/a | BF201: n/a | BG201: n/a | BH201: n/a | BI201: n/a | BJ201: n/a | BK201: n/a | BL201: n/a | BM201: n/a | BN201: n/a | BO201: n/a | BP201: n/a | BQ201: n/a | BR201: n/a | BS201: n/a | BT201: n/a | BU201: n/a | BV201: 12200 | BW201: 13100 | BX201: 13200 | BY201: 12300 | BZ201: 13300 | CA201: 10700 | CB201: 12800 | CC201: 13800 | CD201: 9290 | CE201: 12900 | CF201: 13900 | CG201: 10290 | CH201: n/a | CI201: n/a | CJ201: n/a | CK201: n/a | CL201: n/a | CM201: n/a | CN201: n/a | CO201: n/a | CP201: n/a | CQ201: n/a | CR201: n/a | CS201: n/a | CT201: n/a | CU201: n/a | CV201: n/a | CW201: n/a | CX201: n/a | CY201: n/a
... 314 more rows
